Body Name,Body,Date,Department,Beneficiary,Summary of Purpose (SeRCOP),Amount,Merchant Code,Transaction Number
Sandwell Metropolitan Borough Council,http://www.sandwell.gov.uk/info/200202/performance_and_spending/3233/government_procurement_cards,04-Jul-2022,Total Business Strategy & Change,BUY PAINTS  #140896,Assistant Chief Executive (Excl SIU),79.99,"GLASS, PAINT, WALLPAPER STORES",2022-23Q2_PC0001
Sandwell Metropolitan Borough Council,http://www.sandwell.gov.uk/info/200202/performance_and_spending/3233/government_procurement_cards,04-Jul-2022,Total Business Strategy & Change,CLOUD W5Z8VW,Assistant Chief Executive (Excl SIU),220.07,COMPUTER NETWORK/INFORMATION SERVICES,2022-23Q2_PC0002
Sandwell Metropolitan Borough Council,http://www.sandwell.gov.uk/info/200202/performance_and_spending/3233/government_procurement_cards,04-Jul-2022,Director of Law & Governance,AMZNMKTPLACE AMAZON.CO,Assistant Chief Executive (Excl SIU),38.98,MISCELLANEOUS AND SPECIALTY RETAIL STORES,2022-23Q2_PC0003
Sandwell Metropolitan Borough Council,http://www.sandwell.gov.uk/info/200202/performance_and_spending/3233/government_procurement_cards,04-Jul-2022,Director of Law & Governance,WWW.OFFICETEAMCONNECT.,Assistant Chief Executive (Excl SIU),180.40,STATIONERY/OFFICE SUPPLIES/PRINTING & WRITING PAP.,2022-23Q2_PC0004
Sandwell Metropolitan Borough Council,http://www.sandwell.gov.uk/info/200202/performance_and_spending/3233/government_procurement_cards,04-Jul-2022,FINANCE (Inc SIU),AMZNMKTPLACE AMAZON.CO,Assistant Chief Executive (Excl SIU),59.00,MISCELLANEOUS AND SPECIALTY RETAIL STORES,2022-23Q2_PC0005
Sandwell Metropolitan Borough Council,http://www.sandwell.gov.uk/info/200202/performance_and_spending/3233/government_procurement_cards,04-Jul-2022,FINANCE (Inc SIU),AMZNMktplace,Assistant Chief Executive (Excl SIU),59.00,MISCELLANEOUS AND SPECIALTY RETAIL STORES,2022-23Q2_PC0006
Sandwell Metropolitan Borough Council,http://www.sandwell.gov.uk/info/200202/performance_and_spending/3233/government_procurement_cards,04-Jul-2022,Childrens Services,AMZNMktplace,Childrens Services,6.99,MISCELLANEOUS AND SPECIALTY RETAIL STORES,2022-23Q2_PC0007
Sandwell Metropolitan Borough Council,http://www.sandwell.gov.uk/info/200202/performance_and_spending/3233/government_procurement_cards,04-Jul-2022,Childrens Services,REDACTED,Childrens Services,10.00,MISCELLANEOUS AND SPECIALTY RETAIL STORES,2022-23Q2_PC0008
Sandwell Metropolitan Borough Council,http://www.sandwell.gov.uk/info/200202/performance_and_spending/3233/government_procurement_cards,04-Jul-2022,Childrens Services,ASDA GEORGE COM LEEDS,Childrens Services,98.50,"GROCERY STORES, SUPERMARKETS",2022-23Q2_PC0009
Sandwell Metropolitan Borough Council,http://www.sandwell.gov.uk/info/200202/performance_and_spending/3233/government_procurement_cards,04-Jul-2022,Childrens Services,Internetstores,Childrens Services,21.98,BICYCLE SHOPS-SALES AND SERVICE,2022-23Q2_PC0010
Sandwell Metropolitan Borough Council,http://www.sandwell.gov.uk/info/200202/performance_and_spending/3233/government_procurement_cards,04-Jul-2022,Childrens Services,WWW.TREDZ.CO.UK,Childrens Services,84.26,BICYCLE SHOPS-SALES AND SERVICE,2022-23Q2_PC0011
Sandwell Metropolitan Borough Council,http://www.sandwell.gov.uk/info/200202/performance_and_spending/3233/government_procurement_cards,04-Jul-2022,Housing & Assets Total,TRAVELODGE,Corporate Management,200.90,TRAVELODGE,2022-23Q2_PC0012
Sandwell Metropolitan Borough Council,http://www.sandwell.gov.uk/info/200202/performance_and_spending/3233/government_procurement_cards,04-Jul-2022,Housing & Assets Total,THE APOLLO HOTEL,Corporate Management,254.00,"LODGING-HOTELS,MOTELS,RESORTS-NOT CLASSIFIED",2022-23Q2_PC0013
Sandwell Metropolitan Borough Council,http://www.sandwell.gov.uk/info/200202/performance_and_spending/3233/government_procurement_cards,04-Jul-2022,Housing & Assets Total,TRAVELODGE,Corporate Management,209.06,TRAVELODGE,2022-23Q2_PC0014
Sandwell Metropolitan Borough Council,http://www.sandwell.gov.uk/info/200202/performance_and_spending/3233/government_procurement_cards,04-Jul-2022,Individual School Budgets With Inclusion,CHOICE CARS (UK) LTD,Individual School Budgets With Inclusion,118.00,LIMOUSINES AND TAXICABS,2022-23Q2_PC0015
Sandwell Metropolitan Borough Council,http://www.sandwell.gov.uk/info/200202/performance_and_spending/3233/government_procurement_cards,04-Jul-2022,Individual School Budgets With Inclusion,ARGOS LTD,Individual School Budgets With Inclusion,38.90,DISCOUNT STORES,2022-23Q2_PC0016
Sandwell Metropolitan Borough Council,http://www.sandwell.gov.uk/info/200202/performance_and_spending/3233/government_procurement_cards,04-Jul-2022,Individual School Budgets With Inclusion,ARGOS LTD,Individual School Budgets With Inclusion,23.92,DISCOUNT STORES,2022-23Q2_PC0017
Sandwell Metropolitan Borough Council,http://www.sandwell.gov.uk/info/200202/performance_and_spending/3233/government_procurement_cards,04-Jul-2022,Total Public Health,ICELAND 1603,Public Health,52.50,"GROCERY STORES, SUPERMARKETS",2022-23Q2_PC0018
Sandwell Metropolitan Borough Council,http://www.sandwell.gov.uk/info/200202/performance_and_spending/3233/government_procurement_cards,04-Jul-2022,Total Public Health,POUNDLAND LTD 1729,Public Health,13.20,DISCOUNT STORES,2022-23Q2_PC0019
Sandwell Metropolitan Borough Council,http://www.sandwell.gov.uk/info/200202/performance_and_spending/3233/government_procurement_cards,04-Jul-2022,Total Public Health,CARD FACTORY,Public Health,3.96,"GIFT, CARD, NOVELTY AND SOUVENIR SHOPS",2022-23Q2_PC0020
Sandwell Metropolitan Borough Council,http://www.sandwell.gov.uk/info/200202/performance_and_spending/3233/government_procurement_cards,04-Jul-2022,Total Public Health,SAINSBURYS S/MKTS,Public Health,214.65,"GROCERY STORES, SUPERMARKETS",2022-23Q2_PC0021
Sandwell Metropolitan Borough Council,http://www.sandwell.gov.uk/info/200202/performance_and_spending/3233/government_procurement_cards,04-Jul-2022,Total Public Health,WWW.PAPAJOHNS.CO.UK,Public Health,109.94,"EATING PLACES, RESTAURANTS",2022-23Q2_PC0022
Sandwell Metropolitan Borough Council,http://www.sandwell.gov.uk/info/200202/performance_and_spending/3233/government_procurement_cards,04-Jul-2022,Regeneration & Growth,CENTRE FOR ASSESSMENT,Regeneration And The Economy,"1,377.00",SCHOOLS & EDUCATIONAL SVC-NOT ELSEWHERE CLASSIFIED,2022-23Q2_PC0023
Sandwell Metropolitan Borough Council,http://www.sandwell.gov.uk/info/200202/performance_and_spending/3233/government_procurement_cards,04-Jul-2022,Regeneration & Growth,WWW.ENERGYASSETS.CO.UK,Regeneration And The Economy,"5,000.00","UTLTS-ELCTRC, GAS, HEATING OIL, SANITARY, WATER",2022-23Q2_PC0024
Sandwell Metropolitan Borough Council,http://www.sandwell.gov.uk/info/200202/performance_and_spending/3233/government_procurement_cards,04-Jul-2022,Regeneration & Growth,WWW.ENERGYASSETS.CO.UK,Regeneration And The Economy,"5,000.00","UTLTS-ELCTRC, GAS, HEATING OIL, SANITARY, WATER",2022-23Q2_PC0025
Sandwell Metropolitan Borough Council,http://www.sandwell.gov.uk/info/200202/performance_and_spending/3233/government_procurement_cards,04-Jul-2022,Regeneration & Growth,WWW.ENERGYASSETS.CO.UK,Regeneration And The Economy,"3,562.42","UTLTS-ELCTRC, GAS, HEATING OIL, SANITARY, WATER",2022-23Q2_PC0026
Sandwell Metropolitan Borough Council,http://www.sandwell.gov.uk/info/200202/performance_and_spending/3233/government_procurement_cards,04-Jul-2022,Total ASCHWB,WWW.OFFICETEAMCONNECT.,Total Adult Social Care,131.85,STATIONERY/OFFICE SUPPLIES/PRINTING & WRITING PAP.,2022-23Q2_PC0027
Sandwell Metropolitan Borough Council,http://www.sandwell.gov.uk/info/200202/performance_and_spending/3233/government_procurement_cards,04-Jul-2022,Total ASCHWB,SumUp   Cabbagewhiteli,Total Adult Social Care,25.00,"CLEANING, GARMENT, AND LAUNDRY SERVICES",2022-23Q2_PC0028
Sandwell Metropolitan Borough Council,http://www.sandwell.gov.uk/info/200202/performance_and_spending/3233/government_procurement_cards,04-Jul-2022,Total ASCHWB,AMZNMKTPLACE AMAZON.CO,Total Adult Social Care,68.95,MISCELLANEOUS AND SPECIALTY RETAIL STORES,2022-23Q2_PC0029
Sandwell Metropolitan Borough Council,http://www.sandwell.gov.uk/info/200202/performance_and_spending/3233/government_procurement_cards,04-Jul-2022,Total ASCHWB,AMZNMKTPLACE AMAZON.CO,Total Adult Social Care,50.97,MISCELLANEOUS AND SPECIALTY RETAIL STORES,2022-23Q2_PC0030
Sandwell Metropolitan Borough Council,http://www.sandwell.gov.uk/info/200202/performance_and_spending/3233/government_procurement_cards,04-Jul-2022,Total ASCHWB,Amazon.co.uk 2Y5JA6X04,Total Adult Social Care,29.49,DIRECT MARKETING-OTHER DIRECT MARKETERS/NOT ELSEW.,2022-23Q2_PC0031
Sandwell Metropolitan Borough Council,http://www.sandwell.gov.uk/info/200202/performance_and_spending/3233/government_procurement_cards,04-Jul-2022,Total ASCHWB,WWW.OFFICETEAMCONNECT.,Total Adult Social Care,133.04,STATIONERY/OFFICE SUPPLIES/PRINTING & WRITING PAP.,2022-23Q2_PC0032
Sandwell Metropolitan Borough Council,http://www.sandwell.gov.uk/info/200202/performance_and_spending/3233/government_procurement_cards,04-Jul-2022,Total ASCHWB,AMZNMktplace,Total Adult Social Care,39.98,MISCELLANEOUS AND SPECIALTY RETAIL STORES,2022-23Q2_PC0033
Sandwell Metropolitan Borough Council,http://www.sandwell.gov.uk/info/200202/performance_and_spending/3233/government_procurement_cards,04-Jul-2022,Total Borough Economy,AMZNMktplace,Total Adult Social Care,59.28,MISCELLANEOUS AND SPECIALTY RETAIL STORES,2022-23Q2_PC0034
Sandwell Metropolitan Borough Council,http://www.sandwell.gov.uk/info/200202/performance_and_spending/3233/government_procurement_cards,04-Jul-2022,Total Borough Economy,FACEBK JA3TLGTJY2,Total Adult Social Care,11.13,ADVERTISING SERVICES,2022-23Q2_PC0035
Sandwell Metropolitan Borough Council,http://www.sandwell.gov.uk/info/200202/performance_and_spending/3233/government_procurement_cards,04-Jul-2022,Total Housing Revenue Account,AMZNMKTPLACE AMAZON.CO,Total Housing Revenue Account,-31.88,MISCELLANEOUS AND SPECIALTY RETAIL STORES,2022-23Q2_PC0036
Sandwell Metropolitan Borough Council,http://www.sandwell.gov.uk/info/200202/performance_and_spending/3233/government_procurement_cards,04-Jul-2022,Total Housing Revenue Account,AMZNMktplace,Total Housing Revenue Account,32.50,MISCELLANEOUS AND SPECIALTY RETAIL STORES,2022-23Q2_PC0037
Sandwell Metropolitan Borough Council,http://www.sandwell.gov.uk/info/200202/performance_and_spending/3233/government_procurement_cards,04-Jul-2022,Total Housing Revenue Account,AMZNMktplace,Total Housing Revenue Account,32.10,MISCELLANEOUS AND SPECIALTY RETAIL STORES,2022-23Q2_PC0038
Sandwell Metropolitan Borough Council,http://www.sandwell.gov.uk/info/200202/performance_and_spending/3233/government_procurement_cards,04-Jul-2022,Total Housing Revenue Account,WWW.OFFICETEAMCONNECT.,Total Housing Revenue Account,135.09,STATIONERY/OFFICE SUPPLIES/PRINTING & WRITING PAP.,2022-23Q2_PC0039
Sandwell Metropolitan Borough Council,http://www.sandwell.gov.uk/info/200202/performance_and_spending/3233/government_procurement_cards,04-Jul-2022,Total Housing Revenue Account,TRAVIS PERKINS,Total Housing Revenue Account,31.76,"BUILDING MATERIALS, LUMBER STORES",2022-23Q2_PC0040
Sandwell Metropolitan Borough Council,http://www.sandwell.gov.uk/info/200202/performance_and_spending/3233/government_procurement_cards,05-Jul-2022,Childrens Services,ASDA GROCERIES ONLINE,Childrens Services,-.75,"GROCERY STORES, SUPERMARKETS",2022-23Q2_PC0041
Sandwell Metropolitan Borough Council,http://www.sandwell.gov.uk/info/200202/performance_and_spending/3233/government_procurement_cards,05-Jul-2022,Childrens Services,ASDA GROCERIES ONLINE,Childrens Services,133.27,"GROCERY STORES, SUPERMARKETS",2022-23Q2_PC0042
Sandwell Metropolitan Borough Council,http://www.sandwell.gov.uk/info/200202/performance_and_spending/3233/government_procurement_cards,05-Jul-2022,Childrens Services,Amazon Prime 2Y3FL35J4,Childrens Services,7.99,DIRECT MARKETING-CONTINUITY/SUBSCRIPTION MERCHANTS,2022-23Q2_PC0043
Sandwell Metropolitan Borough Council,http://www.sandwell.gov.uk/info/200202/performance_and_spending/3233/government_procurement_cards,05-Jul-2022,Childrens Services,ASDA GROCERIES ONLINE,Childrens Services,-15.20,"GROCERY STORES, SUPERMARKETS",2022-23Q2_PC0044
Sandwell Metropolitan Borough Council,http://www.sandwell.gov.uk/info/200202/performance_and_spending/3233/government_procurement_cards,05-Jul-2022,Childrens Services,ASDA GROCERIES ONLINE,Childrens Services,128.35,"GROCERY STORES, SUPERMARKETS",2022-23Q2_PC0045
Sandwell Metropolitan Borough Council,http://www.sandwell.gov.uk/info/200202/performance_and_spending/3233/government_procurement_cards,05-Jul-2022,Childrens Services,TESCO STORES 2770,Childrens Services,154.63,"GROCERY STORES, SUPERMARKETS",2022-23Q2_PC0046
Sandwell Metropolitan Borough Council,http://www.sandwell.gov.uk/info/200202/performance_and_spending/3233/government_procurement_cards,05-Jul-2022,Childrens Services,METAL BEDS LTD,Childrens Services,540.00,"EQUIP, FURNITURE, HOME FURNSHNGS STRS (EXCPT APPL)",2022-23Q2_PC0047
Sandwell Metropolitan Borough Council,http://www.sandwell.gov.uk/info/200202/performance_and_spending/3233/government_procurement_cards,05-Jul-2022,Childrens Services,TESCO STORES 6481,Childrens Services,26.70,"GROCERY STORES, SUPERMARKETS",2022-23Q2_PC0048
Sandwell Metropolitan Borough Council,http://www.sandwell.gov.uk/info/200202/performance_and_spending/3233/government_procurement_cards,05-Jul-2022,Childrens Services,TESCO STORES 6481,Childrens Services,6.00,"GROCERY STORES, SUPERMARKETS",2022-23Q2_PC0049
Sandwell Metropolitan Borough Council,http://www.sandwell.gov.uk/info/200202/performance_and_spending/3233/government_procurement_cards,05-Jul-2022,Childrens Services,ICELAND,Childrens Services,3.50,"GROCERY STORES, SUPERMARKETS",2022-23Q2_PC0050
Sandwell Metropolitan Borough Council,http://www.sandwell.gov.uk/info/200202/performance_and_spending/3233/government_procurement_cards,05-Jul-2022,Housing & Assets Total,B&M 697 - WEST BROMWIC,Corporate Management,12.14,MISCELLANEOUS GENERAL MERCHANDISE,2022-23Q2_PC0051
Sandwell Metropolitan Borough Council,http://www.sandwell.gov.uk/info/200202/performance_and_spending/3233/government_procurement_cards,05-Jul-2022,Regeneration & Growth,Trainline.COM,Regeneration And The Economy,108.72,PASSENGER RAILWAYS,2022-23Q2_PC0052
Sandwell Metropolitan Borough Council,http://www.sandwell.gov.uk/info/200202/performance_and_spending/3233/government_procurement_cards,05-Jul-2022,Regeneration & Growth,AMZNMktplace,Regeneration And The Economy,101.98,MISCELLANEOUS AND SPECIALTY RETAIL STORES,2022-23Q2_PC0053
Sandwell Metropolitan Borough Council,http://www.sandwell.gov.uk/info/200202/performance_and_spending/3233/government_procurement_cards,05-Jul-2022,Regeneration & Growth,AMZNMKTPLACE AMAZON.CO,Regeneration And The Economy,51.70,MISCELLANEOUS AND SPECIALTY RETAIL STORES,2022-23Q2_PC0054
Sandwell Metropolitan Borough Council,http://www.sandwell.gov.uk/info/200202/performance_and_spending/3233/government_procurement_cards,05-Jul-2022,Total ASCHWB,AMZNMktplace,Total Adult Social Care,45.00,MISCELLANEOUS AND SPECIALTY RETAIL STORES,2022-23Q2_PC0055
Sandwell Metropolitan Borough Council,http://www.sandwell.gov.uk/info/200202/performance_and_spending/3233/government_procurement_cards,05-Jul-2022,Total ASCHWB,AMZNMKTPLACE AMAZON.CO,Total Adult Social Care,45.00,MISCELLANEOUS AND SPECIALTY RETAIL STORES,2022-23Q2_PC0056
Sandwell Metropolitan Borough Council,http://www.sandwell.gov.uk/info/200202/performance_and_spending/3233/government_procurement_cards,05-Jul-2022,Total ASCHWB,AMZNMktplace,Total Adult Social Care,45.00,MISCELLANEOUS AND SPECIALTY RETAIL STORES,2022-23Q2_PC0057
Sandwell Metropolitan Borough Council,http://www.sandwell.gov.uk/info/200202/performance_and_spending/3233/government_procurement_cards,05-Jul-2022,Total ASCHWB,AMZNMKTPLACE AMAZON.CO,Total Adult Social Care,45.00,MISCELLANEOUS AND SPECIALTY RETAIL STORES,2022-23Q2_PC0058
Sandwell Metropolitan Borough Council,http://www.sandwell.gov.uk/info/200202/performance_and_spending/3233/government_procurement_cards,05-Jul-2022,Total ASCHWB,AMZNMKTPLACE AMAZON.CO,Total Adult Social Care,45.00,MISCELLANEOUS AND SPECIALTY RETAIL STORES,2022-23Q2_PC0059
Sandwell Metropolitan Borough Council,http://www.sandwell.gov.uk/info/200202/performance_and_spending/3233/government_procurement_cards,05-Jul-2022,Total Borough Economy,Amazon.co.uk 2Y9H02HV4,Total Adult Social Care,11.25,DIRECT MARKETING-OTHER DIRECT MARKETERS/NOT ELSEW.,2022-23Q2_PC0060
Sandwell Metropolitan Borough Council,http://www.sandwell.gov.uk/info/200202/performance_and_spending/3233/government_procurement_cards,05-Jul-2022,Total Borough Economy,Amazon.co.uk 2Y2E39HE4,Total Adult Social Care,15.98,DIRECT MARKETING-OTHER DIRECT MARKETERS/NOT ELSEW.,2022-23Q2_PC0061
Sandwell Metropolitan Borough Council,http://www.sandwell.gov.uk/info/200202/performance_and_spending/3233/government_procurement_cards,05-Jul-2022,Total Housing Revenue Account,AMZNMktplace,Total Housing Revenue Account,11.53,MISCELLANEOUS AND SPECIALTY RETAIL STORES,2022-23Q2_PC0062
Sandwell Metropolitan Borough Council,http://www.sandwell.gov.uk/info/200202/performance_and_spending/3233/government_procurement_cards,06-Jul-2022,Total Business Strategy & Change,Amazon.co.uk 2Y7E758G4,Assistant Chief Executive (Excl SIU),18.46,DIRECT MARKETING-OTHER DIRECT MARKETERS/NOT ELSEW.,2022-23Q2_PC0063
Sandwell Metropolitan Borough Council,http://www.sandwell.gov.uk/info/200202/performance_and_spending/3233/government_procurement_cards,06-Jul-2022,Childrens Services,.,Childrens Services,167.45,RECREATIONAL AND SPORTING CAMPS,2022-23Q2_PC0064
Sandwell Metropolitan Borough Council,http://www.sandwell.gov.uk/info/200202/performance_and_spending/3233/government_procurement_cards,06-Jul-2022,Childrens Services,AMZNMktplace,Childrens Services,32.00,MISCELLANEOUS AND SPECIALTY RETAIL STORES,2022-23Q2_PC0065
Sandwell Metropolitan Borough Council,http://www.sandwell.gov.uk/info/200202/performance_and_spending/3233/government_procurement_cards,06-Jul-2022,Childrens Services,WILKO RETAIL LIMITED,Childrens Services,27.85,MISCELLANEOUS GENERAL MERCHANDISE,2022-23Q2_PC0066
Sandwell Metropolitan Borough Council,http://www.sandwell.gov.uk/info/200202/performance_and_spending/3233/government_procurement_cards,06-Jul-2022,Childrens Services,SAINSBURYS S/MKTS,Childrens Services,49.57,"GROCERY STORES, SUPERMARKETS",2022-23Q2_PC0067
Sandwell Metropolitan Borough Council,http://www.sandwell.gov.uk/info/200202/performance_and_spending/3233/government_procurement_cards,06-Jul-2022,Childrens Services,CANALSIDE HOLDINGS LIM,Childrens Services,14.00,"GROCERY STORES, SUPERMARKETS",2022-23Q2_PC0068
Sandwell Metropolitan Borough Council,http://www.sandwell.gov.uk/info/200202/performance_and_spending/3233/government_procurement_cards,06-Jul-2022,Childrens Services,ASDA GROCERIES ONLINE,Childrens Services,93.74,"GROCERY STORES, SUPERMARKETS",2022-23Q2_PC0069
Sandwell Metropolitan Borough Council,http://www.sandwell.gov.uk/info/200202/performance_and_spending/3233/government_procurement_cards,06-Jul-2022,Housing & Assets Total,AMZNMKTPLACE AMAZON.CO,Corporate Management,23.98,MISCELLANEOUS AND SPECIALTY RETAIL STORES,2022-23Q2_PC0070
Sandwell Metropolitan Borough Council,http://www.sandwell.gov.uk/info/200202/performance_and_spending/3233/government_procurement_cards,06-Jul-2022,Individual School Budgets With Inclusion,MCDONALDS,Individual School Budgets With Inclusion,132.72,FAST FOOD RESTAURANTS,2022-23Q2_PC0071
Sandwell Metropolitan Borough Council,http://www.sandwell.gov.uk/info/200202/performance_and_spending/3233/government_procurement_cards,06-Jul-2022,Regeneration & Growth,TRAVELODGE,Regeneration And The Economy,403.87,TRAVELODGE,2022-23Q2_PC0072
Sandwell Metropolitan Borough Council,http://www.sandwell.gov.uk/info/200202/performance_and_spending/3233/government_procurement_cards,06-Jul-2022,Regeneration & Growth,thetrainline.com,Regeneration And The Economy,98.43,PASSENGER RAILWAYS,2022-23Q2_PC0073
Sandwell Metropolitan Borough Council,http://www.sandwell.gov.uk/info/200202/performance_and_spending/3233/government_procurement_cards,06-Jul-2022,Total ASCHWB,SAINSBURYS.CO.UK,Total Adult Social Care,44.15,"GROCERY STORES, SUPERMARKETS",2022-23Q2_PC0074
Sandwell Metropolitan Borough Council,http://www.sandwell.gov.uk/info/200202/performance_and_spending/3233/government_procurement_cards,06-Jul-2022,Total ASCHWB,AMZNMKTPLACE AMAZON.CO,Total Adult Social Care,87.07,MISCELLANEOUS AND SPECIALTY RETAIL STORES,2022-23Q2_PC0075
Sandwell Metropolitan Borough Council,http://www.sandwell.gov.uk/info/200202/performance_and_spending/3233/government_procurement_cards,06-Jul-2022,Total ASCHWB,AMZNMktplace,Total Adult Social Care,106.82,MISCELLANEOUS AND SPECIALTY RETAIL STORES,2022-23Q2_PC0076
Sandwell Metropolitan Borough Council,http://www.sandwell.gov.uk/info/200202/performance_and_spending/3233/government_procurement_cards,06-Jul-2022,Total Borough Economy,AMZNMKTPLACE AMAZON.CO,Total Adult Social Care,207.39,MISCELLANEOUS AND SPECIALTY RETAIL STORES,2022-23Q2_PC0077
Sandwell Metropolitan Borough Council,http://www.sandwell.gov.uk/info/200202/performance_and_spending/3233/government_procurement_cards,06-Jul-2022,Total Borough Economy,WWW.OFFICETEAMCONNECT.,Total Adult Social Care,3.04,STATIONERY/OFFICE SUPPLIES/PRINTING & WRITING PAP.,2022-23Q2_PC0078
Sandwell Metropolitan Borough Council,http://www.sandwell.gov.uk/info/200202/performance_and_spending/3233/government_procurement_cards,06-Jul-2022,Total Borough Economy,AMZNMKTPLACE AMAZON.CO,Total Adult Social Care,135.72,MISCELLANEOUS AND SPECIALTY RETAIL STORES,2022-23Q2_PC0079
Sandwell Metropolitan Borough Council,http://www.sandwell.gov.uk/info/200202/performance_and_spending/3233/government_procurement_cards,06-Jul-2022,Total Borough Economy,AMZ Flashice,Total Adult Social Care,-51.98,MISCELLANEOUS AND SPECIALTY RETAIL STORES,2022-23Q2_PC0080
Sandwell Metropolitan Borough Council,http://www.sandwell.gov.uk/info/200202/performance_and_spending/3233/government_procurement_cards,06-Jul-2022,Total Borough Economy,AMZNMKTPLACE AMAZON.CO,Total Adult Social Care,111.92,MISCELLANEOUS AND SPECIALTY RETAIL STORES,2022-23Q2_PC0081
Sandwell Metropolitan Borough Council,http://www.sandwell.gov.uk/info/200202/performance_and_spending/3233/government_procurement_cards,06-Jul-2022,Total Borough Economy,TIMPSON LTD,Total Adult Social Care,8.00,MISCELLANEOUS AND SPECIALTY RETAIL STORES,2022-23Q2_PC0082
Sandwell Metropolitan Borough Council,http://www.sandwell.gov.uk/info/200202/performance_and_spending/3233/government_procurement_cards,06-Jul-2022,Total Borough Economy,Mollie  DEUBA GmbH ...,Total Adult Social Care,440.85,"EQUIP, FURNITURE, HOME FURNSHNGS STRS (EXCPT APPL)",2022-23Q2_PC0083
Sandwell Metropolitan Borough Council,http://www.sandwell.gov.uk/info/200202/performance_and_spending/3233/government_procurement_cards,06-Jul-2022,Total Borough Economy,TESCO STORES 2335,Total Adult Social Care,53.97,"GROCERY STORES, SUPERMARKETS",2022-23Q2_PC0084
Sandwell Metropolitan Borough Council,http://www.sandwell.gov.uk/info/200202/performance_and_spending/3233/government_procurement_cards,06-Jul-2022,Total Borough Economy,T J MORRIS LTD,Total Adult Social Care,4.25,HARDWARE STORES,2022-23Q2_PC0085
Sandwell Metropolitan Borough Council,http://www.sandwell.gov.uk/info/200202/performance_and_spending/3233/government_procurement_cards,07-Jul-2022,Director of Law & Governance,SAINSBURYS,Assistant Chief Executive (Excl SIU),4.79,"GROCERY STORES, SUPERMARKETS",2022-23Q2_PC0086
Sandwell Metropolitan Borough Council,http://www.sandwell.gov.uk/info/200202/performance_and_spending/3233/government_procurement_cards,07-Jul-2022,FINANCE (Inc SIU),AMZNMKTPLACE AMAZON.CO,Assistant Chief Executive (Excl SIU),19.99,MISCELLANEOUS AND SPECIALTY RETAIL STORES,2022-23Q2_PC0087
Sandwell Metropolitan Borough Council,http://www.sandwell.gov.uk/info/200202/performance_and_spending/3233/government_procurement_cards,07-Jul-2022,FINANCE (Inc SIU),TIMPSON LTD,Assistant Chief Executive (Excl SIU),12.00,MISCELLANEOUS AND SPECIALTY RETAIL STORES,2022-23Q2_PC0088
Sandwell Metropolitan Borough Council,http://www.sandwell.gov.uk/info/200202/performance_and_spending/3233/government_procurement_cards,07-Jul-2022,FINANCE (Inc SIU),KIMPTON CLOCK TOWER MA,Assistant Chief Executive (Excl SIU),149.00,"LODGING-HOTELS,MOTELS,RESORTS-NOT CLASSIFIED",2022-23Q2_PC0089
Sandwell Metropolitan Borough Council,http://www.sandwell.gov.uk/info/200202/performance_and_spending/3233/government_procurement_cards,07-Jul-2022,Childrens Services,WWW.OFFICETEAMCONNECT.,Childrens Services,92.01,STATIONERY/OFFICE SUPPLIES/PRINTING & WRITING PAP.,2022-23Q2_PC0090
Sandwell Metropolitan Borough Council,http://www.sandwell.gov.uk/info/200202/performance_and_spending/3233/government_procurement_cards,07-Jul-2022,Childrens Services,ASDA STORES LTD 5865,Childrens Services,4.05,"GROCERY STORES, SUPERMARKETS",2022-23Q2_PC0091
Sandwell Metropolitan Borough Council,http://www.sandwell.gov.uk/info/200202/performance_and_spending/3233/government_procurement_cards,07-Jul-2022,Childrens Services,AMZNMKTPLACE AMAZON.CO,Childrens Services,196.83,MISCELLANEOUS AND SPECIALTY RETAIL STORES,2022-23Q2_PC0092
Sandwell Metropolitan Borough Council,http://www.sandwell.gov.uk/info/200202/performance_and_spending/3233/government_procurement_cards,07-Jul-2022,Childrens Services,TESCO STORES 2770,Childrens Services,155.70,"GROCERY STORES, SUPERMARKETS",2022-23Q2_PC0093
Sandwell Metropolitan Borough Council,http://www.sandwell.gov.uk/info/200202/performance_and_spending/3233/government_procurement_cards,07-Jul-2022,Childrens Services,TESCO STORES 4512,Childrens Services,7.70,"GROCERY STORES, SUPERMARKETS",2022-23Q2_PC0094
Sandwell Metropolitan Borough Council,http://www.sandwell.gov.uk/info/200202/performance_and_spending/3233/government_procurement_cards,07-Jul-2022,Childrens Services,TESCO STORES 4512,Childrens Services,17.40,"GROCERY STORES, SUPERMARKETS",2022-23Q2_PC0095
Sandwell Metropolitan Borough Council,http://www.sandwell.gov.uk/info/200202/performance_and_spending/3233/government_procurement_cards,07-Jul-2022,Housing & Assets Total,TRAVELODGE,Corporate Management,468.11,TRAVELODGE,2022-23Q2_PC0096
Sandwell Metropolitan Borough Council,http://www.sandwell.gov.uk/info/200202/performance_and_spending/3233/government_procurement_cards,07-Jul-2022,Housing & Assets Total,AMZNMktplace,Corporate Management,22.77,MISCELLANEOUS AND SPECIALTY RETAIL STORES,2022-23Q2_PC0097
Sandwell Metropolitan Borough Council,http://www.sandwell.gov.uk/info/200202/performance_and_spending/3233/government_procurement_cards,07-Jul-2022,Housing & Assets Total,AMZNMKTPLACE AMAZON.CO,Corporate Management,217.69,MISCELLANEOUS AND SPECIALTY RETAIL STORES,2022-23Q2_PC0098
Sandwell Metropolitan Borough Council,http://www.sandwell.gov.uk/info/200202/performance_and_spending/3233/government_procurement_cards,07-Jul-2022,Individual School Budgets With Inclusion,ARGOS LTD,Individual School Budgets With Inclusion,162.95,DISCOUNT STORES,2022-23Q2_PC0099
Sandwell Metropolitan Borough Council,http://www.sandwell.gov.uk/info/200202/performance_and_spending/3233/government_procurement_cards,07-Jul-2022,Individual School Budgets With Inclusion,DUNCAN EDWARDS LEISURE,Individual School Budgets With Inclusion,-19.20,RECREATION SERVICES (NOT ELSEWHERE CLASSIFIED),2022-23Q2_PC0100
Sandwell Metropolitan Borough Council,http://www.sandwell.gov.uk/info/200202/performance_and_spending/3233/government_procurement_cards,07-Jul-2022,Individual School Budgets With Inclusion,DUNCAN EDWARDS LEISURE,Individual School Budgets With Inclusion,19.20,RECREATION SERVICES (NOT ELSEWHERE CLASSIFIED),2022-23Q2_PC0101
Sandwell Metropolitan Borough Council,http://www.sandwell.gov.uk/info/200202/performance_and_spending/3233/government_procurement_cards,07-Jul-2022,Regeneration & Growth,thetrainline.com,Regeneration And The Economy,247.81,PASSENGER RAILWAYS,2022-23Q2_PC0102
Sandwell Metropolitan Borough Council,http://www.sandwell.gov.uk/info/200202/performance_and_spending/3233/government_procurement_cards,07-Jul-2022,Regeneration & Growth,TIMPSON LTD,Regeneration And The Economy,8.00,MISCELLANEOUS AND SPECIALTY RETAIL STORES,2022-23Q2_PC0103
Sandwell Metropolitan Borough Council,http://www.sandwell.gov.uk/info/200202/performance_and_spending/3233/government_procurement_cards,07-Jul-2022,Regeneration & Growth,AMZNMKTPLACE AMAZON.CO,Regeneration And The Economy,30.54,MISCELLANEOUS AND SPECIALTY RETAIL STORES,2022-23Q2_PC0104
Sandwell Metropolitan Borough Council,http://www.sandwell.gov.uk/info/200202/performance_and_spending/3233/government_procurement_cards,07-Jul-2022,Total ASCHWB,ICELAND FOODS,Total Adult Social Care,103.98,"GROCERY STORES, SUPERMARKETS",2022-23Q2_PC0105
Sandwell Metropolitan Borough Council,http://www.sandwell.gov.uk/info/200202/performance_and_spending/3233/government_procurement_cards,07-Jul-2022,Total ASCHWB,ICELAND FOODS,Total Adult Social Care,-36.00,"GROCERY STORES, SUPERMARKETS",2022-23Q2_PC0106
Sandwell Metropolitan Borough Council,http://www.sandwell.gov.uk/info/200202/performance_and_spending/3233/government_procurement_cards,07-Jul-2022,Total ASCHWB,AMZNMktplace,Total Adult Social Care,10.98,MISCELLANEOUS AND SPECIALTY RETAIL STORES,2022-23Q2_PC0107
Sandwell Metropolitan Borough Council,http://www.sandwell.gov.uk/info/200202/performance_and_spending/3233/government_procurement_cards,07-Jul-2022,Total ASCHWB,AMZNMktplace,Total Adult Social Care,138.06,MISCELLANEOUS AND SPECIALTY RETAIL STORES,2022-23Q2_PC0108
Sandwell Metropolitan Borough Council,http://www.sandwell.gov.uk/info/200202/performance_and_spending/3233/government_procurement_cards,07-Jul-2022,Total ASCHWB,Amazon.co.uk 2Y7QO3D84,Total Adult Social Care,52.94,DIRECT MARKETING-OTHER DIRECT MARKETERS/NOT ELSEW.,2022-23Q2_PC0109
Sandwell Metropolitan Borough Council,http://www.sandwell.gov.uk/info/200202/performance_and_spending/3233/government_procurement_cards,07-Jul-2022,Total Borough Economy,AMZNMktplace,Total Adult Social Care,39.98,MISCELLANEOUS AND SPECIALTY RETAIL STORES,2022-23Q2_PC0110
Sandwell Metropolitan Borough Council,http://www.sandwell.gov.uk/info/200202/performance_and_spending/3233/government_procurement_cards,07-Jul-2022,Total Borough Economy,CENTRAL EVENT HIRE LTD,Total Adult Social Care,933.52,"EQUIPMENT RENTAL&LEASING SVS, FURNTURE/TOOL RENTAL",2022-23Q2_PC0111
Sandwell Metropolitan Borough Council,http://www.sandwell.gov.uk/info/200202/performance_and_spending/3233/government_procurement_cards,07-Jul-2022,Total Borough Economy,AMZNMktplace,Total Adult Social Care,327.52,MISCELLANEOUS AND SPECIALTY RETAIL STORES,2022-23Q2_PC0112
Sandwell Metropolitan Borough Council,http://www.sandwell.gov.uk/info/200202/performance_and_spending/3233/government_procurement_cards,07-Jul-2022,Total Borough Economy,VIKING UK,Total Adult Social Care,185.03,STATIONERY/OFFICE SUPPLIES/PRINTING & WRITING PAP.,2022-23Q2_PC0113
Sandwell Metropolitan Borough Council,http://www.sandwell.gov.uk/info/200202/performance_and_spending/3233/government_procurement_cards,07-Jul-2022,Total Housing Revenue Account,WWW.OFFICETEAMCONNECT.,Total Housing Revenue Account,317.41,STATIONERY/OFFICE SUPPLIES/PRINTING & WRITING PAP.,2022-23Q2_PC0114
Sandwell Metropolitan Borough Council,http://www.sandwell.gov.uk/info/200202/performance_and_spending/3233/government_procurement_cards,08-Jul-2022,Director of Law & Governance,STORE 4 MORE,Assistant Chief Executive (Excl SIU),1.00,"MISC FOOD STORE-CONVENIENCE,MRKT,SPLTY,VENDNG MACS",2022-23Q2_PC0115
Sandwell Metropolitan Borough Council,http://www.sandwell.gov.uk/info/200202/performance_and_spending/3233/government_procurement_cards,08-Jul-2022,Total Business Strategy & Change,Amazon Prime 2Y3G04K64,Assistant Chief Executive (Excl SIU),7.99,DIRECT MARKETING-CONTINUITY/SUBSCRIPTION MERCHANTS,2022-23Q2_PC0116
Sandwell Metropolitan Borough Council,http://www.sandwell.gov.uk/info/200202/performance_and_spending/3233/government_procurement_cards,08-Jul-2022,Total Business Strategy & Change,Amazon.co.uk 2Y5A227W4,Assistant Chief Executive (Excl SIU),20.42,DIRECT MARKETING-OTHER DIRECT MARKETERS/NOT ELSEW.,2022-23Q2_PC0117
Sandwell Metropolitan Borough Council,http://www.sandwell.gov.uk/info/200202/performance_and_spending/3233/government_procurement_cards,08-Jul-2022,Childrens Services,AMZNMktplace,Childrens Services,1.99,MISCELLANEOUS AND SPECIALTY RETAIL STORES,2022-23Q2_PC0118
Sandwell Metropolitan Borough Council,http://www.sandwell.gov.uk/info/200202/performance_and_spending/3233/government_procurement_cards,08-Jul-2022,Childrens Services,WWW.OFFICETEAMCONNECT.,Childrens Services,132.57,STATIONERY/OFFICE SUPPLIES/PRINTING & WRITING PAP.,2022-23Q2_PC0119
Sandwell Metropolitan Borough Council,http://www.sandwell.gov.uk/info/200202/performance_and_spending/3233/government_procurement_cards,08-Jul-2022,Childrens Services,NSPCC,Childrens Services,180.00,SCHOOLS & EDUCATIONAL SVC-NOT ELSEWHERE CLASSIFIED,2022-23Q2_PC0120
Sandwell Metropolitan Borough Council,http://www.sandwell.gov.uk/info/200202/performance_and_spending/3233/government_procurement_cards,08-Jul-2022,Childrens Services,NSPCC,Childrens Services,180.00,SCHOOLS & EDUCATIONAL SVC-NOT ELSEWHERE CLASSIFIED,2022-23Q2_PC0121
Sandwell Metropolitan Borough Council,http://www.sandwell.gov.uk/info/200202/performance_and_spending/3233/government_procurement_cards,08-Jul-2022,Childrens Services,ROYAL MAIL GROUP LTD,Childrens Services,2.85,POSTAL SERVICES-GOVERNMENT ONLY,2022-23Q2_PC0122
Sandwell Metropolitan Borough Council,http://www.sandwell.gov.uk/info/200202/performance_and_spending/3233/government_procurement_cards,08-Jul-2022,Childrens Services,BAKER ROSS,Childrens Services,75.80,"ARTIST SUPPLY STORES, CRAFT SHOPS",2022-23Q2_PC0123
Sandwell Metropolitan Borough Council,http://www.sandwell.gov.uk/info/200202/performance_and_spending/3233/government_procurement_cards,08-Jul-2022,Childrens Services,WWW.NISBETS.COM,Childrens Services,97.29,DIRECT MARKETING-CATALOG MERCHANTS,2022-23Q2_PC0124
Sandwell Metropolitan Borough Council,http://www.sandwell.gov.uk/info/200202/performance_and_spending/3233/government_procurement_cards,08-Jul-2022,Childrens Services,WM MORRISONS STORE,Childrens Services,26.90,"GROCERY STORES, SUPERMARKETS",2022-23Q2_PC0125
Sandwell Metropolitan Borough Council,http://www.sandwell.gov.uk/info/200202/performance_and_spending/3233/government_procurement_cards,08-Jul-2022,Childrens Services,ASDA,Childrens Services,40.20,"GROCERY STORES, SUPERMARKETS",2022-23Q2_PC0126
Sandwell Metropolitan Borough Council,http://www.sandwell.gov.uk/info/200202/performance_and_spending/3233/government_procurement_cards,08-Jul-2022,Housing & Assets Total,AMZ EKSATelecom-EU,Corporate Management,-19.99,MISCELLANEOUS AND SPECIALTY RETAIL STORES,2022-23Q2_PC0127
Sandwell Metropolitan Borough Council,http://www.sandwell.gov.uk/info/200202/performance_and_spending/3233/government_procurement_cards,08-Jul-2022,Total Public Health,Johns Fast Food,Public Health,8.70,FAST FOOD RESTAURANTS,2022-23Q2_PC0128
Sandwell Metropolitan Borough Council,http://www.sandwell.gov.uk/info/200202/performance_and_spending/3233/government_procurement_cards,08-Jul-2022,Total Public Health,AMZNMktplace,Public Health,208.59,MISCELLANEOUS AND SPECIALTY RETAIL STORES,2022-23Q2_PC0129
Sandwell Metropolitan Borough Council,http://www.sandwell.gov.uk/info/200202/performance_and_spending/3233/government_procurement_cards,08-Jul-2022,Total Public Health,AMZNMktplace,Public Health,106.79,MISCELLANEOUS AND SPECIALTY RETAIL STORES,2022-23Q2_PC0130
Sandwell Metropolitan Borough Council,http://www.sandwell.gov.uk/info/200202/performance_and_spending/3233/government_procurement_cards,08-Jul-2022,Regeneration & Growth,SP BIRMINGHAM2022,Regeneration And The Economy,120.00,FAMILY CLOTHING STORES,2022-23Q2_PC0131
Sandwell Metropolitan Borough Council,http://www.sandwell.gov.uk/info/200202/performance_and_spending/3233/government_procurement_cards,08-Jul-2022,Regeneration & Growth,AMZNMKTPLACE AMAZON.CO,Regeneration And The Economy,54.75,MISCELLANEOUS AND SPECIALTY RETAIL STORES,2022-23Q2_PC0132
Sandwell Metropolitan Borough Council,http://www.sandwell.gov.uk/info/200202/performance_and_spending/3233/government_procurement_cards,08-Jul-2022,Regeneration & Growth,AMZNMktplace,Regeneration And The Economy,89.32,MISCELLANEOUS AND SPECIALTY RETAIL STORES,2022-23Q2_PC0133
Sandwell Metropolitan Borough Council,http://www.sandwell.gov.uk/info/200202/performance_and_spending/3233/government_procurement_cards,08-Jul-2022,Total ASCHWB,AMZNMktplace,Total Adult Social Care,20.05,MISCELLANEOUS AND SPECIALTY RETAIL STORES,2022-23Q2_PC0134
Sandwell Metropolitan Borough Council,http://www.sandwell.gov.uk/info/200202/performance_and_spending/3233/government_procurement_cards,08-Jul-2022,Total ASCHWB,AMZNMktplace,Total Adult Social Care,24.98,MISCELLANEOUS AND SPECIALTY RETAIL STORES,2022-23Q2_PC0135
Sandwell Metropolitan Borough Council,http://www.sandwell.gov.uk/info/200202/performance_and_spending/3233/government_procurement_cards,08-Jul-2022,Total ASCHWB,AMZ Konnec,Total Adult Social Care,-7.26,MISCELLANEOUS AND SPECIALTY RETAIL STORES,2022-23Q2_PC0136
Sandwell Metropolitan Borough Council,http://www.sandwell.gov.uk/info/200202/performance_and_spending/3233/government_procurement_cards,08-Jul-2022,Total ASCHWB,AMZNMktplace,Total Adult Social Care,6.99,MISCELLANEOUS AND SPECIALTY RETAIL STORES,2022-23Q2_PC0137
Sandwell Metropolitan Borough Council,http://www.sandwell.gov.uk/info/200202/performance_and_spending/3233/government_procurement_cards,08-Jul-2022,Total ASCHWB,WWW.OFFICETEAMCONNECT.,Total Adult Social Care,84.38,STATIONERY/OFFICE SUPPLIES/PRINTING & WRITING PAP.,2022-23Q2_PC0138
Sandwell Metropolitan Borough Council,http://www.sandwell.gov.uk/info/200202/performance_and_spending/3233/government_procurement_cards,08-Jul-2022,Total ASCHWB,SQ  JOANNES FLOWERS,Total Adult Social Care,28.50,MISCELLANEOUS GENERAL MERCHANDISE,2022-23Q2_PC0139
Sandwell Metropolitan Borough Council,http://www.sandwell.gov.uk/info/200202/performance_and_spending/3233/government_procurement_cards,08-Jul-2022,Total Borough Economy,WWW.OFFICETEAMCONNECT.,Total Adult Social Care,106.50,STATIONERY/OFFICE SUPPLIES/PRINTING & WRITING PAP.,2022-23Q2_PC0140
Sandwell Metropolitan Borough Council,http://www.sandwell.gov.uk/info/200202/performance_and_spending/3233/government_procurement_cards,08-Jul-2022,Total Borough Economy,AMZNMKTPLACE AMAZON.CO,Total Adult Social Care,7.99,MISCELLANEOUS AND SPECIALTY RETAIL STORES,2022-23Q2_PC0141
Sandwell Metropolitan Borough Council,http://www.sandwell.gov.uk/info/200202/performance_and_spending/3233/government_procurement_cards,08-Jul-2022,Total Borough Economy,Amazon.co.uk 2Y6O52734,Total Adult Social Care,29.98,DIRECT MARKETING-OTHER DIRECT MARKETERS/NOT ELSEW.,2022-23Q2_PC0142
Sandwell Metropolitan Borough Council,http://www.sandwell.gov.uk/info/200202/performance_and_spending/3233/government_procurement_cards,08-Jul-2022,Total Borough Economy,WWW.OFFICETEAMCONNECT.,Total Adult Social Care,32.68,STATIONERY/OFFICE SUPPLIES/PRINTING & WRITING PAP.,2022-23Q2_PC0143
Sandwell Metropolitan Borough Council,http://www.sandwell.gov.uk/info/200202/performance_and_spending/3233/government_procurement_cards,08-Jul-2022,Total Housing Revenue Account,SANDWELL M B C,Total Housing Revenue Account,146.78,GOVERNMENT SERVICES-NOT ELSEWHERE CLASSIFIED,2022-23Q2_PC0144
Sandwell Metropolitan Borough Council,http://www.sandwell.gov.uk/info/200202/performance_and_spending/3233/government_procurement_cards,11-Jul-2022,FINANCE (Inc SIU),SAINSBURYS S/MKTS,Assistant Chief Executive (Excl SIU),4.50,"GROCERY STORES, SUPERMARKETS",2022-23Q2_PC0145
Sandwell Metropolitan Borough Council,http://www.sandwell.gov.uk/info/200202/performance_and_spending/3233/government_procurement_cards,11-Jul-2022,FINANCE (Inc SIU),Amazon Prime 2Y0H55904,Assistant Chief Executive (Excl SIU),7.99,DIRECT MARKETING-CONTINUITY/SUBSCRIPTION MERCHANTS,2022-23Q2_PC0146
Sandwell Metropolitan Borough Council,http://www.sandwell.gov.uk/info/200202/performance_and_spending/3233/government_procurement_cards,11-Jul-2022,Childrens Services,AMZNMktplace,Childrens Services,12.99,MISCELLANEOUS AND SPECIALTY RETAIL STORES,2022-23Q2_PC0147
Sandwell Metropolitan Borough Council,http://www.sandwell.gov.uk/info/200202/performance_and_spending/3233/government_procurement_cards,11-Jul-2022,Childrens Services,AMZNMktplace,Childrens Services,162.78,MISCELLANEOUS AND SPECIALTY RETAIL STORES,2022-23Q2_PC0148
Sandwell Metropolitan Borough Council,http://www.sandwell.gov.uk/info/200202/performance_and_spending/3233/government_procurement_cards,11-Jul-2022,Childrens Services,CALDMORE HARDWARE LIMI,Childrens Services,45.01,HARDWARE STORES,2022-23Q2_PC0149
Sandwell Metropolitan Borough Council,http://www.sandwell.gov.uk/info/200202/performance_and_spending/3233/government_procurement_cards,11-Jul-2022,Childrens Services,AMZNMKTPLACE AMAZON.CO,Childrens Services,36.35,MISCELLANEOUS AND SPECIALTY RETAIL STORES,2022-23Q2_PC0150
Sandwell Metropolitan Borough Council,http://www.sandwell.gov.uk/info/200202/performance_and_spending/3233/government_procurement_cards,11-Jul-2022,Childrens Services,AMZNMKTPLACE AMAZON.CO,Childrens Services,50.98,MISCELLANEOUS AND SPECIALTY RETAIL STORES,2022-23Q2_PC0151
Sandwell Metropolitan Borough Council,http://www.sandwell.gov.uk/info/200202/performance_and_spending/3233/government_procurement_cards,11-Jul-2022,Childrens Services,SPACEHOPPAS PLAYZONE,Childrens Services,76.00,"GAME, TOY, AND HOBBY SHOPS",2022-23Q2_PC0152
Sandwell Metropolitan Borough Council,http://www.sandwell.gov.uk/info/200202/performance_and_spending/3233/government_procurement_cards,11-Jul-2022,Childrens Services,AMZNMktplace,Childrens Services,20.90,MISCELLANEOUS AND SPECIALTY RETAIL STORES,2022-23Q2_PC0153
Sandwell Metropolitan Borough Council,http://www.sandwell.gov.uk/info/200202/performance_and_spending/3233/government_procurement_cards,11-Jul-2022,Childrens Services,AMZNMktplace,Childrens Services,44.19,MISCELLANEOUS AND SPECIALTY RETAIL STORES,2022-23Q2_PC0154
Sandwell Metropolitan Borough Council,http://www.sandwell.gov.uk/info/200202/performance_and_spending/3233/government_procurement_cards,11-Jul-2022,Childrens Services,AMZNMktplace,Childrens Services,23.98,MISCELLANEOUS AND SPECIALTY RETAIL STORES,2022-23Q2_PC0155
Sandwell Metropolitan Borough Council,http://www.sandwell.gov.uk/info/200202/performance_and_spending/3233/government_procurement_cards,11-Jul-2022,Childrens Services,ALDI STORES,Childrens Services,13.97,"GROCERY STORES, SUPERMARKETS",2022-23Q2_PC0156
Sandwell Metropolitan Borough Council,http://www.sandwell.gov.uk/info/200202/performance_and_spending/3233/government_procurement_cards,11-Jul-2022,Housing & Assets Total,AMZNMktplace,Corporate Management,149.99,MISCELLANEOUS AND SPECIALTY RETAIL STORES,2022-23Q2_PC0157
Sandwell Metropolitan Borough Council,http://www.sandwell.gov.uk/info/200202/performance_and_spending/3233/government_procurement_cards,11-Jul-2022,Housing & Assets Total,AMZNMktplace,Corporate Management,16.98,MISCELLANEOUS AND SPECIALTY RETAIL STORES,2022-23Q2_PC0158
Sandwell Metropolitan Borough Council,http://www.sandwell.gov.uk/info/200202/performance_and_spending/3233/government_procurement_cards,11-Jul-2022,Housing & Assets Total,AMZNMktplace,Corporate Management,16.99,MISCELLANEOUS AND SPECIALTY RETAIL STORES,2022-23Q2_PC0159
Sandwell Metropolitan Borough Council,http://www.sandwell.gov.uk/info/200202/performance_and_spending/3233/government_procurement_cards,11-Jul-2022,Housing & Assets Total,AMZNMktplace,Corporate Management,13.99,MISCELLANEOUS AND SPECIALTY RETAIL STORES,2022-23Q2_PC0160
Sandwell Metropolitan Borough Council,http://www.sandwell.gov.uk/info/200202/performance_and_spending/3233/government_procurement_cards,11-Jul-2022,Housing & Assets Total,TRAVELODGE,Corporate Management,303.91,TRAVELODGE,2022-23Q2_PC0161
Sandwell Metropolitan Borough Council,http://www.sandwell.gov.uk/info/200202/performance_and_spending/3233/government_procurement_cards,11-Jul-2022,Individual School Budgets With Inclusion,AMZNMktplace,Individual School Budgets With Inclusion,32.72,MISCELLANEOUS AND SPECIALTY RETAIL STORES,2022-23Q2_PC0162
Sandwell Metropolitan Borough Council,http://www.sandwell.gov.uk/info/200202/performance_and_spending/3233/government_procurement_cards,11-Jul-2022,Individual School Budgets With Inclusion,AMZNMktplace,Individual School Budgets With Inclusion,17.98,MISCELLANEOUS AND SPECIALTY RETAIL STORES,2022-23Q2_PC0163
Sandwell Metropolitan Borough Council,http://www.sandwell.gov.uk/info/200202/performance_and_spending/3233/government_procurement_cards,11-Jul-2022,Individual School Budgets With Inclusion,AMZNMktplace,Individual School Budgets With Inclusion,19.12,MISCELLANEOUS AND SPECIALTY RETAIL STORES,2022-23Q2_PC0164
Sandwell Metropolitan Borough Council,http://www.sandwell.gov.uk/info/200202/performance_and_spending/3233/government_procurement_cards,11-Jul-2022,Total Public Health,Domino s Pizza,Public Health,78.95,"EATING PLACES, RESTAURANTS",2022-23Q2_PC0165
Sandwell Metropolitan Borough Council,http://www.sandwell.gov.uk/info/200202/performance_and_spending/3233/government_procurement_cards,11-Jul-2022,Total Public Health,Vistaprint,Public Health,153.75,BUSINESS SERVICES-NOT ELSEWHERE CLASSIFIED,2022-23Q2_PC0166
Sandwell Metropolitan Borough Council,http://www.sandwell.gov.uk/info/200202/performance_and_spending/3233/government_procurement_cards,11-Jul-2022,Regeneration & Growth,AMZNMktplace,Regeneration And The Economy,81.61,MISCELLANEOUS AND SPECIALTY RETAIL STORES,2022-23Q2_PC0167
Sandwell Metropolitan Borough Council,http://www.sandwell.gov.uk/info/200202/performance_and_spending/3233/government_procurement_cards,11-Jul-2022,Regeneration & Growth,AMZNMKTPLACE AMAZON.CO,Regeneration And The Economy,25.99,MISCELLANEOUS AND SPECIALTY RETAIL STORES,2022-23Q2_PC0168
Sandwell Metropolitan Borough Council,http://www.sandwell.gov.uk/info/200202/performance_and_spending/3233/government_procurement_cards,11-Jul-2022,Total ASCHWB,AMZNMktplace,Total Adult Social Care,349.00,MISCELLANEOUS AND SPECIALTY RETAIL STORES,2022-23Q2_PC0169
Sandwell Metropolitan Borough Council,http://www.sandwell.gov.uk/info/200202/performance_and_spending/3233/government_procurement_cards,11-Jul-2022,Total ASCHWB,AMZNMktplace,Total Adult Social Care,61.98,MISCELLANEOUS AND SPECIALTY RETAIL STORES,2022-23Q2_PC0170
Sandwell Metropolitan Borough Council,http://www.sandwell.gov.uk/info/200202/performance_and_spending/3233/government_procurement_cards,11-Jul-2022,Total ASCHWB,Amazon Prime 2Y64T1IF4,Total Adult Social Care,7.99,DIRECT MARKETING-CONTINUITY/SUBSCRIPTION MERCHANTS,2022-23Q2_PC0171
Sandwell Metropolitan Borough Council,http://www.sandwell.gov.uk/info/200202/performance_and_spending/3233/government_procurement_cards,11-Jul-2022,Total ASCHWB,WWW.SCREWFIX.COM,Total Adult Social Care,36.96,"BUILDING MATERIALS, LUMBER STORES",2022-23Q2_PC0172
Sandwell Metropolitan Borough Council,http://www.sandwell.gov.uk/info/200202/performance_and_spending/3233/government_procurement_cards,11-Jul-2022,Total ASCHWB,AMZNMKTPLACE AMAZON.CO,Total Adult Social Care,107.94,MISCELLANEOUS AND SPECIALTY RETAIL STORES,2022-23Q2_PC0173
Sandwell Metropolitan Borough Council,http://www.sandwell.gov.uk/info/200202/performance_and_spending/3233/government_procurement_cards,11-Jul-2022,Total ASCHWB,Amazon.co.uk S448B9Y05,Total Adult Social Care,22.99,DIRECT MARKETING-OTHER DIRECT MARKETERS/NOT ELSEW.,2022-23Q2_PC0174
Sandwell Metropolitan Borough Council,http://www.sandwell.gov.uk/info/200202/performance_and_spending/3233/government_procurement_cards,11-Jul-2022,Total Borough Economy,thetrainline.com,Total Adult Social Care,23.32,PASSENGER RAILWAYS,2022-23Q2_PC0175
Sandwell Metropolitan Borough Council,http://www.sandwell.gov.uk/info/200202/performance_and_spending/3233/government_procurement_cards,11-Jul-2022,Total Borough Economy,WWW.OFFICETEAMCONNECT.,Total Adult Social Care,52.36,STATIONERY/OFFICE SUPPLIES/PRINTING & WRITING PAP.,2022-23Q2_PC0176
Sandwell Metropolitan Borough Council,http://www.sandwell.gov.uk/info/200202/performance_and_spending/3233/government_procurement_cards,11-Jul-2022,Total Borough Economy,CATERING24,Total Adult Social Care,175.70,MISCELLANEOUS AND SPECIALTY RETAIL STORES,2022-23Q2_PC0177
Sandwell Metropolitan Borough Council,http://www.sandwell.gov.uk/info/200202/performance_and_spending/3233/government_procurement_cards,11-Jul-2022,Total Borough Economy,AMZNMktplace,Total Adult Social Care,159.92,MISCELLANEOUS AND SPECIALTY RETAIL STORES,2022-23Q2_PC0178
Sandwell Metropolitan Borough Council,http://www.sandwell.gov.uk/info/200202/performance_and_spending/3233/government_procurement_cards,11-Jul-2022,Total Borough Economy,B&Q LTD,Total Adult Social Care,18.74,"BUILDING MATERIALS, LUMBER STORES",2022-23Q2_PC0179
Sandwell Metropolitan Borough Council,http://www.sandwell.gov.uk/info/200202/performance_and_spending/3233/government_procurement_cards,11-Jul-2022,Total Borough Economy,POUNDLAND LTD 1729,Total Adult Social Care,27.50,DISCOUNT STORES,2022-23Q2_PC0180
Sandwell Metropolitan Borough Council,http://www.sandwell.gov.uk/info/200202/performance_and_spending/3233/government_procurement_cards,11-Jul-2022,Total Borough Economy,AMZNMktplace,Total Adult Social Care,10.98,MISCELLANEOUS AND SPECIALTY RETAIL STORES,2022-23Q2_PC0181
Sandwell Metropolitan Borough Council,http://www.sandwell.gov.uk/info/200202/performance_and_spending/3233/government_procurement_cards,12-Jul-2022,FINANCE (Inc SIU),WORCESTERSHIRE COU,Assistant Chief Executive (Excl SIU),33.00,GOVERNMENT SERVICES-NOT ELSEWHERE CLASSIFIED,2022-23Q2_PC0182
Sandwell Metropolitan Borough Council,http://www.sandwell.gov.uk/info/200202/performance_and_spending/3233/government_procurement_cards,12-Jul-2022,Total Business Strategy & Change,VIKING UK,Assistant Chief Executive (Excl SIU),98.48,STATIONERY/OFFICE SUPPLIES/PRINTING & WRITING PAP.,2022-23Q2_PC0183
Sandwell Metropolitan Borough Council,http://www.sandwell.gov.uk/info/200202/performance_and_spending/3233/government_procurement_cards,12-Jul-2022,Childrens Services,SQ  STUMPS,Childrens Services,160.00,RECREATION SERVICES (NOT ELSEWHERE CLASSIFIED),2022-23Q2_PC0184
Sandwell Metropolitan Borough Council,http://www.sandwell.gov.uk/info/200202/performance_and_spending/3233/government_procurement_cards,12-Jul-2022,Childrens Services,BEEBYS BUBBLES,Childrens Services,84.00,"CLEANING, GARMENT, AND LAUNDRY SERVICES",2022-23Q2_PC0185
Sandwell Metropolitan Borough Council,http://www.sandwell.gov.uk/info/200202/performance_and_spending/3233/government_procurement_cards,12-Jul-2022,Childrens Services,ASDA GROCERIES ONLINE,Childrens Services,88.96,"GROCERY STORES, SUPERMARKETS",2022-23Q2_PC0186
Sandwell Metropolitan Borough Council,http://www.sandwell.gov.uk/info/200202/performance_and_spending/3233/government_procurement_cards,12-Jul-2022,Childrens Services,TESCO STORES 2770,Childrens Services,133.04,"GROCERY STORES, SUPERMARKETS",2022-23Q2_PC0187
Sandwell Metropolitan Borough Council,http://www.sandwell.gov.uk/info/200202/performance_and_spending/3233/government_procurement_cards,12-Jul-2022,Childrens Services,ASDA GROCERIES ONLINE,Childrens Services,-38.20,"GROCERY STORES, SUPERMARKETS",2022-23Q2_PC0188
Sandwell Metropolitan Borough Council,http://www.sandwell.gov.uk/info/200202/performance_and_spending/3233/government_procurement_cards,12-Jul-2022,Childrens Services,ASDA GROCERIES ONLINE,Childrens Services,160.95,"GROCERY STORES, SUPERMARKETS",2022-23Q2_PC0189
Sandwell Metropolitan Borough Council,http://www.sandwell.gov.uk/info/200202/performance_and_spending/3233/government_procurement_cards,12-Jul-2022,Childrens Services,ASDA STORES 4253,Childrens Services,3.20,"GROCERY STORES, SUPERMARKETS",2022-23Q2_PC0190
Sandwell Metropolitan Borough Council,http://www.sandwell.gov.uk/info/200202/performance_and_spending/3233/government_procurement_cards,12-Jul-2022,Housing & Assets Total,AMZNMktplace,Corporate Management,7.90,MISCELLANEOUS AND SPECIALTY RETAIL STORES,2022-23Q2_PC0191
Sandwell Metropolitan Borough Council,http://www.sandwell.gov.uk/info/200202/performance_and_spending/3233/government_procurement_cards,12-Jul-2022,Housing & Assets Total,AMZNMktplace,Corporate Management,32.99,MISCELLANEOUS AND SPECIALTY RETAIL STORES,2022-23Q2_PC0192
Sandwell Metropolitan Borough Council,http://www.sandwell.gov.uk/info/200202/performance_and_spending/3233/government_procurement_cards,12-Jul-2022,Housing & Assets Total,Amazon.co.uk JB7IT9U05,Corporate Management,17.36,DIRECT MARKETING-OTHER DIRECT MARKETERS/NOT ELSEW.,2022-23Q2_PC0193
Sandwell Metropolitan Borough Council,http://www.sandwell.gov.uk/info/200202/performance_and_spending/3233/government_procurement_cards,12-Jul-2022,Housing & Assets Total,AMZNMKTPLACE AMAZON.CO,Corporate Management,13.59,MISCELLANEOUS AND SPECIALTY RETAIL STORES,2022-23Q2_PC0194
Sandwell Metropolitan Borough Council,http://www.sandwell.gov.uk/info/200202/performance_and_spending/3233/government_procurement_cards,12-Jul-2022,Housing & Assets Total,AMZNMktplace,Corporate Management,7.98,MISCELLANEOUS AND SPECIALTY RETAIL STORES,2022-23Q2_PC0195
Sandwell Metropolitan Borough Council,http://www.sandwell.gov.uk/info/200202/performance_and_spending/3233/government_procurement_cards,12-Jul-2022,Housing & Assets Total,Amazon.co.uk 755UK8JV5,Corporate Management,26.99,DIRECT MARKETING-OTHER DIRECT MARKETERS/NOT ELSEW.,2022-23Q2_PC0196
Sandwell Metropolitan Borough Council,http://www.sandwell.gov.uk/info/200202/performance_and_spending/3233/government_procurement_cards,12-Jul-2022,Housing & Assets Total,AMZNMktplace,Corporate Management,32.99,MISCELLANEOUS AND SPECIALTY RETAIL STORES,2022-23Q2_PC0197
Sandwell Metropolitan Borough Council,http://www.sandwell.gov.uk/info/200202/performance_and_spending/3233/government_procurement_cards,12-Jul-2022,Housing & Assets Total,Amazon.co.uk M819R9AQ5,Corporate Management,10.00,DIRECT MARKETING-OTHER DIRECT MARKETERS/NOT ELSEW.,2022-23Q2_PC0198
Sandwell Metropolitan Borough Council,http://www.sandwell.gov.uk/info/200202/performance_and_spending/3233/government_procurement_cards,12-Jul-2022,Housing & Assets Total,AMZNMktplace,Corporate Management,32.99,MISCELLANEOUS AND SPECIALTY RETAIL STORES,2022-23Q2_PC0199
Sandwell Metropolitan Borough Council,http://www.sandwell.gov.uk/info/200202/performance_and_spending/3233/government_procurement_cards,12-Jul-2022,Housing & Assets Total,Amazon.co.uk WN0MH53E5,Corporate Management,10.00,DIRECT MARKETING-OTHER DIRECT MARKETERS/NOT ELSEW.,2022-23Q2_PC0200
Sandwell Metropolitan Borough Council,http://www.sandwell.gov.uk/info/200202/performance_and_spending/3233/government_procurement_cards,12-Jul-2022,Housing & Assets Total,AMZNMktplace,Corporate Management,31.98,MISCELLANEOUS AND SPECIALTY RETAIL STORES,2022-23Q2_PC0201
Sandwell Metropolitan Borough Council,http://www.sandwell.gov.uk/info/200202/performance_and_spending/3233/government_procurement_cards,12-Jul-2022,Housing & Assets Total,AMZNMktplace,Corporate Management,12.99,MISCELLANEOUS AND SPECIALTY RETAIL STORES,2022-23Q2_PC0202
Sandwell Metropolitan Borough Council,http://www.sandwell.gov.uk/info/200202/performance_and_spending/3233/government_procurement_cards,12-Jul-2022,Housing & Assets Total,AMZNMktplace,Corporate Management,22.99,MISCELLANEOUS AND SPECIALTY RETAIL STORES,2022-23Q2_PC0203
Sandwell Metropolitan Borough Council,http://www.sandwell.gov.uk/info/200202/performance_and_spending/3233/government_procurement_cards,12-Jul-2022,Housing & Assets Total,Amazon.co.uk 4L5A47E55,Corporate Management,6.49,DIRECT MARKETING-OTHER DIRECT MARKETERS/NOT ELSEW.,2022-23Q2_PC0204
Sandwell Metropolitan Borough Council,http://www.sandwell.gov.uk/info/200202/performance_and_spending/3233/government_procurement_cards,12-Jul-2022,Housing & Assets Total,AMZNMktplace,Corporate Management,16.99,MISCELLANEOUS AND SPECIALTY RETAIL STORES,2022-23Q2_PC0205
Sandwell Metropolitan Borough Council,http://www.sandwell.gov.uk/info/200202/performance_and_spending/3233/government_procurement_cards,12-Jul-2022,Housing & Assets Total,AMZNMKTPLACE AMAZON.CO,Corporate Management,9.37,MISCELLANEOUS AND SPECIALTY RETAIL STORES,2022-23Q2_PC0206
Sandwell Metropolitan Borough Council,http://www.sandwell.gov.uk/info/200202/performance_and_spending/3233/government_procurement_cards,12-Jul-2022,Total ASCHWB,eBay O 02-08853-41495,Total Adult Social Care,18.99,DEPARTMENT STORES,2022-23Q2_PC0207
Sandwell Metropolitan Borough Council,http://www.sandwell.gov.uk/info/200202/performance_and_spending/3233/government_procurement_cards,12-Jul-2022,Total ASCHWB,AMZNMktplace,Total Adult Social Care,57.98,MISCELLANEOUS AND SPECIALTY RETAIL STORES,2022-23Q2_PC0208
Sandwell Metropolitan Borough Council,http://www.sandwell.gov.uk/info/200202/performance_and_spending/3233/government_procurement_cards,12-Jul-2022,Total ASCHWB,AMZNMKTPLACE AMAZON.CO,Total Adult Social Care,83.44,MISCELLANEOUS AND SPECIALTY RETAIL STORES,2022-23Q2_PC0209
Sandwell Metropolitan Borough Council,http://www.sandwell.gov.uk/info/200202/performance_and_spending/3233/government_procurement_cards,12-Jul-2022,Total ASCHWB,WWW.OFFICETEAMCONNECT.,Total Adult Social Care,42.07,STATIONERY/OFFICE SUPPLIES/PRINTING & WRITING PAP.,2022-23Q2_PC0210
Sandwell Metropolitan Borough Council,http://www.sandwell.gov.uk/info/200202/performance_and_spending/3233/government_procurement_cards,12-Jul-2022,Total Borough Economy,FUTURE GARMENTS LTD,Total Adult Social Care,"1,000.00",MEN'S/WOMEN'S/CHILDREN'S UNIFORMS/COMMERCIAL CLOTH,2022-23Q2_PC0211
Sandwell Metropolitan Borough Council,http://www.sandwell.gov.uk/info/200202/performance_and_spending/3233/government_procurement_cards,12-Jul-2022,Total Borough Economy,FUTURE GARMENTS LTD,Total Adult Social Care,"1,000.00",MEN'S/WOMEN'S/CHILDREN'S UNIFORMS/COMMERCIAL CLOTH,2022-23Q2_PC0212
Sandwell Metropolitan Borough Council,http://www.sandwell.gov.uk/info/200202/performance_and_spending/3233/government_procurement_cards,12-Jul-2022,Total Borough Economy,FUTURE GARMENTS LTD,Total Adult Social Care,"1,000.00",MEN'S/WOMEN'S/CHILDREN'S UNIFORMS/COMMERCIAL CLOTH,2022-23Q2_PC0213
Sandwell Metropolitan Borough Council,http://www.sandwell.gov.uk/info/200202/performance_and_spending/3233/government_procurement_cards,12-Jul-2022,Total Borough Economy,FUTURE GARMENTS LTD,Total Adult Social Care,261.60,MEN'S/WOMEN'S/CHILDREN'S UNIFORMS/COMMERCIAL CLOTH,2022-23Q2_PC0214
Sandwell Metropolitan Borough Council,http://www.sandwell.gov.uk/info/200202/performance_and_spending/3233/government_procurement_cards,12-Jul-2022,Total Borough Economy,AMZNMktplace,Total Adult Social Care,25.67,MISCELLANEOUS AND SPECIALTY RETAIL STORES,2022-23Q2_PC0215
Sandwell Metropolitan Borough Council,http://www.sandwell.gov.uk/info/200202/performance_and_spending/3233/government_procurement_cards,12-Jul-2022,Total Borough Economy,Avansas,Total Adult Social Care,31.18,DEPARTMENT STORES,2022-23Q2_PC0216
Sandwell Metropolitan Borough Council,http://www.sandwell.gov.uk/info/200202/performance_and_spending/3233/government_procurement_cards,12-Jul-2022,Total Borough Economy,Amazon.co.uk 9O98R16U5,Total Adult Social Care,22.00,DIRECT MARKETING-OTHER DIRECT MARKETERS/NOT ELSEW.,2022-23Q2_PC0217
Sandwell Metropolitan Borough Council,http://www.sandwell.gov.uk/info/200202/performance_and_spending/3233/government_procurement_cards,12-Jul-2022,Total Borough Economy,WWW.OFFICETEAMCONNECT.,Total Adult Social Care,97.27,STATIONERY/OFFICE SUPPLIES/PRINTING & WRITING PAP.,2022-23Q2_PC0218
Sandwell Metropolitan Borough Council,http://www.sandwell.gov.uk/info/200202/performance_and_spending/3233/government_procurement_cards,13-Jul-2022,Total Business Strategy & Change,AMZNMKTPLACE AMAZON.CO,Assistant Chief Executive (Excl SIU),129.11,MISCELLANEOUS AND SPECIALTY RETAIL STORES,2022-23Q2_PC0219
Sandwell Metropolitan Borough Council,http://www.sandwell.gov.uk/info/200202/performance_and_spending/3233/government_procurement_cards,13-Jul-2022,Childrens Services,AMZNMktplace,Childrens Services,246.65,MISCELLANEOUS AND SPECIALTY RETAIL STORES,2022-23Q2_PC0220
Sandwell Metropolitan Borough Council,http://www.sandwell.gov.uk/info/200202/performance_and_spending/3233/government_procurement_cards,13-Jul-2022,Childrens Services,Amazon Prime LK8B259D5,Childrens Services,.99,DIRECT MARKETING-CONTINUITY/SUBSCRIPTION MERCHANTS,2022-23Q2_PC0221
Sandwell Metropolitan Borough Council,http://www.sandwell.gov.uk/info/200202/performance_and_spending/3233/government_procurement_cards,13-Jul-2022,Childrens Services,Amazon.co.uk OV9SB6995,Childrens Services,59.05,DIRECT MARKETING-OTHER DIRECT MARKETERS/NOT ELSEW.,2022-23Q2_PC0222
Sandwell Metropolitan Borough Council,http://www.sandwell.gov.uk/info/200202/performance_and_spending/3233/government_procurement_cards,13-Jul-2022,Childrens Services,Amazon.co.uk JZ8539685,Childrens Services,13.19,DIRECT MARKETING-OTHER DIRECT MARKETERS/NOT ELSEW.,2022-23Q2_PC0223
Sandwell Metropolitan Borough Council,http://www.sandwell.gov.uk/info/200202/performance_and_spending/3233/government_procurement_cards,13-Jul-2022,Childrens Services,Amazon.co.uk LD4AO8HL5,Childrens Services,85.30,DIRECT MARKETING-OTHER DIRECT MARKETERS/NOT ELSEW.,2022-23Q2_PC0224
Sandwell Metropolitan Borough Council,http://www.sandwell.gov.uk/info/200202/performance_and_spending/3233/government_procurement_cards,13-Jul-2022,Childrens Services,Amazon.co.uk 131OJ8UJ5,Childrens Services,119.42,DIRECT MARKETING-OTHER DIRECT MARKETERS/NOT ELSEW.,2022-23Q2_PC0225
Sandwell Metropolitan Borough Council,http://www.sandwell.gov.uk/info/200202/performance_and_spending/3233/government_procurement_cards,13-Jul-2022,Childrens Services,Amazon.co.uk 5H5AX1WW5,Childrens Services,7.00,DIRECT MARKETING-OTHER DIRECT MARKETERS/NOT ELSEW.,2022-23Q2_PC0226
Sandwell Metropolitan Borough Council,http://www.sandwell.gov.uk/info/200202/performance_and_spending/3233/government_procurement_cards,13-Jul-2022,Childrens Services,TESCO STORES 2770,Childrens Services,25.68,"GROCERY STORES, SUPERMARKETS",2022-23Q2_PC0227
Sandwell Metropolitan Borough Council,http://www.sandwell.gov.uk/info/200202/performance_and_spending/3233/government_procurement_cards,13-Jul-2022,Childrens Services,TESCO STORES 5852,Childrens Services,14.30,"GROCERY STORES, SUPERMARKETS",2022-23Q2_PC0228
Sandwell Metropolitan Borough Council,http://www.sandwell.gov.uk/info/200202/performance_and_spending/3233/government_procurement_cards,13-Jul-2022,Childrens Services,PEIRIANWAITH EIFIONYDD,Childrens Services,530.69,MISC/AUTO/AIRCRAFT/FARM EQUIP NOT ELSEWHERE CLASS,2022-23Q2_PC0229
Sandwell Metropolitan Borough Council,http://www.sandwell.gov.uk/info/200202/performance_and_spending/3233/government_procurement_cards,13-Jul-2022,Childrens Services,PEIRIANWAITH EIFIONYDD,Childrens Services,253.20,MISC/AUTO/AIRCRAFT/FARM EQUIP NOT ELSEWHERE CLASS,2022-23Q2_PC0230
Sandwell Metropolitan Borough Council,http://www.sandwell.gov.uk/info/200202/performance_and_spending/3233/government_procurement_cards,13-Jul-2022,Childrens Services,WWW.NISBETS.COM,Childrens Services,98.82,DIRECT MARKETING-CATALOG MERCHANTS,2022-23Q2_PC0231
Sandwell Metropolitan Borough Council,http://www.sandwell.gov.uk/info/200202/performance_and_spending/3233/government_procurement_cards,13-Jul-2022,Childrens Services,AMZNMKTPLACE AMAZON.CO,Childrens Services,29.99,MISCELLANEOUS AND SPECIALTY RETAIL STORES,2022-23Q2_PC0232
Sandwell Metropolitan Borough Council,http://www.sandwell.gov.uk/info/200202/performance_and_spending/3233/government_procurement_cards,13-Jul-2022,Childrens Services,Go Outdoors Retail Lim,Childrens Services,20.95,"SPORTS APPAREL, RIDING APPAREL STORES",2022-23Q2_PC0233
Sandwell Metropolitan Borough Council,http://www.sandwell.gov.uk/info/200202/performance_and_spending/3233/government_procurement_cards,13-Jul-2022,Childrens Services,AMZNMktplace,Childrens Services,71.98,MISCELLANEOUS AND SPECIALTY RETAIL STORES,2022-23Q2_PC0234
Sandwell Metropolitan Borough Council,http://www.sandwell.gov.uk/info/200202/performance_and_spending/3233/government_procurement_cards,13-Jul-2022,Childrens Services,CARRIER BAG SHOP,Childrens Services,90.00,NONDURABLE GOODS (NOT ELSEWHERE CLASSIFIED),2022-23Q2_PC0235
Sandwell Metropolitan Borough Council,http://www.sandwell.gov.uk/info/200202/performance_and_spending/3233/government_procurement_cards,13-Jul-2022,Childrens Services,Amazon.co.uk WS1IQ2GB5,Childrens Services,316.95,DIRECT MARKETING-OTHER DIRECT MARKETERS/NOT ELSEW.,2022-23Q2_PC0236
Sandwell Metropolitan Borough Council,http://www.sandwell.gov.uk/info/200202/performance_and_spending/3233/government_procurement_cards,13-Jul-2022,Childrens Services,LIDL GB PORTHMADOG,Childrens Services,3.64,"GROCERY STORES, SUPERMARKETS",2022-23Q2_PC0237
Sandwell Metropolitan Borough Council,http://www.sandwell.gov.uk/info/200202/performance_and_spending/3233/government_procurement_cards,13-Jul-2022,Housing & Assets Total,TRAVELODGE,Corporate Management,507.88,TRAVELODGE,2022-23Q2_PC0238
Sandwell Metropolitan Borough Council,http://www.sandwell.gov.uk/info/200202/performance_and_spending/3233/government_procurement_cards,13-Jul-2022,Housing & Assets Total,AMZNMKTPLACE AMAZON.CO,Corporate Management,24.99,MISCELLANEOUS AND SPECIALTY RETAIL STORES,2022-23Q2_PC0239
Sandwell Metropolitan Borough Council,http://www.sandwell.gov.uk/info/200202/performance_and_spending/3233/government_procurement_cards,13-Jul-2022,Housing & Assets Total,Amazon.co.uk V284A3N05,Corporate Management,17.99,DIRECT MARKETING-OTHER DIRECT MARKETERS/NOT ELSEW.,2022-23Q2_PC0240
Sandwell Metropolitan Borough Council,http://www.sandwell.gov.uk/info/200202/performance_and_spending/3233/government_procurement_cards,13-Jul-2022,Housing & Assets Total,AMZNMktplace,Corporate Management,49.99,MISCELLANEOUS AND SPECIALTY RETAIL STORES,2022-23Q2_PC0241
Sandwell Metropolitan Borough Council,http://www.sandwell.gov.uk/info/200202/performance_and_spending/3233/government_procurement_cards,13-Jul-2022,Housing & Assets Total,AMZNMKTPLACE AMAZON.CO,Corporate Management,23.97,MISCELLANEOUS AND SPECIALTY RETAIL STORES,2022-23Q2_PC0242
Sandwell Metropolitan Borough Council,http://www.sandwell.gov.uk/info/200202/performance_and_spending/3233/government_procurement_cards,13-Jul-2022,Housing & Assets Total,AMZNMKTPLACE AMAZON.CO,Corporate Management,64.99,MISCELLANEOUS AND SPECIALTY RETAIL STORES,2022-23Q2_PC0243
Sandwell Metropolitan Borough Council,http://www.sandwell.gov.uk/info/200202/performance_and_spending/3233/government_procurement_cards,13-Jul-2022,Housing & Assets Total,AMZNMKTPLACE AMAZON.CO,Corporate Management,10.99,MISCELLANEOUS AND SPECIALTY RETAIL STORES,2022-23Q2_PC0244
Sandwell Metropolitan Borough Council,http://www.sandwell.gov.uk/info/200202/performance_and_spending/3233/government_procurement_cards,13-Jul-2022,Housing & Assets Total,AMZNMktplace,Corporate Management,358.80,MISCELLANEOUS AND SPECIALTY RETAIL STORES,2022-23Q2_PC0245
Sandwell Metropolitan Borough Council,http://www.sandwell.gov.uk/info/200202/performance_and_spending/3233/government_procurement_cards,13-Jul-2022,Total Public Health,AMZNMktplace,Public Health,20.97,MISCELLANEOUS AND SPECIALTY RETAIL STORES,2022-23Q2_PC0246
Sandwell Metropolitan Borough Council,http://www.sandwell.gov.uk/info/200202/performance_and_spending/3233/government_procurement_cards,13-Jul-2022,Total Public Health,AMZNMKTPLACE AMAZON.CO,Public Health,24.97,MISCELLANEOUS AND SPECIALTY RETAIL STORES,2022-23Q2_PC0247
Sandwell Metropolitan Borough Council,http://www.sandwell.gov.uk/info/200202/performance_and_spending/3233/government_procurement_cards,13-Jul-2022,Total Public Health,TESCO STORES 2335,Public Health,10.00,"GROCERY STORES, SUPERMARKETS",2022-23Q2_PC0248
Sandwell Metropolitan Borough Council,http://www.sandwell.gov.uk/info/200202/performance_and_spending/3233/government_procurement_cards,13-Jul-2022,Total ASCHWB,AMZ NotAnotherOne Inc.,Total Adult Social Care,-349.00,MISCELLANEOUS AND SPECIALTY RETAIL STORES,2022-23Q2_PC0249
Sandwell Metropolitan Borough Council,http://www.sandwell.gov.uk/info/200202/performance_and_spending/3233/government_procurement_cards,13-Jul-2022,Total ASCHWB,HOLIDAY INNS,Total Adult Social Care,"1,000.00",HOLIDAY INNS,2022-23Q2_PC0250
Sandwell Metropolitan Borough Council,http://www.sandwell.gov.uk/info/200202/performance_and_spending/3233/government_procurement_cards,13-Jul-2022,Total ASCHWB,HOLIDAY INNS,Total Adult Social Care,373.84,HOLIDAY INNS,2022-23Q2_PC0251
Sandwell Metropolitan Borough Council,http://www.sandwell.gov.uk/info/200202/performance_and_spending/3233/government_procurement_cards,13-Jul-2022,Total ASCHWB,AMZNMKTPLACE AMAZON.CO,Total Adult Social Care,17.48,MISCELLANEOUS AND SPECIALTY RETAIL STORES,2022-23Q2_PC0252
Sandwell Metropolitan Borough Council,http://www.sandwell.gov.uk/info/200202/performance_and_spending/3233/government_procurement_cards,13-Jul-2022,Total ASCHWB,Amazon.co.uk PV5C66FB5,Total Adult Social Care,46.20,DIRECT MARKETING-OTHER DIRECT MARKETERS/NOT ELSEW.,2022-23Q2_PC0253
Sandwell Metropolitan Borough Council,http://www.sandwell.gov.uk/info/200202/performance_and_spending/3233/government_procurement_cards,13-Jul-2022,Total ASCHWB,ICELAND FOODS,Total Adult Social Care,1.00,"GROCERY STORES, SUPERMARKETS",2022-23Q2_PC0254
Sandwell Metropolitan Borough Council,http://www.sandwell.gov.uk/info/200202/performance_and_spending/3233/government_procurement_cards,13-Jul-2022,Total ASCHWB,ICELAND FOODS,Total Adult Social Care,171.40,"GROCERY STORES, SUPERMARKETS",2022-23Q2_PC0255
Sandwell Metropolitan Borough Council,http://www.sandwell.gov.uk/info/200202/performance_and_spending/3233/government_procurement_cards,13-Jul-2022,Total ASCHWB,ICELAND FOODS,Total Adult Social Care,25.10,"GROCERY STORES, SUPERMARKETS",2022-23Q2_PC0256
Sandwell Metropolitan Borough Council,http://www.sandwell.gov.uk/info/200202/performance_and_spending/3233/government_procurement_cards,13-Jul-2022,Total ASCHWB,ICELAND FOODS,Total Adult Social Care,-51.44,"GROCERY STORES, SUPERMARKETS",2022-23Q2_PC0257
Sandwell Metropolitan Borough Council,http://www.sandwell.gov.uk/info/200202/performance_and_spending/3233/government_procurement_cards,13-Jul-2022,Total ASCHWB,Amazon.co.uk X02GZ0TP5,Total Adult Social Care,19.99,DIRECT MARKETING-OTHER DIRECT MARKETERS/NOT ELSEW.,2022-23Q2_PC0258
Sandwell Metropolitan Borough Council,http://www.sandwell.gov.uk/info/200202/performance_and_spending/3233/government_procurement_cards,13-Jul-2022,Total ASCHWB,WORKWEAR EXPRESS,Total Adult Social Care,140.75,MEN'S/WOMEN'S/CHILDREN'S UNIFORMS/COMMERCIAL CLOTH,2022-23Q2_PC0259
Sandwell Metropolitan Borough Council,http://www.sandwell.gov.uk/info/200202/performance_and_spending/3233/government_procurement_cards,13-Jul-2022,Total Borough Economy,IAN SMITH GROUP LTD,Total Adult Social Care,241.96,STATIONERY/OFFICE SUPPLIES/PRINTING & WRITING PAP.,2022-23Q2_PC0260
Sandwell Metropolitan Borough Council,http://www.sandwell.gov.uk/info/200202/performance_and_spending/3233/government_procurement_cards,13-Jul-2022,Total Borough Economy,IAN SMITH GROUP LTD,Total Adult Social Care,241.92,STATIONERY/OFFICE SUPPLIES/PRINTING & WRITING PAP.,2022-23Q2_PC0261
Sandwell Metropolitan Borough Council,http://www.sandwell.gov.uk/info/200202/performance_and_spending/3233/government_procurement_cards,13-Jul-2022,Total Borough Economy,eBay O 23-08851-24766,Total Adult Social Care,29.99,DEPARTMENT STORES,2022-23Q2_PC0262
Sandwell Metropolitan Borough Council,http://www.sandwell.gov.uk/info/200202/performance_and_spending/3233/government_procurement_cards,13-Jul-2022,Total Borough Economy,W M MORRISONS.COM,Total Adult Social Care,79.80,"GROCERY STORES, SUPERMARKETS",2022-23Q2_PC0263
Sandwell Metropolitan Borough Council,http://www.sandwell.gov.uk/info/200202/performance_and_spending/3233/government_procurement_cards,13-Jul-2022,Total Borough Economy,AMZNMKTPLACE AMAZON.CO,Total Adult Social Care,46.97,MISCELLANEOUS AND SPECIALTY RETAIL STORES,2022-23Q2_PC0264
Sandwell Metropolitan Borough Council,http://www.sandwell.gov.uk/info/200202/performance_and_spending/3233/government_procurement_cards,13-Jul-2022,Total Housing Revenue Account,POSTURITE LTD,Total Housing Revenue Account,94.98,MISCELLANEOUS HOUSE FURNISHING SPECIALTY SHOPS,2022-23Q2_PC0265
Sandwell Metropolitan Borough Council,http://www.sandwell.gov.uk/info/200202/performance_and_spending/3233/government_procurement_cards,14-Jul-2022,FINANCE (Inc SIU),SAINSBURYS S/MKTS,Assistant Chief Executive (Excl SIU),13.50,"GROCERY STORES, SUPERMARKETS",2022-23Q2_PC0266
Sandwell Metropolitan Borough Council,http://www.sandwell.gov.uk/info/200202/performance_and_spending/3233/government_procurement_cards,14-Jul-2022,Childrens Services,AMZNMKTPLACE AMAZON.CO,Childrens Services,71.47,MISCELLANEOUS AND SPECIALTY RETAIL STORES,2022-23Q2_PC0267
Sandwell Metropolitan Borough Council,http://www.sandwell.gov.uk/info/200202/performance_and_spending/3233/government_procurement_cards,14-Jul-2022,Childrens Services,thetrainline.com,Childrens Services,219.18,PASSENGER RAILWAYS,2022-23Q2_PC0268
Sandwell Metropolitan Borough Council,http://www.sandwell.gov.uk/info/200202/performance_and_spending/3233/government_procurement_cards,14-Jul-2022,Childrens Services,AMZNMktplace,Childrens Services,52.60,MISCELLANEOUS AND SPECIALTY RETAIL STORES,2022-23Q2_PC0269
Sandwell Metropolitan Borough Council,http://www.sandwell.gov.uk/info/200202/performance_and_spending/3233/government_procurement_cards,14-Jul-2022,Childrens Services,AMZNMktplace,Childrens Services,8.99,MISCELLANEOUS AND SPECIALTY RETAIL STORES,2022-23Q2_PC0270
Sandwell Metropolitan Borough Council,http://www.sandwell.gov.uk/info/200202/performance_and_spending/3233/government_procurement_cards,14-Jul-2022,Childrens Services,BEEBYS BUBBLES,Childrens Services,114.00,"CLEANING, GARMENT, AND LAUNDRY SERVICES",2022-23Q2_PC0271
Sandwell Metropolitan Borough Council,http://www.sandwell.gov.uk/info/200202/performance_and_spending/3233/government_procurement_cards,14-Jul-2022,Childrens Services,WM MORRISONS STORE,Childrens Services,20.00,"GROCERY STORES, SUPERMARKETS",2022-23Q2_PC0272
Sandwell Metropolitan Borough Council,http://www.sandwell.gov.uk/info/200202/performance_and_spending/3233/government_procurement_cards,14-Jul-2022,Childrens Services,TESCO STORES 2770,Childrens Services,77.49,"GROCERY STORES, SUPERMARKETS",2022-23Q2_PC0273
Sandwell Metropolitan Borough Council,http://www.sandwell.gov.uk/info/200202/performance_and_spending/3233/government_procurement_cards,14-Jul-2022,Childrens Services,FIELD STUDIES COUNCIL,Childrens Services,72.50,SCHOOLS & EDUCATIONAL SVC-NOT ELSEWHERE CLASSIFIED,2022-23Q2_PC0274
Sandwell Metropolitan Borough Council,http://www.sandwell.gov.uk/info/200202/performance_and_spending/3233/government_procurement_cards,14-Jul-2022,Childrens Services,HIGHSPEEDTRAINING.CO.U,Childrens Services,24.00,"SCHOOLS, BUSINESS AND SECRETARIAL",2022-23Q2_PC0275
Sandwell Metropolitan Borough Council,http://www.sandwell.gov.uk/info/200202/performance_and_spending/3233/government_procurement_cards,14-Jul-2022,Childrens Services,WM MORRISONS STORE,Childrens Services,27.81,"GROCERY STORES, SUPERMARKETS",2022-23Q2_PC0276
Sandwell Metropolitan Borough Council,http://www.sandwell.gov.uk/info/200202/performance_and_spending/3233/government_procurement_cards,14-Jul-2022,Childrens Services,ASDA,Childrens Services,91.75,"GROCERY STORES, SUPERMARKETS",2022-23Q2_PC0277
Sandwell Metropolitan Borough Council,http://www.sandwell.gov.uk/info/200202/performance_and_spending/3233/government_procurement_cards,14-Jul-2022,Childrens Services,Amazon.co.uk 2O3A09C35,Childrens Services,5.92,DIRECT MARKETING-OTHER DIRECT MARKETERS/NOT ELSEW.,2022-23Q2_PC0278
Sandwell Metropolitan Borough Council,http://www.sandwell.gov.uk/info/200202/performance_and_spending/3233/government_procurement_cards,14-Jul-2022,Childrens Services,AMZNMktplace,Childrens Services,9.99,MISCELLANEOUS AND SPECIALTY RETAIL STORES,2022-23Q2_PC0279
Sandwell Metropolitan Borough Council,http://www.sandwell.gov.uk/info/200202/performance_and_spending/3233/government_procurement_cards,14-Jul-2022,Housing & Assets Total,STORAGE KING WALSALL,Corporate Management,200.40,"PUBLIC WAREHOUSING-FARM, REFRIG GOODS, HHG STORAGE",2022-23Q2_PC0280
Sandwell Metropolitan Borough Council,http://www.sandwell.gov.uk/info/200202/performance_and_spending/3233/government_procurement_cards,14-Jul-2022,Housing & Assets Total,TRAVELODGE,Corporate Management,181.53,TRAVELODGE,2022-23Q2_PC0281
Sandwell Metropolitan Borough Council,http://www.sandwell.gov.uk/info/200202/performance_and_spending/3233/government_procurement_cards,14-Jul-2022,Housing & Assets Total,AMZNMktplace,Corporate Management,15.02,MISCELLANEOUS AND SPECIALTY RETAIL STORES,2022-23Q2_PC0282
Sandwell Metropolitan Borough Council,http://www.sandwell.gov.uk/info/200202/performance_and_spending/3233/government_procurement_cards,14-Jul-2022,Housing & Assets Total,AMZNMktplace,Corporate Management,8.99,MISCELLANEOUS AND SPECIALTY RETAIL STORES,2022-23Q2_PC0283
Sandwell Metropolitan Borough Council,http://www.sandwell.gov.uk/info/200202/performance_and_spending/3233/government_procurement_cards,14-Jul-2022,Housing & Assets Total,AMZNMktplace,Corporate Management,12.99,MISCELLANEOUS AND SPECIALTY RETAIL STORES,2022-23Q2_PC0284
Sandwell Metropolitan Borough Council,http://www.sandwell.gov.uk/info/200202/performance_and_spending/3233/government_procurement_cards,14-Jul-2022,Housing & Assets Total,Amazon.co.uk ZX1VK68G5,Corporate Management,21.44,DIRECT MARKETING-OTHER DIRECT MARKETERS/NOT ELSEW.,2022-23Q2_PC0285
Sandwell Metropolitan Borough Council,http://www.sandwell.gov.uk/info/200202/performance_and_spending/3233/government_procurement_cards,14-Jul-2022,Housing & Assets Total,AMZNMktplace,Corporate Management,11.99,MISCELLANEOUS AND SPECIALTY RETAIL STORES,2022-23Q2_PC0286
Sandwell Metropolitan Borough Council,http://www.sandwell.gov.uk/info/200202/performance_and_spending/3233/government_procurement_cards,14-Jul-2022,Total Public Health,feelworld.ltd,Public Health,200.57,ELECTRONIC SALES,2022-23Q2_PC0287
Sandwell Metropolitan Borough Council,http://www.sandwell.gov.uk/info/200202/performance_and_spending/3233/government_procurement_cards,14-Jul-2022,Regeneration & Growth,AMZNMKTPLACE AMAZON.CO,Regeneration And The Economy,12.54,MISCELLANEOUS AND SPECIALTY RETAIL STORES,2022-23Q2_PC0288
Sandwell Metropolitan Borough Council,http://www.sandwell.gov.uk/info/200202/performance_and_spending/3233/government_procurement_cards,14-Jul-2022,Regeneration & Growth,NCS CITB EXAM,Regeneration And The Economy,22.50,SCHOOLS & EDUCATIONAL SVC-NOT ELSEWHERE CLASSIFIED,2022-23Q2_PC0289
Sandwell Metropolitan Borough Council,http://www.sandwell.gov.uk/info/200202/performance_and_spending/3233/government_procurement_cards,14-Jul-2022,Regeneration & Growth,NCS CITB EXAM,Regeneration And The Economy,22.50,SCHOOLS & EDUCATIONAL SVC-NOT ELSEWHERE CLASSIFIED,2022-23Q2_PC0290
Sandwell Metropolitan Borough Council,http://www.sandwell.gov.uk/info/200202/performance_and_spending/3233/government_procurement_cards,14-Jul-2022,Regeneration & Growth,NCS CITB EXAM,Regeneration And The Economy,22.50,SCHOOLS & EDUCATIONAL SVC-NOT ELSEWHERE CLASSIFIED,2022-23Q2_PC0291
Sandwell Metropolitan Borough Council,http://www.sandwell.gov.uk/info/200202/performance_and_spending/3233/government_procurement_cards,14-Jul-2022,Total Borough Economy,Amazon.co.uk OL4WG7065,Regeneration And The Economy,183.00,DIRECT MARKETING-OTHER DIRECT MARKETERS/NOT ELSEW.,2022-23Q2_PC0292
Sandwell Metropolitan Borough Council,http://www.sandwell.gov.uk/info/200202/performance_and_spending/3233/government_procurement_cards,14-Jul-2022,Regeneration & Growth,TIMPSON LTD,Regeneration And The Economy,8.00,MISCELLANEOUS AND SPECIALTY RETAIL STORES,2022-23Q2_PC0293
Sandwell Metropolitan Borough Council,http://www.sandwell.gov.uk/info/200202/performance_and_spending/3233/government_procurement_cards,14-Jul-2022,Regeneration & Growth,TIMPSON LTD,Regeneration And The Economy,33.00,MISCELLANEOUS AND SPECIALTY RETAIL STORES,2022-23Q2_PC0294
Sandwell Metropolitan Borough Council,http://www.sandwell.gov.uk/info/200202/performance_and_spending/3233/government_procurement_cards,14-Jul-2022,Total ASCHWB,CONFERENCE PARTNERS LT,Total Adult Social Care,451.00,BUSINESS SERVICES-NOT ELSEWHERE CLASSIFIED,2022-23Q2_PC0295
Sandwell Metropolitan Borough Council,http://www.sandwell.gov.uk/info/200202/performance_and_spending/3233/government_procurement_cards,14-Jul-2022,Total ASCHWB,CONFERENCE PARTNERS LT,Total Adult Social Care,596.00,BUSINESS SERVICES-NOT ELSEWHERE CLASSIFIED,2022-23Q2_PC0296
Sandwell Metropolitan Borough Council,http://www.sandwell.gov.uk/info/200202/performance_and_spending/3233/government_procurement_cards,14-Jul-2022,Total ASCHWB,AMZNMktplace,Total Adult Social Care,8.99,MISCELLANEOUS AND SPECIALTY RETAIL STORES,2022-23Q2_PC0297
Sandwell Metropolitan Borough Council,http://www.sandwell.gov.uk/info/200202/performance_and_spending/3233/government_procurement_cards,14-Jul-2022,Total ASCHWB,Amazon.co.uk 9D50C1UO5,Total Adult Social Care,30.89,DIRECT MARKETING-OTHER DIRECT MARKETERS/NOT ELSEW.,2022-23Q2_PC0298
Sandwell Metropolitan Borough Council,http://www.sandwell.gov.uk/info/200202/performance_and_spending/3233/government_procurement_cards,14-Jul-2022,Total ASCHWB,Amazon.co.uk 6G4XZ8Q55,Total Adult Social Care,46.81,DIRECT MARKETING-OTHER DIRECT MARKETERS/NOT ELSEW.,2022-23Q2_PC0299
Sandwell Metropolitan Borough Council,http://www.sandwell.gov.uk/info/200202/performance_and_spending/3233/government_procurement_cards,14-Jul-2022,Total ASCHWB,Amazon.co.uk AR9R00I15,Total Adult Social Care,21.99,DIRECT MARKETING-OTHER DIRECT MARKETERS/NOT ELSEW.,2022-23Q2_PC0300
Sandwell Metropolitan Borough Council,http://www.sandwell.gov.uk/info/200202/performance_and_spending/3233/government_procurement_cards,14-Jul-2022,Total ASCHWB,ASDA GROCERIES ONLINE,Total Adult Social Care,44.12,"GROCERY STORES, SUPERMARKETS",2022-23Q2_PC0301
Sandwell Metropolitan Borough Council,http://www.sandwell.gov.uk/info/200202/performance_and_spending/3233/government_procurement_cards,14-Jul-2022,Total ASCHWB,ASDA GROCERIES ONLINE,Total Adult Social Care,1.10,"GROCERY STORES, SUPERMARKETS",2022-23Q2_PC0302
Sandwell Metropolitan Borough Council,http://www.sandwell.gov.uk/info/200202/performance_and_spending/3233/government_procurement_cards,14-Jul-2022,Total ASCHWB,WWW.SCREWFIX.COM,Total Adult Social Care,199.90,"BUILDING MATERIALS, LUMBER STORES",2022-23Q2_PC0303
Sandwell Metropolitan Borough Council,http://www.sandwell.gov.uk/info/200202/performance_and_spending/3233/government_procurement_cards,14-Jul-2022,Total ASCHWB,AMZNMktplace,Total Adult Social Care,69.98,MISCELLANEOUS AND SPECIALTY RETAIL STORES,2022-23Q2_PC0304
Sandwell Metropolitan Borough Council,http://www.sandwell.gov.uk/info/200202/performance_and_spending/3233/government_procurement_cards,14-Jul-2022,Total ASCHWB,AMZNMktplace,Total Adult Social Care,10.98,MISCELLANEOUS AND SPECIALTY RETAIL STORES,2022-23Q2_PC0305
Sandwell Metropolitan Borough Council,http://www.sandwell.gov.uk/info/200202/performance_and_spending/3233/government_procurement_cards,14-Jul-2022,Total ASCHWB,AMZNMKTPLACE AMAZON.CO,Total Adult Social Care,51.80,MISCELLANEOUS AND SPECIALTY RETAIL STORES,2022-23Q2_PC0306
Sandwell Metropolitan Borough Council,http://www.sandwell.gov.uk/info/200202/performance_and_spending/3233/government_procurement_cards,14-Jul-2022,Total Borough Economy,ARGOS LTD,Total Adult Social Care,182.93,DISCOUNT STORES,2022-23Q2_PC0307
Sandwell Metropolitan Borough Council,http://www.sandwell.gov.uk/info/200202/performance_and_spending/3233/government_procurement_cards,14-Jul-2022,Total Borough Economy,Vistaprint,Total Adult Social Care,54.71,BUSINESS SERVICES-NOT ELSEWHERE CLASSIFIED,2022-23Q2_PC0308
Sandwell Metropolitan Borough Council,http://www.sandwell.gov.uk/info/200202/performance_and_spending/3233/government_procurement_cards,14-Jul-2022,Total Borough Economy,AMZNMktplace,Total Adult Social Care,150.03,MISCELLANEOUS AND SPECIALTY RETAIL STORES,2022-23Q2_PC0309
Sandwell Metropolitan Borough Council,http://www.sandwell.gov.uk/info/200202/performance_and_spending/3233/government_procurement_cards,14-Jul-2022,Total Borough Economy,AMZNMktplace,Total Adult Social Care,34.99,MISCELLANEOUS AND SPECIALTY RETAIL STORES,2022-23Q2_PC0310
Sandwell Metropolitan Borough Council,http://www.sandwell.gov.uk/info/200202/performance_and_spending/3233/government_procurement_cards,14-Jul-2022,Total Borough Economy,AMZNMktplace,Total Adult Social Care,12.58,MISCELLANEOUS AND SPECIALTY RETAIL STORES,2022-23Q2_PC0311
Sandwell Metropolitan Borough Council,http://www.sandwell.gov.uk/info/200202/performance_and_spending/3233/government_procurement_cards,14-Jul-2022,Total Borough Economy,PODBEAN.COM,Total Adult Social Care,34.01,"CONSULTING, MANAGEMENT, AND PUBLIC RELATIONS SVCS",2022-23Q2_PC0312
Sandwell Metropolitan Borough Council,http://www.sandwell.gov.uk/info/200202/performance_and_spending/3233/government_procurement_cards,14-Jul-2022,Total Housing Revenue Account,AMZNMktplace,Total Housing Revenue Account,36.00,MISCELLANEOUS AND SPECIALTY RETAIL STORES,2022-23Q2_PC0313
Sandwell Metropolitan Borough Council,http://www.sandwell.gov.uk/info/200202/performance_and_spending/3233/government_procurement_cards,14-Jul-2022,Total Housing Revenue Account,WWW.KANE.CO.UK,Total Housing Revenue Account,410.88,HARDWARE EQUIPMENT AND SUPPLIES,2022-23Q2_PC0314
Sandwell Metropolitan Borough Council,http://www.sandwell.gov.uk/info/200202/performance_and_spending/3233/government_procurement_cards,14-Jul-2022,Housing & Assets Total,EUROFINS WATER HYGIENE,Housing & Assets Total,185.76,TESTING LABORATORIES (NON-MEDICAL),2022-23Q2_PC0315
Sandwell Metropolitan Borough Council,http://www.sandwell.gov.uk/info/200202/performance_and_spending/3233/government_procurement_cards,15-Jul-2022,Director of Law & Governance,Amazon Prime 7C33J2W45,Assistant Chief Executive (Excl SIU),7.99,DIRECT MARKETING-CONTINUITY/SUBSCRIPTION MERCHANTS,2022-23Q2_PC0316
Sandwell Metropolitan Borough Council,http://www.sandwell.gov.uk/info/200202/performance_and_spending/3233/government_procurement_cards,15-Jul-2022,Director of Law & Governance,AMZNMktplace,Assistant Chief Executive (Excl SIU),64.48,MISCELLANEOUS AND SPECIALTY RETAIL STORES,2022-23Q2_PC0317
Sandwell Metropolitan Borough Council,http://www.sandwell.gov.uk/info/200202/performance_and_spending/3233/government_procurement_cards,15-Jul-2022,Director of Law & Governance,AMZNMktplace,Assistant Chief Executive (Excl SIU),104.99,MISCELLANEOUS AND SPECIALTY RETAIL STORES,2022-23Q2_PC0318
Sandwell Metropolitan Borough Council,http://www.sandwell.gov.uk/info/200202/performance_and_spending/3233/government_procurement_cards,15-Jul-2022,Director of Law & Governance,AMZNMKTPLACE AMAZON.CO,Assistant Chief Executive (Excl SIU),134.99,MISCELLANEOUS AND SPECIALTY RETAIL STORES,2022-23Q2_PC0319
Sandwell Metropolitan Borough Council,http://www.sandwell.gov.uk/info/200202/performance_and_spending/3233/government_procurement_cards,15-Jul-2022,Director of Law & Governance,AMZNMktplace,Assistant Chief Executive (Excl SIU),68.54,MISCELLANEOUS AND SPECIALTY RETAIL STORES,2022-23Q2_PC0320
Sandwell Metropolitan Borough Council,http://www.sandwell.gov.uk/info/200202/performance_and_spending/3233/government_procurement_cards,15-Jul-2022,Childrens Services,TOOLSTATION UK,Childrens Services,333.78,HARDWARE STORES,2022-23Q2_PC0321
Sandwell Metropolitan Borough Council,http://www.sandwell.gov.uk/info/200202/performance_and_spending/3233/government_procurement_cards,15-Jul-2022,Childrens Services,MARKS&SPENCER PLC SA,Childrens Services,12.05,"GROCERY STORES, SUPERMARKETS",2022-23Q2_PC0322
Sandwell Metropolitan Borough Council,http://www.sandwell.gov.uk/info/200202/performance_and_spending/3233/government_procurement_cards,15-Jul-2022,Childrens Services,AMZNMKTPLACE AMAZON.CO,Childrens Services,109.44,MISCELLANEOUS AND SPECIALTY RETAIL STORES,2022-23Q2_PC0323
Sandwell Metropolitan Borough Council,http://www.sandwell.gov.uk/info/200202/performance_and_spending/3233/government_procurement_cards,15-Jul-2022,Childrens Services,WWW.THEWORKS.CO.UK,Childrens Services,249.00,DISCOUNT STORES,2022-23Q2_PC0324
Sandwell Metropolitan Borough Council,http://www.sandwell.gov.uk/info/200202/performance_and_spending/3233/government_procurement_cards,15-Jul-2022,Childrens Services,AMZNMktplace,Childrens Services,39.96,MISCELLANEOUS AND SPECIALTY RETAIL STORES,2022-23Q2_PC0325
Sandwell Metropolitan Borough Council,http://www.sandwell.gov.uk/info/200202/performance_and_spending/3233/government_procurement_cards,15-Jul-2022,Childrens Services,AMZNMktplace,Childrens Services,17.58,MISCELLANEOUS AND SPECIALTY RETAIL STORES,2022-23Q2_PC0326
Sandwell Metropolitan Borough Council,http://www.sandwell.gov.uk/info/200202/performance_and_spending/3233/government_procurement_cards,15-Jul-2022,Childrens Services,AMZNMktplace,Childrens Services,11.98,MISCELLANEOUS AND SPECIALTY RETAIL STORES,2022-23Q2_PC0327
Sandwell Metropolitan Borough Council,http://www.sandwell.gov.uk/info/200202/performance_and_spending/3233/government_procurement_cards,15-Jul-2022,Childrens Services,AMZNMktplace,Childrens Services,40.50,MISCELLANEOUS AND SPECIALTY RETAIL STORES,2022-23Q2_PC0328
Sandwell Metropolitan Borough Council,http://www.sandwell.gov.uk/info/200202/performance_and_spending/3233/government_procurement_cards,15-Jul-2022,Childrens Services,AMZNMktplace,Childrens Services,57.00,MISCELLANEOUS AND SPECIALTY RETAIL STORES,2022-23Q2_PC0329
Sandwell Metropolitan Borough Council,http://www.sandwell.gov.uk/info/200202/performance_and_spending/3233/government_procurement_cards,15-Jul-2022,Childrens Services,ROYAL MAIL GROUP LTD,Childrens Services,27.00,POSTAL SERVICES-GOVERNMENT ONLY,2022-23Q2_PC0330
Sandwell Metropolitan Borough Council,http://www.sandwell.gov.uk/info/200202/performance_and_spending/3233/government_procurement_cards,15-Jul-2022,Childrens Services,ROYAL MAIL GROUP LTD,Childrens Services,27.00,POSTAL SERVICES-GOVERNMENT ONLY,2022-23Q2_PC0331
Sandwell Metropolitan Borough Council,http://www.sandwell.gov.uk/info/200202/performance_and_spending/3233/government_procurement_cards,15-Jul-2022,Childrens Services,ROYAL MAIL GROUP LTD,Childrens Services,2.85,POSTAL SERVICES-GOVERNMENT ONLY,2022-23Q2_PC0332
Sandwell Metropolitan Borough Council,http://www.sandwell.gov.uk/info/200202/performance_and_spending/3233/government_procurement_cards,15-Jul-2022,Childrens Services,ASDA SUPERSTORE 04236,Childrens Services,29.25,"GROCERY STORES, SUPERMARKETS",2022-23Q2_PC0333
Sandwell Metropolitan Borough Council,http://www.sandwell.gov.uk/info/200202/performance_and_spending/3233/government_procurement_cards,15-Jul-2022,Childrens Services,Amazon.co.uk JF23I5NY5,Childrens Services,38.40,DIRECT MARKETING-OTHER DIRECT MARKETERS/NOT ELSEW.,2022-23Q2_PC0334
Sandwell Metropolitan Borough Council,http://www.sandwell.gov.uk/info/200202/performance_and_spending/3233/government_procurement_cards,15-Jul-2022,Childrens Services,Amazon.co.uk D696M9WR5,Childrens Services,48.32,DIRECT MARKETING-OTHER DIRECT MARKETERS/NOT ELSEW.,2022-23Q2_PC0335
Sandwell Metropolitan Borough Council,http://www.sandwell.gov.uk/info/200202/performance_and_spending/3233/government_procurement_cards,15-Jul-2022,Childrens Services,Amazon.co.uk KB38Q1VS5,Childrens Services,48.32,DIRECT MARKETING-OTHER DIRECT MARKETERS/NOT ELSEW.,2022-23Q2_PC0336
Sandwell Metropolitan Borough Council,http://www.sandwell.gov.uk/info/200202/performance_and_spending/3233/government_procurement_cards,15-Jul-2022,Childrens Services,TESCO STORES 2770,Childrens Services,30.00,"GROCERY STORES, SUPERMARKETS",2022-23Q2_PC0337
Sandwell Metropolitan Borough Council,http://www.sandwell.gov.uk/info/200202/performance_and_spending/3233/government_procurement_cards,15-Jul-2022,Childrens Services,HARLECH..... INV335175,Childrens Services,43.14,"MISC FOOD STORE-CONVENIENCE,MRKT,SPLTY,VENDNG MACS",2022-23Q2_PC0338
Sandwell Metropolitan Borough Council,http://www.sandwell.gov.uk/info/200202/performance_and_spending/3233/government_procurement_cards,15-Jul-2022,Childrens Services,AMZNMKTPLACE AMAZON.CO,Childrens Services,28.47,MISCELLANEOUS AND SPECIALTY RETAIL STORES,2022-23Q2_PC0339
Sandwell Metropolitan Borough Council,http://www.sandwell.gov.uk/info/200202/performance_and_spending/3233/government_procurement_cards,15-Jul-2022,Childrens Services,HARLECH..... INV335175,Childrens Services,67.84,"MISC FOOD STORE-CONVENIENCE,MRKT,SPLTY,VENDNG MACS",2022-23Q2_PC0340
Sandwell Metropolitan Borough Council,http://www.sandwell.gov.uk/info/200202/performance_and_spending/3233/government_procurement_cards,15-Jul-2022,Housing & Assets Total,Amazon.co.uk 4W9IN6IE5,Corporate Management,90.00,DIRECT MARKETING-OTHER DIRECT MARKETERS/NOT ELSEW.,2022-23Q2_PC0341
Sandwell Metropolitan Borough Council,http://www.sandwell.gov.uk/info/200202/performance_and_spending/3233/government_procurement_cards,15-Jul-2022,Total Public Health,AMZNMktplace,Public Health,77.86,MISCELLANEOUS AND SPECIALTY RETAIL STORES,2022-23Q2_PC0342
Sandwell Metropolitan Borough Council,http://www.sandwell.gov.uk/info/200202/performance_and_spending/3233/government_procurement_cards,15-Jul-2022,Total Public Health,AMZNMktplace,Public Health,34.98,MISCELLANEOUS AND SPECIALTY RETAIL STORES,2022-23Q2_PC0343
Sandwell Metropolitan Borough Council,http://www.sandwell.gov.uk/info/200202/performance_and_spending/3233/government_procurement_cards,15-Jul-2022,Regeneration & Growth,WWW.OFFICETEAMCONNECT.,Regeneration And The Economy,241.10,STATIONERY/OFFICE SUPPLIES/PRINTING & WRITING PAP.,2022-23Q2_PC0344
Sandwell Metropolitan Borough Council,http://www.sandwell.gov.uk/info/200202/performance_and_spending/3233/government_procurement_cards,15-Jul-2022,Total Borough Economy,ARGOS LTD,Total Adult Social Care,80.00,DISCOUNT STORES,2022-23Q2_PC0345
Sandwell Metropolitan Borough Council,http://www.sandwell.gov.uk/info/200202/performance_and_spending/3233/government_procurement_cards,15-Jul-2022,Total ASCHWB,AMZNMktplace,Total Adult Social Care,353.99,MISCELLANEOUS AND SPECIALTY RETAIL STORES,2022-23Q2_PC0346
Sandwell Metropolitan Borough Council,http://www.sandwell.gov.uk/info/200202/performance_and_spending/3233/government_procurement_cards,15-Jul-2022,Total ASCHWB,ARGOS LTD,Total Adult Social Care,32.00,DISCOUNT STORES,2022-23Q2_PC0347
Sandwell Metropolitan Borough Council,http://www.sandwell.gov.uk/info/200202/performance_and_spending/3233/government_procurement_cards,15-Jul-2022,Total ASCHWB,SP GREENFEATHERS,Total Adult Social Care,129.00,CAMERA AND PHOTOGRAPHIC SUPPLY STORES,2022-23Q2_PC0348
Sandwell Metropolitan Borough Council,http://www.sandwell.gov.uk/info/200202/performance_and_spending/3233/government_procurement_cards,15-Jul-2022,Total ASCHWB,AMZNMktplace,Total Adult Social Care,161.56,MISCELLANEOUS AND SPECIALTY RETAIL STORES,2022-23Q2_PC0349
Sandwell Metropolitan Borough Council,http://www.sandwell.gov.uk/info/200202/performance_and_spending/3233/government_procurement_cards,15-Jul-2022,Total ASCHWB,AMZNMKTPLACE AMAZON.CO,Total Adult Social Care,125.51,MISCELLANEOUS AND SPECIALTY RETAIL STORES,2022-23Q2_PC0350
Sandwell Metropolitan Borough Council,http://www.sandwell.gov.uk/info/200202/performance_and_spending/3233/government_procurement_cards,15-Jul-2022,Total ASCHWB,AMZ Amazon.co.uk,Total Adult Social Care,-19.99,DIRECT MARKETING-OTHER DIRECT MARKETERS/NOT ELSEW.,2022-23Q2_PC0351
Sandwell Metropolitan Borough Council,http://www.sandwell.gov.uk/info/200202/performance_and_spending/3233/government_procurement_cards,15-Jul-2022,Total ASCHWB,Amazon Prime VQ78E0WV5,Total Adult Social Care,7.99,DIRECT MARKETING-CONTINUITY/SUBSCRIPTION MERCHANTS,2022-23Q2_PC0352
Sandwell Metropolitan Borough Council,http://www.sandwell.gov.uk/info/200202/performance_and_spending/3233/government_procurement_cards,15-Jul-2022,Total ASCHWB,AMZNMktplace,Total Adult Social Care,28.48,MISCELLANEOUS AND SPECIALTY RETAIL STORES,2022-23Q2_PC0353
Sandwell Metropolitan Borough Council,http://www.sandwell.gov.uk/info/200202/performance_and_spending/3233/government_procurement_cards,15-Jul-2022,FINANCE (Inc SIU),WWW.OFFICETEAMCONNECT.,Total Adult Social Care,22.54,STATIONERY/OFFICE SUPPLIES/PRINTING & WRITING PAP.,2022-23Q2_PC0354
Sandwell Metropolitan Borough Council,http://www.sandwell.gov.uk/info/200202/performance_and_spending/3233/government_procurement_cards,15-Jul-2022,Total Borough Economy,AMZNMktplace,Total Adult Social Care,48.00,MISCELLANEOUS AND SPECIALTY RETAIL STORES,2022-23Q2_PC0355
Sandwell Metropolitan Borough Council,http://www.sandwell.gov.uk/info/200202/performance_and_spending/3233/government_procurement_cards,15-Jul-2022,Total Borough Economy,AMZNMktplace,Total Adult Social Care,48.44,MISCELLANEOUS AND SPECIALTY RETAIL STORES,2022-23Q2_PC0356
Sandwell Metropolitan Borough Council,http://www.sandwell.gov.uk/info/200202/performance_and_spending/3233/government_procurement_cards,15-Jul-2022,Total Borough Economy,TESCO STORES 2335,Total Adult Social Care,19.50,"GROCERY STORES, SUPERMARKETS",2022-23Q2_PC0357
Sandwell Metropolitan Borough Council,http://www.sandwell.gov.uk/info/200202/performance_and_spending/3233/government_procurement_cards,15-Jul-2022,Total Borough Economy,WILKO.COM,Total Adult Social Care,96.55,MISCELLANEOUS GENERAL MERCHANDISE,2022-23Q2_PC0358
Sandwell Metropolitan Borough Council,http://www.sandwell.gov.uk/info/200202/performance_and_spending/3233/government_procurement_cards,15-Jul-2022,Total Borough Economy,WP-SPIKOMAT LTD T/AS S,Total Adult Social Care,159.60,MISCELLANEOUS AND SPECIALTY RETAIL STORES,2022-23Q2_PC0359
Sandwell Metropolitan Borough Council,http://www.sandwell.gov.uk/info/200202/performance_and_spending/3233/government_procurement_cards,15-Jul-2022,Total Borough Economy,ASDA STORES,Total Adult Social Care,78.60,"GROCERY STORES, SUPERMARKETS",2022-23Q2_PC0360
Sandwell Metropolitan Borough Council,http://www.sandwell.gov.uk/info/200202/performance_and_spending/3233/government_procurement_cards,15-Jul-2022,Total Borough Economy,ASDA STORES,Total Adult Social Care,42.05,"GROCERY STORES, SUPERMARKETS",2022-23Q2_PC0361
Sandwell Metropolitan Borough Council,http://www.sandwell.gov.uk/info/200202/performance_and_spending/3233/government_procurement_cards,15-Jul-2022,Total Borough Economy,VIKING UK,Total Adult Social Care,148.54,STATIONERY/OFFICE SUPPLIES/PRINTING & WRITING PAP.,2022-23Q2_PC0362
Sandwell Metropolitan Borough Council,http://www.sandwell.gov.uk/info/200202/performance_and_spending/3233/government_procurement_cards,15-Jul-2022,Total Borough Economy,ADOBE IL CREATIVE CLD,Total Adult Social Care,19.97,DIGITAL GOODS SOFTWARE APPLICATIONS,2022-23Q2_PC0363
Sandwell Metropolitan Borough Council,http://www.sandwell.gov.uk/info/200202/performance_and_spending/3233/government_procurement_cards,18-Jul-2022,Director of Law & Governance,ARGOS LTD,Assistant Chief Executive (Excl SIU),156.00,DISCOUNT STORES,2022-23Q2_PC0364
Sandwell Metropolitan Borough Council,http://www.sandwell.gov.uk/info/200202/performance_and_spending/3233/government_procurement_cards,18-Jul-2022,Director of Law & Governance,TESCO STORES 5362,Assistant Chief Executive (Excl SIU),22.00,"GROCERY STORES, SUPERMARKETS",2022-23Q2_PC0365
Sandwell Metropolitan Borough Council,http://www.sandwell.gov.uk/info/200202/performance_and_spending/3233/government_procurement_cards,18-Jul-2022,Childrens Services,TOOLSTATION LTD,Childrens Services,6.08,"BUILDING MATERIALS, LUMBER STORES",2022-23Q2_PC0366
Sandwell Metropolitan Borough Council,http://www.sandwell.gov.uk/info/200202/performance_and_spending/3233/government_procurement_cards,18-Jul-2022,Childrens Services,AMZNMktplace,Childrens Services,106.63,MISCELLANEOUS AND SPECIALTY RETAIL STORES,2022-23Q2_PC0367
Sandwell Metropolitan Borough Council,http://www.sandwell.gov.uk/info/200202/performance_and_spending/3233/government_procurement_cards,18-Jul-2022,Childrens Services,AMZNMKTPLACE AMAZON.CO,Childrens Services,161.94,MISCELLANEOUS AND SPECIALTY RETAIL STORES,2022-23Q2_PC0368
Sandwell Metropolitan Borough Council,http://www.sandwell.gov.uk/info/200202/performance_and_spending/3233/government_procurement_cards,18-Jul-2022,Childrens Services,AMZNMKTPLACE AMAZON.CO,Childrens Services,108.29,MISCELLANEOUS AND SPECIALTY RETAIL STORES,2022-23Q2_PC0369
Sandwell Metropolitan Borough Council,http://www.sandwell.gov.uk/info/200202/performance_and_spending/3233/government_procurement_cards,18-Jul-2022,Childrens Services,VMO Vimeo PRO,Childrens Services,226.80,DIRECT MARKETING-CONTINUITY/SUBSCRIPTION MERCHANTS,2022-23Q2_PC0370
Sandwell Metropolitan Borough Council,http://www.sandwell.gov.uk/info/200202/performance_and_spending/3233/government_procurement_cards,18-Jul-2022,Childrens Services,SPACEHOPPAS PLAYZONE,Childrens Services,101.90,"GAME, TOY, AND HOBBY SHOPS",2022-23Q2_PC0371
Sandwell Metropolitan Borough Council,http://www.sandwell.gov.uk/info/200202/performance_and_spending/3233/government_procurement_cards,18-Jul-2022,Childrens Services,THE RANGE,Childrens Services,66.77,MISCELLANEOUS HOUSE FURNISHING SPECIALTY SHOPS,2022-23Q2_PC0372
Sandwell Metropolitan Borough Council,http://www.sandwell.gov.uk/info/200202/performance_and_spending/3233/government_procurement_cards,18-Jul-2022,Childrens Services,SMYTHS TOYS KIDDERMINS,Childrens Services,19.92,"GAME, TOY, AND HOBBY SHOPS",2022-23Q2_PC0373
Sandwell Metropolitan Borough Council,http://www.sandwell.gov.uk/info/200202/performance_and_spending/3233/government_procurement_cards,18-Jul-2022,Childrens Services,AMZNMktplace,Childrens Services,67.00,MISCELLANEOUS AND SPECIALTY RETAIL STORES,2022-23Q2_PC0374
Sandwell Metropolitan Borough Council,http://www.sandwell.gov.uk/info/200202/performance_and_spending/3233/government_procurement_cards,18-Jul-2022,Childrens Services,AMZNMktplace,Childrens Services,41.96,MISCELLANEOUS AND SPECIALTY RETAIL STORES,2022-23Q2_PC0375
Sandwell Metropolitan Borough Council,http://www.sandwell.gov.uk/info/200202/performance_and_spending/3233/government_procurement_cards,18-Jul-2022,Childrens Services,LIDL GB NEWPORT,Childrens Services,4.21,"GROCERY STORES, SUPERMARKETS",2022-23Q2_PC0376
Sandwell Metropolitan Borough Council,http://www.sandwell.gov.uk/info/200202/performance_and_spending/3233/government_procurement_cards,18-Jul-2022,Childrens Services,Amazon.co.uk OZ48K5K65,Childrens Services,219.99,DIRECT MARKETING-OTHER DIRECT MARKETERS/NOT ELSEW.,2022-23Q2_PC0377
Sandwell Metropolitan Borough Council,http://www.sandwell.gov.uk/info/200202/performance_and_spending/3233/government_procurement_cards,18-Jul-2022,Childrens Services,AMZNMktplace,Childrens Services,17.36,MISCELLANEOUS AND SPECIALTY RETAIL STORES,2022-23Q2_PC0378
Sandwell Metropolitan Borough Council,http://www.sandwell.gov.uk/info/200202/performance_and_spending/3233/government_procurement_cards,18-Jul-2022,Childrens Services,AMZNMktplace,Childrens Services,10.99,MISCELLANEOUS AND SPECIALTY RETAIL STORES,2022-23Q2_PC0379
Sandwell Metropolitan Borough Council,http://www.sandwell.gov.uk/info/200202/performance_and_spending/3233/government_procurement_cards,18-Jul-2022,Childrens Services,AMZNMKTPLACE AMAZON.CO,Childrens Services,8.99,MISCELLANEOUS AND SPECIALTY RETAIL STORES,2022-23Q2_PC0380
Sandwell Metropolitan Borough Council,http://www.sandwell.gov.uk/info/200202/performance_and_spending/3233/government_procurement_cards,18-Jul-2022,Childrens Services,TESCO STORES 4512,Childrens Services,2.70,"GROCERY STORES, SUPERMARKETS",2022-23Q2_PC0381
Sandwell Metropolitan Borough Council,http://www.sandwell.gov.uk/info/200202/performance_and_spending/3233/government_procurement_cards,18-Jul-2022,Childrens Services,TESCO STORES 2770,Childrens Services,19.60,"GROCERY STORES, SUPERMARKETS",2022-23Q2_PC0382
Sandwell Metropolitan Borough Council,http://www.sandwell.gov.uk/info/200202/performance_and_spending/3233/government_procurement_cards,18-Jul-2022,Childrens Services,AMZNMktplace,Childrens Services,23.80,MISCELLANEOUS AND SPECIALTY RETAIL STORES,2022-23Q2_PC0383
Sandwell Metropolitan Borough Council,http://www.sandwell.gov.uk/info/200202/performance_and_spending/3233/government_procurement_cards,18-Jul-2022,Housing & Assets Total,TRAVELODGE,Corporate Management,280.45,TRAVELODGE,2022-23Q2_PC0384
Sandwell Metropolitan Borough Council,http://www.sandwell.gov.uk/info/200202/performance_and_spending/3233/government_procurement_cards,18-Jul-2022,Housing & Assets Total,Amazon.co.uk IL3Z277C5,Corporate Management,149.99,DIRECT MARKETING-OTHER DIRECT MARKETERS/NOT ELSEW.,2022-23Q2_PC0385
Sandwell Metropolitan Borough Council,http://www.sandwell.gov.uk/info/200202/performance_and_spending/3233/government_procurement_cards,18-Jul-2022,Housing & Assets Total,ASDA STORES,Corporate Management,77.93,"GROCERY STORES, SUPERMARKETS",2022-23Q2_PC0386
Sandwell Metropolitan Borough Council,http://www.sandwell.gov.uk/info/200202/performance_and_spending/3233/government_procurement_cards,18-Jul-2022,Total Public Health,ICELAND 1603,Public Health,43.74,"GROCERY STORES, SUPERMARKETS",2022-23Q2_PC0387
Sandwell Metropolitan Borough Council,http://www.sandwell.gov.uk/info/200202/performance_and_spending/3233/government_procurement_cards,18-Jul-2022,Total Public Health,TESCO STORES 6388,Public Health,26.95,"GROCERY STORES, SUPERMARKETS",2022-23Q2_PC0388
Sandwell Metropolitan Borough Council,http://www.sandwell.gov.uk/info/200202/performance_and_spending/3233/government_procurement_cards,18-Jul-2022,Total Public Health,TESCO STORES 2335,Public Health,14.75,"GROCERY STORES, SUPERMARKETS",2022-23Q2_PC0389
Sandwell Metropolitan Borough Council,http://www.sandwell.gov.uk/info/200202/performance_and_spending/3233/government_procurement_cards,18-Jul-2022,Total Public Health,PP Trenchers catering,Public Health,117.00,CATERERS,2022-23Q2_PC0390
Sandwell Metropolitan Borough Council,http://www.sandwell.gov.uk/info/200202/performance_and_spending/3233/government_procurement_cards,18-Jul-2022,Regeneration & Growth,AMZNMktplace,Regeneration And The Economy,2.08,MISCELLANEOUS AND SPECIALTY RETAIL STORES,2022-23Q2_PC0391
Sandwell Metropolitan Borough Council,http://www.sandwell.gov.uk/info/200202/performance_and_spending/3233/government_procurement_cards,18-Jul-2022,Regeneration & Growth,AMZNMktplace,Regeneration And The Economy,6.45,MISCELLANEOUS AND SPECIALTY RETAIL STORES,2022-23Q2_PC0392
Sandwell Metropolitan Borough Council,http://www.sandwell.gov.uk/info/200202/performance_and_spending/3233/government_procurement_cards,18-Jul-2022,Total ASCHWB,AMZNMKTPLACE AMAZON.CO,Total Adult Social Care,67.97,MISCELLANEOUS AND SPECIALTY RETAIL STORES,2022-23Q2_PC0393
Sandwell Metropolitan Borough Council,http://www.sandwell.gov.uk/info/200202/performance_and_spending/3233/government_procurement_cards,18-Jul-2022,Total ASCHWB,AMZNMktplace,Total Adult Social Care,71.50,MISCELLANEOUS AND SPECIALTY RETAIL STORES,2022-23Q2_PC0394
Sandwell Metropolitan Borough Council,http://www.sandwell.gov.uk/info/200202/performance_and_spending/3233/government_procurement_cards,18-Jul-2022,Total ASCHWB,WWW.OFFICETEAMCONNECT.,Total Adult Social Care,49.60,STATIONERY/OFFICE SUPPLIES/PRINTING & WRITING PAP.,2022-23Q2_PC0395
Sandwell Metropolitan Borough Council,http://www.sandwell.gov.uk/info/200202/performance_and_spending/3233/government_procurement_cards,18-Jul-2022,Total ASCHWB,ICELAND FOODS,Total Adult Social Care,144.85,"GROCERY STORES, SUPERMARKETS",2022-23Q2_PC0396
Sandwell Metropolitan Borough Council,http://www.sandwell.gov.uk/info/200202/performance_and_spending/3233/government_procurement_cards,18-Jul-2022,Total ASCHWB,AMZNMktplace,Total Adult Social Care,59.90,MISCELLANEOUS AND SPECIALTY RETAIL STORES,2022-23Q2_PC0397
Sandwell Metropolitan Borough Council,http://www.sandwell.gov.uk/info/200202/performance_and_spending/3233/government_procurement_cards,18-Jul-2022,Total ASCHWB,ASDA GROCERIES ONLINE,Total Adult Social Care,52.07,"GROCERY STORES, SUPERMARKETS",2022-23Q2_PC0398
Sandwell Metropolitan Borough Council,http://www.sandwell.gov.uk/info/200202/performance_and_spending/3233/government_procurement_cards,18-Jul-2022,FINANCE (Inc SIU),WWW.OFFICETEAMCONNECT.,Total Adult Social Care,45.45,STATIONERY/OFFICE SUPPLIES/PRINTING & WRITING PAP.,2022-23Q2_PC0399
Sandwell Metropolitan Borough Council,http://www.sandwell.gov.uk/info/200202/performance_and_spending/3233/government_procurement_cards,18-Jul-2022,Total Borough Economy,Amazon.co.uk 017YG6RS5,Total Adult Social Care,19.94,DIRECT MARKETING-OTHER DIRECT MARKETERS/NOT ELSEW.,2022-23Q2_PC0400
Sandwell Metropolitan Borough Council,http://www.sandwell.gov.uk/info/200202/performance_and_spending/3233/government_procurement_cards,18-Jul-2022,Total Borough Economy,SPORTSDIRECT.COM,Total Adult Social Care,36.10,SPORTING GOODS STORES,2022-23Q2_PC0401
Sandwell Metropolitan Borough Council,http://www.sandwell.gov.uk/info/200202/performance_and_spending/3233/government_procurement_cards,18-Jul-2022,Total Borough Economy,ALDI 772 177,Total Adult Social Care,14.90,"GROCERY STORES, SUPERMARKETS",2022-23Q2_PC0402
Sandwell Metropolitan Borough Council,http://www.sandwell.gov.uk/info/200202/performance_and_spending/3233/government_procurement_cards,18-Jul-2022,Total Borough Economy,WWW.SCREWFIX.COM,Total Adult Social Care,73.50,"BUILDING MATERIALS, LUMBER STORES",2022-23Q2_PC0403
Sandwell Metropolitan Borough Council,http://www.sandwell.gov.uk/info/200202/performance_and_spending/3233/government_procurement_cards,18-Jul-2022,Total Borough Economy,PAYPAL  ONLY5POUNDS,Total Adult Social Care,29.95,DISCOUNT STORES,2022-23Q2_PC0404
Sandwell Metropolitan Borough Council,http://www.sandwell.gov.uk/info/200202/performance_and_spending/3233/government_procurement_cards,18-Jul-2022,Total Borough Economy,PAYPAL  ONLY5POUNDS,Total Adult Social Care,34.95,DISCOUNT STORES,2022-23Q2_PC0405
Sandwell Metropolitan Borough Council,http://www.sandwell.gov.uk/info/200202/performance_and_spending/3233/government_procurement_cards,18-Jul-2022,Total Borough Economy,PAYPAL  ONLY5POUNDS,Total Adult Social Care,34.95,DISCOUNT STORES,2022-23Q2_PC0406
Sandwell Metropolitan Borough Council,http://www.sandwell.gov.uk/info/200202/performance_and_spending/3233/government_procurement_cards,18-Jul-2022,Total Borough Economy,PAYPAL  ONLY5POUNDS,Total Adult Social Care,34.95,DISCOUNT STORES,2022-23Q2_PC0407
Sandwell Metropolitan Borough Council,http://www.sandwell.gov.uk/info/200202/performance_and_spending/3233/government_procurement_cards,18-Jul-2022,Total Borough Economy,AMZNMktplace,Total Adult Social Care,63.91,MISCELLANEOUS AND SPECIALTY RETAIL STORES,2022-23Q2_PC0408
Sandwell Metropolitan Borough Council,http://www.sandwell.gov.uk/info/200202/performance_and_spending/3233/government_procurement_cards,18-Jul-2022,Total Borough Economy,TESCO STORES 6197,Total Adult Social Care,5.60,"GROCERY STORES, SUPERMARKETS",2022-23Q2_PC0409
Sandwell Metropolitan Borough Council,http://www.sandwell.gov.uk/info/200202/performance_and_spending/3233/government_procurement_cards,18-Jul-2022,Total Borough Economy,W M MORRISONS.COM,Total Adult Social Care,64.40,"GROCERY STORES, SUPERMARKETS",2022-23Q2_PC0410
Sandwell Metropolitan Borough Council,http://www.sandwell.gov.uk/info/200202/performance_and_spending/3233/government_procurement_cards,18-Jul-2022,Total Borough Economy,W M MORRISONS.COM,Total Adult Social Care,46.50,"GROCERY STORES, SUPERMARKETS",2022-23Q2_PC0411
Sandwell Metropolitan Borough Council,http://www.sandwell.gov.uk/info/200202/performance_and_spending/3233/government_procurement_cards,18-Jul-2022,Total Borough Economy,ARGOS LTD,Total Adult Social Care,172.99,DISCOUNT STORES,2022-23Q2_PC0412
Sandwell Metropolitan Borough Council,http://www.sandwell.gov.uk/info/200202/performance_and_spending/3233/government_procurement_cards,18-Jul-2022,Total Borough Economy,AMZNMktplace,Total Adult Social Care,79.99,MISCELLANEOUS AND SPECIALTY RETAIL STORES,2022-23Q2_PC0413
Sandwell Metropolitan Borough Council,http://www.sandwell.gov.uk/info/200202/performance_and_spending/3233/government_procurement_cards,18-Jul-2022,Total Borough Economy,WETRANSFER,Total Adult Social Care,10.52,"COMP PROGRAMING,DATA PRCSNG,INTGRTD SYS DSGN SRVS",2022-23Q2_PC0414
Sandwell Metropolitan Borough Council,http://www.sandwell.gov.uk/info/200202/performance_and_spending/3233/government_procurement_cards,18-Jul-2022,Total Borough Economy,Vistaprint,Total Adult Social Care,64.06,BUSINESS SERVICES-NOT ELSEWHERE CLASSIFIED,2022-23Q2_PC0415
Sandwell Metropolitan Borough Council,http://www.sandwell.gov.uk/info/200202/performance_and_spending/3233/government_procurement_cards,18-Jul-2022,Total Borough Economy,AMZNMKTPLACE AMAZON.CO,Total Adult Social Care,44.07,MISCELLANEOUS AND SPECIALTY RETAIL STORES,2022-23Q2_PC0416
Sandwell Metropolitan Borough Council,http://www.sandwell.gov.uk/info/200202/performance_and_spending/3233/government_procurement_cards,18-Jul-2022,Total Borough Economy,AMZNMktplace,Total Adult Social Care,5.68,MISCELLANEOUS AND SPECIALTY RETAIL STORES,2022-23Q2_PC0417
Sandwell Metropolitan Borough Council,http://www.sandwell.gov.uk/info/200202/performance_and_spending/3233/government_procurement_cards,18-Jul-2022,Total Borough Economy,Vistaprint,Total Adult Social Care,68.58,BUSINESS SERVICES-NOT ELSEWHERE CLASSIFIED,2022-23Q2_PC0418
Sandwell Metropolitan Borough Council,http://www.sandwell.gov.uk/info/200202/performance_and_spending/3233/government_procurement_cards,18-Jul-2022,Total Housing Revenue Account,Amazon.co.uk OB2K20DT5,Total Housing Revenue Account,19.61,DIRECT MARKETING-OTHER DIRECT MARKETERS/NOT ELSEW.,2022-23Q2_PC0419
Sandwell Metropolitan Borough Council,http://www.sandwell.gov.uk/info/200202/performance_and_spending/3233/government_procurement_cards,18-Jul-2022,Total Housing Revenue Account,Blackheath Flowers,Total Housing Revenue Account,52.50,LAWN AND GARDEN SUPPLY STORES,2022-23Q2_PC0420
Sandwell Metropolitan Borough Council,http://www.sandwell.gov.uk/info/200202/performance_and_spending/3233/government_procurement_cards,18-Jul-2022,Total Housing Revenue Account,AMZNMKTPLACE AMAZON.CO,Total Housing Revenue Account,144.00,MISCELLANEOUS AND SPECIALTY RETAIL STORES,2022-23Q2_PC0421
Sandwell Metropolitan Borough Council,http://www.sandwell.gov.uk/info/200202/performance_and_spending/3233/government_procurement_cards,19-Jul-2022,Total Business Strategy & Change,Amazon.co.uk BL3HO6W85,Assistant Chief Executive (Excl SIU),25.08,DIRECT MARKETING-OTHER DIRECT MARKETERS/NOT ELSEW.,2022-23Q2_PC0422
Sandwell Metropolitan Borough Council,http://www.sandwell.gov.uk/info/200202/performance_and_spending/3233/government_procurement_cards,19-Jul-2022,Childrens Services,AMZNMKTPLACE AMAZON.CO,Childrens Services,141.36,MISCELLANEOUS AND SPECIALTY RETAIL STORES,2022-23Q2_PC0423
Sandwell Metropolitan Borough Council,http://www.sandwell.gov.uk/info/200202/performance_and_spending/3233/government_procurement_cards,19-Jul-2022,Childrens Services,ASDA GROCERIES ONLINE,Childrens Services,-6.00,"GROCERY STORES, SUPERMARKETS",2022-23Q2_PC0424
Sandwell Metropolitan Borough Council,http://www.sandwell.gov.uk/info/200202/performance_and_spending/3233/government_procurement_cards,19-Jul-2022,Childrens Services,ASDA GROCERIES ONLINE,Childrens Services,71.35,"GROCERY STORES, SUPERMARKETS",2022-23Q2_PC0425
Sandwell Metropolitan Borough Council,http://www.sandwell.gov.uk/info/200202/performance_and_spending/3233/government_procurement_cards,19-Jul-2022,Childrens Services,TESCO STORES 2770,Childrens Services,60.06,"GROCERY STORES, SUPERMARKETS",2022-23Q2_PC0426
Sandwell Metropolitan Borough Council,http://www.sandwell.gov.uk/info/200202/performance_and_spending/3233/government_procurement_cards,19-Jul-2022,Childrens Services,ASDA,Childrens Services,104.15,"GROCERY STORES, SUPERMARKETS",2022-23Q2_PC0427
Sandwell Metropolitan Borough Council,http://www.sandwell.gov.uk/info/200202/performance_and_spending/3233/government_procurement_cards,19-Jul-2022,Housing & Assets Total,ASDA SUPERSTORE,Corporate Management,35.10,"GROCERY STORES, SUPERMARKETS",2022-23Q2_PC0428
Sandwell Metropolitan Borough Council,http://www.sandwell.gov.uk/info/200202/performance_and_spending/3233/government_procurement_cards,19-Jul-2022,Housing & Assets Total,B&M 697 - WEST BROMWIC,Corporate Management,4.50,MISCELLANEOUS GENERAL MERCHANDISE,2022-23Q2_PC0429
Sandwell Metropolitan Borough Council,http://www.sandwell.gov.uk/info/200202/performance_and_spending/3233/government_procurement_cards,19-Jul-2022,Housing & Assets Total,ASDA SUPERSTORE,Corporate Management,5.82,"GROCERY STORES, SUPERMARKETS",2022-23Q2_PC0430
Sandwell Metropolitan Borough Council,http://www.sandwell.gov.uk/info/200202/performance_and_spending/3233/government_procurement_cards,19-Jul-2022,Housing & Assets Total,POST OFFICE COUNTER,Corporate Management,10.88,POSTAL SERVICES-GOVERNMENT ONLY,2022-23Q2_PC0431
Sandwell Metropolitan Borough Council,http://www.sandwell.gov.uk/info/200202/performance_and_spending/3233/government_procurement_cards,19-Jul-2022,Housing & Assets Total,BOOTS THE,Corporate Management,31.50,"DRUG STORES, PHARMACIES",2022-23Q2_PC0432
Sandwell Metropolitan Borough Council,http://www.sandwell.gov.uk/info/200202/performance_and_spending/3233/government_procurement_cards,19-Jul-2022,Housing & Assets Total,AMZNMktplace,Corporate Management,8.99,MISCELLANEOUS AND SPECIALTY RETAIL STORES,2022-23Q2_PC0433
Sandwell Metropolitan Borough Council,http://www.sandwell.gov.uk/info/200202/performance_and_spending/3233/government_procurement_cards,19-Jul-2022,Total Public Health,Flextronics,Public Health,48.00,COMPUTER MAIN./REPAIR/SERVICES NOT ELSEWHERE CLASS,2022-23Q2_PC0434
Sandwell Metropolitan Borough Council,http://www.sandwell.gov.uk/info/200202/performance_and_spending/3233/government_procurement_cards,19-Jul-2022,Regeneration & Growth,AMZNMktplace,Regeneration And The Economy,6.40,MISCELLANEOUS AND SPECIALTY RETAIL STORES,2022-23Q2_PC0435
Sandwell Metropolitan Borough Council,http://www.sandwell.gov.uk/info/200202/performance_and_spending/3233/government_procurement_cards,19-Jul-2022,Total Borough Economy,AMZNMKTPLACE AMAZON.CO,Total Adult Social Care,7.99,MISCELLANEOUS AND SPECIALTY RETAIL STORES,2022-23Q2_PC0436
Sandwell Metropolitan Borough Council,http://www.sandwell.gov.uk/info/200202/performance_and_spending/3233/government_procurement_cards,19-Jul-2022,Total Borough Economy,AMZNMktplace,Total Adult Social Care,25.95,MISCELLANEOUS AND SPECIALTY RETAIL STORES,2022-23Q2_PC0437
Sandwell Metropolitan Borough Council,http://www.sandwell.gov.uk/info/200202/performance_and_spending/3233/government_procurement_cards,19-Jul-2022,Total Borough Economy,Amazon.co.uk 1J5CN7PS5,Total Adult Social Care,5.69,DIRECT MARKETING-OTHER DIRECT MARKETERS/NOT ELSEW.,2022-23Q2_PC0438
Sandwell Metropolitan Borough Council,http://www.sandwell.gov.uk/info/200202/performance_and_spending/3233/government_procurement_cards,19-Jul-2022,Total Borough Economy,AMZNMktplace,Total Adult Social Care,76.96,MISCELLANEOUS AND SPECIALTY RETAIL STORES,2022-23Q2_PC0439
Sandwell Metropolitan Borough Council,http://www.sandwell.gov.uk/info/200202/performance_and_spending/3233/government_procurement_cards,19-Jul-2022,Total Borough Economy,VIKING UK,Total Adult Social Care,23.86,STATIONERY/OFFICE SUPPLIES/PRINTING & WRITING PAP.,2022-23Q2_PC0440
Sandwell Metropolitan Borough Council,http://www.sandwell.gov.uk/info/200202/performance_and_spending/3233/government_procurement_cards,19-Jul-2022,Total Borough Economy,ASDA SUPERSTORE,Total Adult Social Care,12.80,"GROCERY STORES, SUPERMARKETS",2022-23Q2_PC0441
Sandwell Metropolitan Borough Council,http://www.sandwell.gov.uk/info/200202/performance_and_spending/3233/government_procurement_cards,19-Jul-2022,Total Borough Economy,HERON FOODS,Total Adult Social Care,5.00,"GROCERY STORES, SUPERMARKETS",2022-23Q2_PC0442
Sandwell Metropolitan Borough Council,http://www.sandwell.gov.uk/info/200202/performance_and_spending/3233/government_procurement_cards,19-Jul-2022,Total Borough Economy,Amazon.co.uk 9L83O8ZR5,Total Adult Social Care,89.98,DIRECT MARKETING-OTHER DIRECT MARKETERS/NOT ELSEW.,2022-23Q2_PC0443
Sandwell Metropolitan Borough Council,http://www.sandwell.gov.uk/info/200202/performance_and_spending/3233/government_procurement_cards,20-Jul-2022,Total Business Strategy & Change,AMZNMKTPLACE AMAZON.CO,Assistant Chief Executive (Excl SIU),45.89,MISCELLANEOUS AND SPECIALTY RETAIL STORES,2022-23Q2_PC0444
Sandwell Metropolitan Borough Council,http://www.sandwell.gov.uk/info/200202/performance_and_spending/3233/government_procurement_cards,20-Jul-2022,Total Business Strategy & Change,AMZNMKTPLACE AMAZON.CO,Assistant Chief Executive (Excl SIU),45.89,MISCELLANEOUS AND SPECIALTY RETAIL STORES,2022-23Q2_PC0445
Sandwell Metropolitan Borough Council,http://www.sandwell.gov.uk/info/200202/performance_and_spending/3233/government_procurement_cards,20-Jul-2022,Total Business Strategy & Change,ONE4ALL,Assistant Chief Executive (Excl SIU),50.00,DEPARTMENT STORES,2022-23Q2_PC0446
Sandwell Metropolitan Borough Council,http://www.sandwell.gov.uk/info/200202/performance_and_spending/3233/government_procurement_cards,20-Jul-2022,Total Business Strategy & Change,SMYTHSTOYS.COM,Assistant Chief Executive (Excl SIU),50.00,"GAME, TOY, AND HOBBY SHOPS",2022-23Q2_PC0447
Sandwell Metropolitan Borough Council,http://www.sandwell.gov.uk/info/200202/performance_and_spending/3233/government_procurement_cards,20-Jul-2022,FINANCE (Inc SIU),AMZNMktplace,Assistant Chief Executive (Excl SIU),49.50,MISCELLANEOUS AND SPECIALTY RETAIL STORES,2022-23Q2_PC0448
Sandwell Metropolitan Borough Council,http://www.sandwell.gov.uk/info/200202/performance_and_spending/3233/government_procurement_cards,20-Jul-2022,FINANCE (Inc SIU),POST OFFICE COUNTER,Assistant Chief Executive (Excl SIU),6.85,POSTAL SERVICES-GOVERNMENT ONLY,2022-23Q2_PC0449
Sandwell Metropolitan Borough Council,http://www.sandwell.gov.uk/info/200202/performance_and_spending/3233/government_procurement_cards,20-Jul-2022,Director of Law & Governance,AMZNMktplace,Assistant Chief Executive (Excl SIU),40.69,MISCELLANEOUS AND SPECIALTY RETAIL STORES,2022-23Q2_PC0450
Sandwell Metropolitan Borough Council,http://www.sandwell.gov.uk/info/200202/performance_and_spending/3233/government_procurement_cards,20-Jul-2022,Director of Law & Governance,WWW.OFFICETEAMCONNECT.,Assistant Chief Executive (Excl SIU),77.14,STATIONERY/OFFICE SUPPLIES/PRINTING & WRITING PAP.,2022-23Q2_PC0451
Sandwell Metropolitan Borough Council,http://www.sandwell.gov.uk/info/200202/performance_and_spending/3233/government_procurement_cards,20-Jul-2022,Childrens Services,AMZNMKTPLACE AMAZON.CO,Childrens Services,45.70,MISCELLANEOUS AND SPECIALTY RETAIL STORES,2022-23Q2_PC0452
Sandwell Metropolitan Borough Council,http://www.sandwell.gov.uk/info/200202/performance_and_spending/3233/government_procurement_cards,20-Jul-2022,Childrens Services,Amazon Prime EP60C6MZ5,Childrens Services,7.99,DIRECT MARKETING-CONTINUITY/SUBSCRIPTION MERCHANTS,2022-23Q2_PC0453
Sandwell Metropolitan Borough Council,http://www.sandwell.gov.uk/info/200202/performance_and_spending/3233/government_procurement_cards,20-Jul-2022,Childrens Services,Amazon Prime XO6DO8ZU5,Childrens Services,7.99,DIRECT MARKETING-CONTINUITY/SUBSCRIPTION MERCHANTS,2022-23Q2_PC0454
Sandwell Metropolitan Borough Council,http://www.sandwell.gov.uk/info/200202/performance_and_spending/3233/government_procurement_cards,20-Jul-2022,Childrens Services,.,Childrens Services,81.70,RECREATIONAL AND SPORTING CAMPS,2022-23Q2_PC0455
Sandwell Metropolitan Borough Council,http://www.sandwell.gov.uk/info/200202/performance_and_spending/3233/government_procurement_cards,20-Jul-2022,Childrens Services,WWW.OFFICETEAMCONNECT.,Childrens Services,54.81,STATIONERY/OFFICE SUPPLIES/PRINTING & WRITING PAP.,2022-23Q2_PC0456
Sandwell Metropolitan Borough Council,http://www.sandwell.gov.uk/info/200202/performance_and_spending/3233/government_procurement_cards,20-Jul-2022,Childrens Services,AMZNMktplace,Childrens Services,39.58,MISCELLANEOUS AND SPECIALTY RETAIL STORES,2022-23Q2_PC0457
Sandwell Metropolitan Borough Council,http://www.sandwell.gov.uk/info/200202/performance_and_spending/3233/government_procurement_cards,20-Jul-2022,Childrens Services,AMZNMktplace,Childrens Services,52.92,MISCELLANEOUS AND SPECIALTY RETAIL STORES,2022-23Q2_PC0458
Sandwell Metropolitan Borough Council,http://www.sandwell.gov.uk/info/200202/performance_and_spending/3233/government_procurement_cards,20-Jul-2022,Childrens Services,Spotify UK,Childrens Services,9.99,DIGITAL GOODS AUDIOVISUAL MEDIA,2022-23Q2_PC0459
Sandwell Metropolitan Borough Council,http://www.sandwell.gov.uk/info/200202/performance_and_spending/3233/government_procurement_cards,20-Jul-2022,Housing & Assets Total,ALDI 109 772,Corporate Management,16.06,"GROCERY STORES, SUPERMARKETS",2022-23Q2_PC0460
Sandwell Metropolitan Borough Council,http://www.sandwell.gov.uk/info/200202/performance_and_spending/3233/government_procurement_cards,20-Jul-2022,Housing & Assets Total,TRAVELODGE,Corporate Management,448.73,TRAVELODGE,2022-23Q2_PC0461
Sandwell Metropolitan Borough Council,http://www.sandwell.gov.uk/info/200202/performance_and_spending/3233/government_procurement_cards,20-Jul-2022,Housing & Assets Total,Amazon Prime AD6K20F15,Corporate Management,7.99,DIRECT MARKETING-CONTINUITY/SUBSCRIPTION MERCHANTS,2022-23Q2_PC0462
Sandwell Metropolitan Borough Council,http://www.sandwell.gov.uk/info/200202/performance_and_spending/3233/government_procurement_cards,20-Jul-2022,Housing & Assets Total,Amazon.co.uk WM7LA9HI5,Corporate Management,3.30,DIRECT MARKETING-OTHER DIRECT MARKETERS/NOT ELSEW.,2022-23Q2_PC0463
Sandwell Metropolitan Borough Council,http://www.sandwell.gov.uk/info/200202/performance_and_spending/3233/government_procurement_cards,20-Jul-2022,Housing & Assets Total,Amazon.co.uk K94AN7LS5,Corporate Management,24.75,DIRECT MARKETING-OTHER DIRECT MARKETERS/NOT ELSEW.,2022-23Q2_PC0464
Sandwell Metropolitan Borough Council,http://www.sandwell.gov.uk/info/200202/performance_and_spending/3233/government_procurement_cards,20-Jul-2022,Housing & Assets Total,Amazon.co.uk 4V97D1LW5,Corporate Management,23.79,DIRECT MARKETING-OTHER DIRECT MARKETERS/NOT ELSEW.,2022-23Q2_PC0465
Sandwell Metropolitan Borough Council,http://www.sandwell.gov.uk/info/200202/performance_and_spending/3233/government_procurement_cards,20-Jul-2022,Individual School Budgets With Inclusion,ASDA GROCERIES ONLINE,Individual School Budgets With Inclusion,-8.45,"GROCERY STORES, SUPERMARKETS",2022-23Q2_PC0466
Sandwell Metropolitan Borough Council,http://www.sandwell.gov.uk/info/200202/performance_and_spending/3233/government_procurement_cards,20-Jul-2022,Individual School Budgets With Inclusion,ASDA GROCERIES ONLINE,Individual School Budgets With Inclusion,49.18,"GROCERY STORES, SUPERMARKETS",2022-23Q2_PC0467
Sandwell Metropolitan Borough Council,http://www.sandwell.gov.uk/info/200202/performance_and_spending/3233/government_procurement_cards,20-Jul-2022,Regeneration & Growth,Trainline.COM,Regeneration And The Economy,84.77,PASSENGER RAILWAYS,2022-23Q2_PC0468
Sandwell Metropolitan Borough Council,http://www.sandwell.gov.uk/info/200202/performance_and_spending/3233/government_procurement_cards,20-Jul-2022,Total ASCHWB,POUNDLAND LTD 1729,Total Adult Social Care,10.00,DISCOUNT STORES,2022-23Q2_PC0469
Sandwell Metropolitan Borough Council,http://www.sandwell.gov.uk/info/200202/performance_and_spending/3233/government_procurement_cards,20-Jul-2022,FINANCE (Inc SIU),WWW.OFFICETEAMCONNECT.,Total Adult Social Care,45.44,STATIONERY/OFFICE SUPPLIES/PRINTING & WRITING PAP.,2022-23Q2_PC0470
Sandwell Metropolitan Borough Council,http://www.sandwell.gov.uk/info/200202/performance_and_spending/3233/government_procurement_cards,20-Jul-2022,Total Borough Economy,AMZNMktplace,Total Adult Social Care,149.34,MISCELLANEOUS AND SPECIALTY RETAIL STORES,2022-23Q2_PC0471
Sandwell Metropolitan Borough Council,http://www.sandwell.gov.uk/info/200202/performance_and_spending/3233/government_procurement_cards,20-Jul-2022,Total Borough Economy,FUTURE GARMENTS LTD,Total Adult Social Care,534.60,MEN'S/WOMEN'S/CHILDREN'S UNIFORMS/COMMERCIAL CLOTH,2022-23Q2_PC0472
Sandwell Metropolitan Borough Council,http://www.sandwell.gov.uk/info/200202/performance_and_spending/3233/government_procurement_cards,20-Jul-2022,Total Borough Economy,FUTURE GARMENTS LTD,Total Adult Social Care,534.60,MEN'S/WOMEN'S/CHILDREN'S UNIFORMS/COMMERCIAL CLOTH,2022-23Q2_PC0473
Sandwell Metropolitan Borough Council,http://www.sandwell.gov.uk/info/200202/performance_and_spending/3233/government_procurement_cards,20-Jul-2022,Total Borough Economy,Amazon.co.uk T41SG8VX5,Total Adult Social Care,18.93,DIRECT MARKETING-OTHER DIRECT MARKETERS/NOT ELSEW.,2022-23Q2_PC0474
Sandwell Metropolitan Borough Council,http://www.sandwell.gov.uk/info/200202/performance_and_spending/3233/government_procurement_cards,20-Jul-2022,Total Borough Economy,Amazon.co.uk PH0FH45L5,Total Adult Social Care,33.17,DIRECT MARKETING-OTHER DIRECT MARKETERS/NOT ELSEW.,2022-23Q2_PC0475
Sandwell Metropolitan Borough Council,http://www.sandwell.gov.uk/info/200202/performance_and_spending/3233/government_procurement_cards,20-Jul-2022,Total Borough Economy,VIKING UK,Total Adult Social Care,129.32,STATIONERY/OFFICE SUPPLIES/PRINTING & WRITING PAP.,2022-23Q2_PC0476
Sandwell Metropolitan Borough Council,http://www.sandwell.gov.uk/info/200202/performance_and_spending/3233/government_procurement_cards,20-Jul-2022,Total Borough Economy,AMZNMktplace,Total Adult Social Care,10.99,MISCELLANEOUS AND SPECIALTY RETAIL STORES,2022-23Q2_PC0477
Sandwell Metropolitan Borough Council,http://www.sandwell.gov.uk/info/200202/performance_and_spending/3233/government_procurement_cards,20-Jul-2022,Total Borough Economy,Renault Stoke,Total Adult Social Care,-67.16,AUTOMOTIVE SERVICE SHOPS,2022-23Q2_PC0478
Sandwell Metropolitan Borough Council,http://www.sandwell.gov.uk/info/200202/performance_and_spending/3233/government_procurement_cards,20-Jul-2022,Total Housing Revenue Account,WWW.SCREWFIX.COM,Total Housing Revenue Account,92.20,"BUILDING MATERIALS, LUMBER STORES",2022-23Q2_PC0479
Sandwell Metropolitan Borough Council,http://www.sandwell.gov.uk/info/200202/performance_and_spending/3233/government_procurement_cards,21-Jul-2022,Director of Law & Governance,AMZNMKTPLACE AMAZON.CO,Assistant Chief Executive (Excl SIU),68.81,MISCELLANEOUS AND SPECIALTY RETAIL STORES,2022-23Q2_PC0480
Sandwell Metropolitan Borough Council,http://www.sandwell.gov.uk/info/200202/performance_and_spending/3233/government_procurement_cards,21-Jul-2022,Childrens Services,BEEBYS BUBBLES,Childrens Services,84.00,"CLEANING, GARMENT, AND LAUNDRY SERVICES",2022-23Q2_PC0481
Sandwell Metropolitan Borough Council,http://www.sandwell.gov.uk/info/200202/performance_and_spending/3233/government_procurement_cards,21-Jul-2022,Childrens Services,ASDA,Childrens Services,42.45,"GROCERY STORES, SUPERMARKETS",2022-23Q2_PC0482
Sandwell Metropolitan Borough Council,http://www.sandwell.gov.uk/info/200202/performance_and_spending/3233/government_procurement_cards,21-Jul-2022,Housing & Assets Total,Amazon.co.uk A19JF6D25,Corporate Management,299.98,DIRECT MARKETING-OTHER DIRECT MARKETERS/NOT ELSEW.,2022-23Q2_PC0483
Sandwell Metropolitan Borough Council,http://www.sandwell.gov.uk/info/200202/performance_and_spending/3233/government_procurement_cards,21-Jul-2022,Individual School Budgets With Inclusion,AMZNMktplace,Individual School Budgets With Inclusion,8.99,MISCELLANEOUS AND SPECIALTY RETAIL STORES,2022-23Q2_PC0484
Sandwell Metropolitan Borough Council,http://www.sandwell.gov.uk/info/200202/performance_and_spending/3233/government_procurement_cards,21-Jul-2022,Individual School Budgets With Inclusion,MCDONALDS,Individual School Budgets With Inclusion,35.12,FAST FOOD RESTAURANTS,2022-23Q2_PC0485
Sandwell Metropolitan Borough Council,http://www.sandwell.gov.uk/info/200202/performance_and_spending/3233/government_procurement_cards,21-Jul-2022,Individual School Budgets With Inclusion,WWW.SCREWFIX.COM,Individual School Budgets With Inclusion,70.52,"BUILDING MATERIALS, LUMBER STORES",2022-23Q2_PC0486
Sandwell Metropolitan Borough Council,http://www.sandwell.gov.uk/info/200202/performance_and_spending/3233/government_procurement_cards,21-Jul-2022,Individual School Budgets With Inclusion,AMZNMktplace,Individual School Budgets With Inclusion,15.99,MISCELLANEOUS AND SPECIALTY RETAIL STORES,2022-23Q2_PC0487
Sandwell Metropolitan Borough Council,http://www.sandwell.gov.uk/info/200202/performance_and_spending/3233/government_procurement_cards,21-Jul-2022,Regeneration & Growth,Birmingham2022 Tickets,Regeneration And The Economy,350.00,"THEATRICAL PRODUCERS(EXCL MOTION PIX),TICKET AGNCY",2022-23Q2_PC0488
Sandwell Metropolitan Borough Council,http://www.sandwell.gov.uk/info/200202/performance_and_spending/3233/government_procurement_cards,21-Jul-2022,Regeneration & Growth,AMZNMktplace,Regeneration And The Economy,42.34,MISCELLANEOUS AND SPECIALTY RETAIL STORES,2022-23Q2_PC0489
Sandwell Metropolitan Borough Council,http://www.sandwell.gov.uk/info/200202/performance_and_spending/3233/government_procurement_cards,21-Jul-2022,Total ASCHWB,AMZNMktplace,Total Adult Social Care,389.99,MISCELLANEOUS AND SPECIALTY RETAIL STORES,2022-23Q2_PC0490
Sandwell Metropolitan Borough Council,http://www.sandwell.gov.uk/info/200202/performance_and_spending/3233/government_procurement_cards,21-Jul-2022,Total ASCHWB,AMZNMktplace,Total Adult Social Care,24.98,MISCELLANEOUS AND SPECIALTY RETAIL STORES,2022-23Q2_PC0491
Sandwell Metropolitan Borough Council,http://www.sandwell.gov.uk/info/200202/performance_and_spending/3233/government_procurement_cards,21-Jul-2022,Total ASCHWB,AMZ Amazon.co.uk,Total Adult Social Care,-30.89,DIRECT MARKETING-OTHER DIRECT MARKETERS/NOT ELSEW.,2022-23Q2_PC0492
Sandwell Metropolitan Borough Council,http://www.sandwell.gov.uk/info/200202/performance_and_spending/3233/government_procurement_cards,21-Jul-2022,Total ASCHWB,Amazon.co.uk LI77U4ZG5,Total Adult Social Care,33.43,DIRECT MARKETING-OTHER DIRECT MARKETERS/NOT ELSEW.,2022-23Q2_PC0493
Sandwell Metropolitan Borough Council,http://www.sandwell.gov.uk/info/200202/performance_and_spending/3233/government_procurement_cards,21-Jul-2022,Total Borough Economy,AMZNMktplace,Total Adult Social Care,18.97,MISCELLANEOUS AND SPECIALTY RETAIL STORES,2022-23Q2_PC0494
Sandwell Metropolitan Borough Council,http://www.sandwell.gov.uk/info/200202/performance_and_spending/3233/government_procurement_cards,21-Jul-2022,Total Borough Economy,WWW.NISBETS.COM,Total Adult Social Care,907.05,DIRECT MARKETING-CATALOG MERCHANTS,2022-23Q2_PC0495
Sandwell Metropolitan Borough Council,http://www.sandwell.gov.uk/info/200202/performance_and_spending/3233/government_procurement_cards,21-Jul-2022,Total Borough Economy,WWW.NISBETS.COM,Total Adult Social Care,907.05,DIRECT MARKETING-CATALOG MERCHANTS,2022-23Q2_PC0496
Sandwell Metropolitan Borough Council,http://www.sandwell.gov.uk/info/200202/performance_and_spending/3233/government_procurement_cards,21-Jul-2022,Total Borough Economy,WWW.NISBETS.COM,Total Adult Social Care,453.52,DIRECT MARKETING-CATALOG MERCHANTS,2022-23Q2_PC0497
Sandwell Metropolitan Borough Council,http://www.sandwell.gov.uk/info/200202/performance_and_spending/3233/government_procurement_cards,21-Jul-2022,Total Borough Economy,PAYPAL  ONLY5POUNDS,Total Adult Social Care,34.95,DISCOUNT STORES,2022-23Q2_PC0498
Sandwell Metropolitan Borough Council,http://www.sandwell.gov.uk/info/200202/performance_and_spending/3233/government_procurement_cards,21-Jul-2022,Total Borough Economy,WWW.NISBETS.COM,Total Adult Social Care,239.97,DIRECT MARKETING-CATALOG MERCHANTS,2022-23Q2_PC0499
Sandwell Metropolitan Borough Council,http://www.sandwell.gov.uk/info/200202/performance_and_spending/3233/government_procurement_cards,21-Jul-2022,Total Borough Economy,SAINSBURYS,Total Adult Social Care,28.50,"GROCERY STORES, SUPERMARKETS",2022-23Q2_PC0500
Sandwell Metropolitan Borough Council,http://www.sandwell.gov.uk/info/200202/performance_and_spending/3233/government_procurement_cards,21-Jul-2022,Total Borough Economy,SAINSBURYS S/MKTS,Total Adult Social Care,50.00,"GROCERY STORES, SUPERMARKETS",2022-23Q2_PC0501
Sandwell Metropolitan Borough Council,http://www.sandwell.gov.uk/info/200202/performance_and_spending/3233/government_procurement_cards,21-Jul-2022,Total Borough Economy,Trainline,Total Adult Social Care,67.70,PASSENGER RAILWAYS,2022-23Q2_PC0502
Sandwell Metropolitan Borough Council,http://www.sandwell.gov.uk/info/200202/performance_and_spending/3233/government_procurement_cards,21-Jul-2022,Total Borough Economy,AMZNMKTPLACE AMAZON.CO,Total Adult Social Care,35.99,MISCELLANEOUS AND SPECIALTY RETAIL STORES,2022-23Q2_PC0503
Sandwell Metropolitan Borough Council,http://www.sandwell.gov.uk/info/200202/performance_and_spending/3233/government_procurement_cards,21-Jul-2022,Total Borough Economy,MY-ACCESSORIES.CO.UK,Total Adult Social Care,37.70,MISCELLANEOUS GENERAL MERCHANDISE,2022-23Q2_PC0504
Sandwell Metropolitan Borough Council,http://www.sandwell.gov.uk/info/200202/performance_and_spending/3233/government_procurement_cards,21-Jul-2022,Housing & Assets Total,Amazon.co.uk 0L6PR5P85,Total Adult Social Care,899.80,DIRECT MARKETING-OTHER DIRECT MARKETERS/NOT ELSEW.,2022-23Q2_PC0505
Sandwell Metropolitan Borough Council,http://www.sandwell.gov.uk/info/200202/performance_and_spending/3233/government_procurement_cards,21-Jul-2022,Total Housing Revenue Account,AMZNMKTPLACE AMAZON.CO,Total Housing Revenue Account,12.95,MISCELLANEOUS AND SPECIALTY RETAIL STORES,2022-23Q2_PC0506
Sandwell Metropolitan Borough Council,http://www.sandwell.gov.uk/info/200202/performance_and_spending/3233/government_procurement_cards,21-Jul-2022,Total Housing Revenue Account,AMZNMktplace,Total Housing Revenue Account,34.98,MISCELLANEOUS AND SPECIALTY RETAIL STORES,2022-23Q2_PC0507
Sandwell Metropolitan Borough Council,http://www.sandwell.gov.uk/info/200202/performance_and_spending/3233/government_procurement_cards,21-Jul-2022,Total Housing Revenue Account,AMZNMktplace,Total Housing Revenue Account,34.98,MISCELLANEOUS AND SPECIALTY RETAIL STORES,2022-23Q2_PC0508
Sandwell Metropolitan Borough Council,http://www.sandwell.gov.uk/info/200202/performance_and_spending/3233/government_procurement_cards,21-Jul-2022,Total Housing Revenue Account,CAPITA GAS,Total Housing Revenue Account,48.00,"ORGANIZATIONS, MEMBERSHIP-NOT ELSEWHERE CLASSIFIED",2022-23Q2_PC0509
Sandwell Metropolitan Borough Council,http://www.sandwell.gov.uk/info/200202/performance_and_spending/3233/government_procurement_cards,21-Jul-2022,Regeneration And The Economy Capital,ASDA STORES LTD 5865,Regeneration And The Economy Capital,13.10,"GROCERY STORES, SUPERMARKETS",2022-23Q2_PC0510
Sandwell Metropolitan Borough Council,http://www.sandwell.gov.uk/info/200202/performance_and_spending/3233/government_procurement_cards,21-Jul-2022,Housing & Assets Total,AMZNMktplace,Housing & Assets Total,59.98,MISCELLANEOUS AND SPECIALTY RETAIL STORES,2022-23Q2_PC0511
Sandwell Metropolitan Borough Council,http://www.sandwell.gov.uk/info/200202/performance_and_spending/3233/government_procurement_cards,22-Jul-2022,Total Business Strategy & Change,WWW.NUMED.CO.UK,Assistant Chief Executive (Excl SIU),121.20,DENTAL/LAB/MED/OPHTHALMIC HOSP EQUIP & SUPPLIES,2022-23Q2_PC0512
Sandwell Metropolitan Borough Council,http://www.sandwell.gov.uk/info/200202/performance_and_spending/3233/government_procurement_cards,22-Jul-2022,Total Business Strategy & Change,ONE4ALL,Assistant Chief Executive (Excl SIU),50.00,DEPARTMENT STORES,2022-23Q2_PC0513
Sandwell Metropolitan Borough Council,http://www.sandwell.gov.uk/info/200202/performance_and_spending/3233/government_procurement_cards,22-Jul-2022,Childrens Services,POST OFFICE COUNTER,Childrens Services,95.00,POSTAL SERVICES-GOVERNMENT ONLY,2022-23Q2_PC0514
Sandwell Metropolitan Borough Council,http://www.sandwell.gov.uk/info/200202/performance_and_spending/3233/government_procurement_cards,22-Jul-2022,Childrens Services,SAINSBURYS S/MKTS,Childrens Services,41.95,"GROCERY STORES, SUPERMARKETS",2022-23Q2_PC0515
Sandwell Metropolitan Borough Council,http://www.sandwell.gov.uk/info/200202/performance_and_spending/3233/government_procurement_cards,22-Jul-2022,Childrens Services,ALDI STORES,Childrens Services,6.79,"GROCERY STORES, SUPERMARKETS",2022-23Q2_PC0516
Sandwell Metropolitan Borough Council,http://www.sandwell.gov.uk/info/200202/performance_and_spending/3233/government_procurement_cards,22-Jul-2022,Childrens Services,UBER    TRIP,Childrens Services,5.27,LIMOUSINES AND TAXICABS,2022-23Q2_PC0517
Sandwell Metropolitan Borough Council,http://www.sandwell.gov.uk/info/200202/performance_and_spending/3233/government_procurement_cards,22-Jul-2022,Childrens Services,UBER    TRIP,Childrens Services,5.27,LIMOUSINES AND TAXICABS,2022-23Q2_PC0518
Sandwell Metropolitan Borough Council,http://www.sandwell.gov.uk/info/200202/performance_and_spending/3233/government_procurement_cards,22-Jul-2022,Childrens Services,AMZNMktplace,Childrens Services,12.99,MISCELLANEOUS AND SPECIALTY RETAIL STORES,2022-23Q2_PC0519
Sandwell Metropolitan Borough Council,http://www.sandwell.gov.uk/info/200202/performance_and_spending/3233/government_procurement_cards,22-Jul-2022,Childrens Services,SAINSBURYS S/MKTS,Childrens Services,36.84,"GROCERY STORES, SUPERMARKETS",2022-23Q2_PC0520
Sandwell Metropolitan Borough Council,http://www.sandwell.gov.uk/info/200202/performance_and_spending/3233/government_procurement_cards,22-Jul-2022,Childrens Services,SAINSBURYS S/MKTS,Childrens Services,28.16,"GROCERY STORES, SUPERMARKETS",2022-23Q2_PC0521
Sandwell Metropolitan Borough Council,http://www.sandwell.gov.uk/info/200202/performance_and_spending/3233/government_procurement_cards,22-Jul-2022,Childrens Services,YORKSHIRE PURCHASING O,Childrens Services,55.62,STATIONERY/OFFICE SUPPLIES/PRINTING & WRITING PAP.,2022-23Q2_PC0522
Sandwell Metropolitan Borough Council,http://www.sandwell.gov.uk/info/200202/performance_and_spending/3233/government_procurement_cards,22-Jul-2022,Housing & Assets Total,AMZNMKTPLACE AMAZON.CO,Corporate Management,21.99,MISCELLANEOUS AND SPECIALTY RETAIL STORES,2022-23Q2_PC0523
Sandwell Metropolitan Borough Council,http://www.sandwell.gov.uk/info/200202/performance_and_spending/3233/government_procurement_cards,22-Jul-2022,Housing & Assets Total,Amazon Prime 7L5093OY5,Corporate Management,7.99,DIRECT MARKETING-CONTINUITY/SUBSCRIPTION MERCHANTS,2022-23Q2_PC0524
Sandwell Metropolitan Borough Council,http://www.sandwell.gov.uk/info/200202/performance_and_spending/3233/government_procurement_cards,22-Jul-2022,Individual School Budgets With Inclusion,TINK N STINK,Individual School Budgets With Inclusion,95.61,MISCELLANEOUS GENERAL MERCHANDISE,2022-23Q2_PC0525
Sandwell Metropolitan Borough Council,http://www.sandwell.gov.uk/info/200202/performance_and_spending/3233/government_procurement_cards,22-Jul-2022,Individual School Budgets With Inclusion,AMZNMktplace,Individual School Budgets With Inclusion,187.20,MISCELLANEOUS AND SPECIALTY RETAIL STORES,2022-23Q2_PC0526
Sandwell Metropolitan Borough Council,http://www.sandwell.gov.uk/info/200202/performance_and_spending/3233/government_procurement_cards,22-Jul-2022,Individual School Budgets With Inclusion,SMYTHS TOYS OLDBURY,Individual School Budgets With Inclusion,89.95,"GAME, TOY, AND HOBBY SHOPS",2022-23Q2_PC0527
Sandwell Metropolitan Borough Council,http://www.sandwell.gov.uk/info/200202/performance_and_spending/3233/government_procurement_cards,22-Jul-2022,Total Public Health,AMZNMktplace,Public Health,51.98,MISCELLANEOUS AND SPECIALTY RETAIL STORES,2022-23Q2_PC0528
Sandwell Metropolitan Borough Council,http://www.sandwell.gov.uk/info/200202/performance_and_spending/3233/government_procurement_cards,22-Jul-2022,Total Public Health,AMZNMKTPLACE AMAZON.CO,Public Health,64.66,MISCELLANEOUS AND SPECIALTY RETAIL STORES,2022-23Q2_PC0529
Sandwell Metropolitan Borough Council,http://www.sandwell.gov.uk/info/200202/performance_and_spending/3233/government_procurement_cards,22-Jul-2022,Total Public Health,AMZNMKTPLACE AMAZON.CO,Public Health,39.97,MISCELLANEOUS AND SPECIALTY RETAIL STORES,2022-23Q2_PC0530
Sandwell Metropolitan Borough Council,http://www.sandwell.gov.uk/info/200202/performance_and_spending/3233/government_procurement_cards,22-Jul-2022,Regeneration & Growth,AMZNMKTPLACE AMAZON.CO,Regeneration And The Economy,5.09,MISCELLANEOUS AND SPECIALTY RETAIL STORES,2022-23Q2_PC0531
Sandwell Metropolitan Borough Council,http://www.sandwell.gov.uk/info/200202/performance_and_spending/3233/government_procurement_cards,22-Jul-2022,Regeneration & Growth,Amazon.co.uk 0Q0L99Z65,Regeneration And The Economy,102.65,DIRECT MARKETING-OTHER DIRECT MARKETERS/NOT ELSEW.,2022-23Q2_PC0532
Sandwell Metropolitan Borough Council,http://www.sandwell.gov.uk/info/200202/performance_and_spending/3233/government_procurement_cards,22-Jul-2022,Regeneration & Growth,THE CARD NETWORK,Regeneration And The Economy,20.76,MISCELLANEOUS PUBLISHING AND PRINTING,2022-23Q2_PC0533
Sandwell Metropolitan Borough Council,http://www.sandwell.gov.uk/info/200202/performance_and_spending/3233/government_procurement_cards,22-Jul-2022,Total ASCHWB,AMZNMktplace,Total Adult Social Care,9.65,MISCELLANEOUS AND SPECIALTY RETAIL STORES,2022-23Q2_PC0534
Sandwell Metropolitan Borough Council,http://www.sandwell.gov.uk/info/200202/performance_and_spending/3233/government_procurement_cards,22-Jul-2022,Total ASCHWB,AMZNMktplace,Total Adult Social Care,50.27,MISCELLANEOUS AND SPECIALTY RETAIL STORES,2022-23Q2_PC0535
Sandwell Metropolitan Borough Council,http://www.sandwell.gov.uk/info/200202/performance_and_spending/3233/government_procurement_cards,22-Jul-2022,Total ASCHWB,RAPID ELECTRONICS,Total Adult Social Care,38.86,ELECTRONIC SALES,2022-23Q2_PC0536
Sandwell Metropolitan Borough Council,http://www.sandwell.gov.uk/info/200202/performance_and_spending/3233/government_procurement_cards,22-Jul-2022,Total ASCHWB,AMZNMKTPLACE AMAZON.CO,Total Adult Social Care,23.78,MISCELLANEOUS AND SPECIALTY RETAIL STORES,2022-23Q2_PC0537
Sandwell Metropolitan Borough Council,http://www.sandwell.gov.uk/info/200202/performance_and_spending/3233/government_procurement_cards,22-Jul-2022,Total Borough Economy,PAYPAL  ONLY5POUNDS,Total Adult Social Care,29.95,DISCOUNT STORES,2022-23Q2_PC0538
Sandwell Metropolitan Borough Council,http://www.sandwell.gov.uk/info/200202/performance_and_spending/3233/government_procurement_cards,22-Jul-2022,Total Borough Economy,TESCO STORES 5325,Total Adult Social Care,16.80,"GROCERY STORES, SUPERMARKETS",2022-23Q2_PC0539
Sandwell Metropolitan Borough Council,http://www.sandwell.gov.uk/info/200202/performance_and_spending/3233/government_procurement_cards,22-Jul-2022,Total Borough Economy,WWW.RANDALLSFIREWOOD,Total Adult Social Care,318.50,"FIREPLACE, FIREPLACE SCREENS & ACCESSORIES STORES",2022-23Q2_PC0540
Sandwell Metropolitan Borough Council,http://www.sandwell.gov.uk/info/200202/performance_and_spending/3233/government_procurement_cards,22-Jul-2022,Total Borough Economy,AMZNMKTPLACE AMAZON.CO,Total Adult Social Care,118.62,MISCELLANEOUS AND SPECIALTY RETAIL STORES,2022-23Q2_PC0541
Sandwell Metropolitan Borough Council,http://www.sandwell.gov.uk/info/200202/performance_and_spending/3233/government_procurement_cards,22-Jul-2022,Total Borough Economy,CANVA  I03488-11797805,Total Adult Social Care,10.99,PHOTOGRAPHIC STUDIOS,2022-23Q2_PC0542
Sandwell Metropolitan Borough Council,http://www.sandwell.gov.uk/info/200202/performance_and_spending/3233/government_procurement_cards,22-Jul-2022,Total Borough Economy,POST OFFICE COUNTER,Total Adult Social Care,20.15,POSTAL SERVICES-GOVERNMENT ONLY,2022-23Q2_PC0543
Sandwell Metropolitan Borough Council,http://www.sandwell.gov.uk/info/200202/performance_and_spending/3233/government_procurement_cards,22-Jul-2022,Total Housing Revenue Account,Amazon.co.uk 8S6A966P5,Total Housing Revenue Account,149.99,DIRECT MARKETING-OTHER DIRECT MARKETERS/NOT ELSEW.,2022-23Q2_PC0544
Sandwell Metropolitan Borough Council,http://www.sandwell.gov.uk/info/200202/performance_and_spending/3233/government_procurement_cards,22-Jul-2022,Total Housing Revenue Account,AMZNMktplace,Total Housing Revenue Account,21.55,MISCELLANEOUS AND SPECIALTY RETAIL STORES,2022-23Q2_PC0545
Sandwell Metropolitan Borough Council,http://www.sandwell.gov.uk/info/200202/performance_and_spending/3233/government_procurement_cards,25-Jul-2022,Director of Law & Governance,WWW.OFFICETEAMCONNECT.,Assistant Chief Executive (Excl SIU),78.18,STATIONERY/OFFICE SUPPLIES/PRINTING & WRITING PAP.,2022-23Q2_PC0546
Sandwell Metropolitan Borough Council,http://www.sandwell.gov.uk/info/200202/performance_and_spending/3233/government_procurement_cards,25-Jul-2022,Childrens Services,SPACEHOPPAS PLAYZONE,Childrens Services,29.55,"GAME, TOY, AND HOBBY SHOPS",2022-23Q2_PC0547
Sandwell Metropolitan Borough Council,http://www.sandwell.gov.uk/info/200202/performance_and_spending/3233/government_procurement_cards,25-Jul-2022,Childrens Services,SAINSBURYS S/MKTS,Childrens Services,43.37,"GROCERY STORES, SUPERMARKETS",2022-23Q2_PC0548
Sandwell Metropolitan Borough Council,http://www.sandwell.gov.uk/info/200202/performance_and_spending/3233/government_procurement_cards,25-Jul-2022,Childrens Services,WM MORRISONS STORE,Childrens Services,203.97,"GROCERY STORES, SUPERMARKETS",2022-23Q2_PC0549
Sandwell Metropolitan Borough Council,http://www.sandwell.gov.uk/info/200202/performance_and_spending/3233/government_procurement_cards,25-Jul-2022,Childrens Services,WWW.BREWERS.CO.UK,Childrens Services,204.05,"BUILDING MATERIALS, LUMBER STORES",2022-23Q2_PC0550
Sandwell Metropolitan Borough Council,http://www.sandwell.gov.uk/info/200202/performance_and_spending/3233/government_procurement_cards,25-Jul-2022,Childrens Services,ALDI STORES,Childrens Services,58.69,"GROCERY STORES, SUPERMARKETS",2022-23Q2_PC0551
Sandwell Metropolitan Borough Council,http://www.sandwell.gov.uk/info/200202/performance_and_spending/3233/government_procurement_cards,25-Jul-2022,Childrens Services,STAFFORDSHIRE FRUITS,Childrens Services,20.00,MISCELLANEOUS AND SPECIALTY RETAIL STORES,2022-23Q2_PC0552
Sandwell Metropolitan Borough Council,http://www.sandwell.gov.uk/info/200202/performance_and_spending/3233/government_procurement_cards,25-Jul-2022,Childrens Services,STAFFORDSHIRE FRUITS,Childrens Services,24.00,MISCELLANEOUS AND SPECIALTY RETAIL STORES,2022-23Q2_PC0553
Sandwell Metropolitan Borough Council,http://www.sandwell.gov.uk/info/200202/performance_and_spending/3233/government_procurement_cards,25-Jul-2022,Childrens Services,TESCO STORES 6481,Childrens Services,18.50,"GROCERY STORES, SUPERMARKETS",2022-23Q2_PC0554
Sandwell Metropolitan Borough Council,http://www.sandwell.gov.uk/info/200202/performance_and_spending/3233/government_procurement_cards,25-Jul-2022,Corporate Management,FS  JotForm,Corporate Management,19.69,DIGITAL GOODS SOFTWARE APPLICATIONS,2022-23Q2_PC0555
Sandwell Metropolitan Borough Council,http://www.sandwell.gov.uk/info/200202/performance_and_spending/3233/government_procurement_cards,25-Jul-2022,Housing & Assets Total,ARGOS LTD,Corporate Management,235.00,DISCOUNT STORES,2022-23Q2_PC0556
Sandwell Metropolitan Borough Council,http://www.sandwell.gov.uk/info/200202/performance_and_spending/3233/government_procurement_cards,25-Jul-2022,Housing & Assets Total,AMZNMKTPLACE AMAZON.CO,Corporate Management,208.96,MISCELLANEOUS AND SPECIALTY RETAIL STORES,2022-23Q2_PC0557
Sandwell Metropolitan Borough Council,http://www.sandwell.gov.uk/info/200202/performance_and_spending/3233/government_procurement_cards,25-Jul-2022,Individual School Budgets With Inclusion,Amazon.co.uk MX45A1D55,Individual School Budgets With Inclusion,25.50,DIRECT MARKETING-OTHER DIRECT MARKETERS/NOT ELSEW.,2022-23Q2_PC0558
Sandwell Metropolitan Borough Council,http://www.sandwell.gov.uk/info/200202/performance_and_spending/3233/government_procurement_cards,25-Jul-2022,Total Borough Economy,SAINSBURYS S/MKTS,Total Adult Social Care,30.30,"GROCERY STORES, SUPERMARKETS",2022-23Q2_PC0559
Sandwell Metropolitan Borough Council,http://www.sandwell.gov.uk/info/200202/performance_and_spending/3233/government_procurement_cards,25-Jul-2022,Total ASCHWB,ADOBE STOCK,Total Adult Social Care,23.99,COMPUTER SOFTWARE STORES,2022-23Q2_PC0560
Sandwell Metropolitan Borough Council,http://www.sandwell.gov.uk/info/200202/performance_and_spending/3233/government_procurement_cards,25-Jul-2022,Total ASCHWB,AMZ Konnec,Total Adult Social Care,-14.52,MISCELLANEOUS AND SPECIALTY RETAIL STORES,2022-23Q2_PC0561
Sandwell Metropolitan Borough Council,http://www.sandwell.gov.uk/info/200202/performance_and_spending/3233/government_procurement_cards,25-Jul-2022,Total ASCHWB,eBay O 01-08895-19066,Total Adult Social Care,75.96,DEPARTMENT STORES,2022-23Q2_PC0562
Sandwell Metropolitan Borough Council,http://www.sandwell.gov.uk/info/200202/performance_and_spending/3233/government_procurement_cards,25-Jul-2022,Total ASCHWB,AMZNMktplace,Total Adult Social Care,17.78,MISCELLANEOUS AND SPECIALTY RETAIL STORES,2022-23Q2_PC0563
Sandwell Metropolitan Borough Council,http://www.sandwell.gov.uk/info/200202/performance_and_spending/3233/government_procurement_cards,25-Jul-2022,Total ASCHWB,Amazon.co.uk 4M2HI0WW5,Total Adult Social Care,28.90,DIRECT MARKETING-OTHER DIRECT MARKETERS/NOT ELSEW.,2022-23Q2_PC0564
Sandwell Metropolitan Borough Council,http://www.sandwell.gov.uk/info/200202/performance_and_spending/3233/government_procurement_cards,25-Jul-2022,Total ASCHWB,AMZNMktplace,Total Adult Social Care,18.98,MISCELLANEOUS AND SPECIALTY RETAIL STORES,2022-23Q2_PC0565
Sandwell Metropolitan Borough Council,http://www.sandwell.gov.uk/info/200202/performance_and_spending/3233/government_procurement_cards,25-Jul-2022,Total ASCHWB,AMZNMktplace,Total Adult Social Care,22.99,MISCELLANEOUS AND SPECIALTY RETAIL STORES,2022-23Q2_PC0566
Sandwell Metropolitan Borough Council,http://www.sandwell.gov.uk/info/200202/performance_and_spending/3233/government_procurement_cards,25-Jul-2022,Total ASCHWB,AMZNMktplace,Total Adult Social Care,45.87,MISCELLANEOUS AND SPECIALTY RETAIL STORES,2022-23Q2_PC0567
Sandwell Metropolitan Borough Council,http://www.sandwell.gov.uk/info/200202/performance_and_spending/3233/government_procurement_cards,25-Jul-2022,Total ASCHWB,AMZNMktplace,Total Adult Social Care,46.89,MISCELLANEOUS AND SPECIALTY RETAIL STORES,2022-23Q2_PC0568
Sandwell Metropolitan Borough Council,http://www.sandwell.gov.uk/info/200202/performance_and_spending/3233/government_procurement_cards,25-Jul-2022,Total ASCHWB,AMZNMktplace,Total Adult Social Care,13.28,MISCELLANEOUS AND SPECIALTY RETAIL STORES,2022-23Q2_PC0569
Sandwell Metropolitan Borough Council,http://www.sandwell.gov.uk/info/200202/performance_and_spending/3233/government_procurement_cards,25-Jul-2022,Total ASCHWB,AMZNMktplace,Total Adult Social Care,30.98,MISCELLANEOUS AND SPECIALTY RETAIL STORES,2022-23Q2_PC0570
Sandwell Metropolitan Borough Council,http://www.sandwell.gov.uk/info/200202/performance_and_spending/3233/government_procurement_cards,25-Jul-2022,Total ASCHWB,AMZNMKTPLACE AMAZON.CO,Total Adult Social Care,24.98,MISCELLANEOUS AND SPECIALTY RETAIL STORES,2022-23Q2_PC0571
Sandwell Metropolitan Borough Council,http://www.sandwell.gov.uk/info/200202/performance_and_spending/3233/government_procurement_cards,25-Jul-2022,Total ASCHWB,AMZNMktplace,Total Adult Social Care,22.99,MISCELLANEOUS AND SPECIALTY RETAIL STORES,2022-23Q2_PC0572
Sandwell Metropolitan Borough Council,http://www.sandwell.gov.uk/info/200202/performance_and_spending/3233/government_procurement_cards,25-Jul-2022,Total ASCHWB,AMZNMktplace,Total Adult Social Care,24.98,MISCELLANEOUS AND SPECIALTY RETAIL STORES,2022-23Q2_PC0573
Sandwell Metropolitan Borough Council,http://www.sandwell.gov.uk/info/200202/performance_and_spending/3233/government_procurement_cards,25-Jul-2022,Total ASCHWB,WWW.OFFICETEAMCONNECT.,Total Adult Social Care,121.98,STATIONERY/OFFICE SUPPLIES/PRINTING & WRITING PAP.,2022-23Q2_PC0574
Sandwell Metropolitan Borough Council,http://www.sandwell.gov.uk/info/200202/performance_and_spending/3233/government_procurement_cards,25-Jul-2022,Total ASCHWB,ICELAND FOODS,Total Adult Social Care,105.50,"GROCERY STORES, SUPERMARKETS",2022-23Q2_PC0575
Sandwell Metropolitan Borough Council,http://www.sandwell.gov.uk/info/200202/performance_and_spending/3233/government_procurement_cards,25-Jul-2022,Total ASCHWB,ASDA GROCERIES ONLINE,Total Adult Social Care,45.10,"GROCERY STORES, SUPERMARKETS",2022-23Q2_PC0576
Sandwell Metropolitan Borough Council,http://www.sandwell.gov.uk/info/200202/performance_and_spending/3233/government_procurement_cards,25-Jul-2022,Total ASCHWB,AMZNMKTPLACE AMAZON.CO,Total Adult Social Care,23.99,MISCELLANEOUS AND SPECIALTY RETAIL STORES,2022-23Q2_PC0577
Sandwell Metropolitan Borough Council,http://www.sandwell.gov.uk/info/200202/performance_and_spending/3233/government_procurement_cards,25-Jul-2022,Total ASCHWB,AMZNMktplace,Total Adult Social Care,42.95,MISCELLANEOUS AND SPECIALTY RETAIL STORES,2022-23Q2_PC0578
Sandwell Metropolitan Borough Council,http://www.sandwell.gov.uk/info/200202/performance_and_spending/3233/government_procurement_cards,25-Jul-2022,Total Borough Economy,WILKO.COM,Total Adult Social Care,-5.00,MISCELLANEOUS GENERAL MERCHANDISE,2022-23Q2_PC0579
Sandwell Metropolitan Borough Council,http://www.sandwell.gov.uk/info/200202/performance_and_spending/3233/government_procurement_cards,25-Jul-2022,Total Borough Economy,TESCO STORES 2335,Total Adult Social Care,20.50,"GROCERY STORES, SUPERMARKETS",2022-23Q2_PC0580
Sandwell Metropolitan Borough Council,http://www.sandwell.gov.uk/info/200202/performance_and_spending/3233/government_procurement_cards,25-Jul-2022,Total Borough Economy,W M MORRISONS.COM,Total Adult Social Care,171.75,"GROCERY STORES, SUPERMARKETS",2022-23Q2_PC0581
Sandwell Metropolitan Borough Council,http://www.sandwell.gov.uk/info/200202/performance_and_spending/3233/government_procurement_cards,25-Jul-2022,Total Borough Economy,W M MORRISONS.COM,Total Adult Social Care,49.75,"GROCERY STORES, SUPERMARKETS",2022-23Q2_PC0582
Sandwell Metropolitan Borough Council,http://www.sandwell.gov.uk/info/200202/performance_and_spending/3233/government_procurement_cards,25-Jul-2022,Total Borough Economy,SANDWELL SERVICE STATI,Total Adult Social Care,30.00,SERVICE STATIONS WITH OR WITHOUT ANCILLARY SERVICE,2022-23Q2_PC0583
Sandwell Metropolitan Borough Council,http://www.sandwell.gov.uk/info/200202/performance_and_spending/3233/government_procurement_cards,25-Jul-2022,Total Borough Economy,AMZNMktplace,Total Adult Social Care,118.59,MISCELLANEOUS AND SPECIALTY RETAIL STORES,2022-23Q2_PC0584
Sandwell Metropolitan Borough Council,http://www.sandwell.gov.uk/info/200202/performance_and_spending/3233/government_procurement_cards,25-Jul-2022,Total Borough Economy,AMZNMktplace,Total Adult Social Care,52.03,MISCELLANEOUS AND SPECIALTY RETAIL STORES,2022-23Q2_PC0585
Sandwell Metropolitan Borough Council,http://www.sandwell.gov.uk/info/200202/performance_and_spending/3233/government_procurement_cards,25-Jul-2022,Total Borough Economy,Amazon.co.uk A466H2FW5,Total Adult Social Care,69.98,DIRECT MARKETING-OTHER DIRECT MARKETERS/NOT ELSEW.,2022-23Q2_PC0586
Sandwell Metropolitan Borough Council,http://www.sandwell.gov.uk/info/200202/performance_and_spending/3233/government_procurement_cards,25-Jul-2022,Total Borough Economy,AMZNMktplace,Total Adult Social Care,26.99,MISCELLANEOUS AND SPECIALTY RETAIL STORES,2022-23Q2_PC0587
Sandwell Metropolitan Borough Council,http://www.sandwell.gov.uk/info/200202/performance_and_spending/3233/government_procurement_cards,25-Jul-2022,Total Housing Revenue Account,AMZNMKTPLACE AMAZON.CO,Total Housing Revenue Account,34.73,MISCELLANEOUS AND SPECIALTY RETAIL STORES,2022-23Q2_PC0588
Sandwell Metropolitan Borough Council,http://www.sandwell.gov.uk/info/200202/performance_and_spending/3233/government_procurement_cards,26-Jul-2022,Childrens Services,Amazon.co.uk I92U55ZS5,Childrens Services,62.30,DIRECT MARKETING-OTHER DIRECT MARKETERS/NOT ELSEW.,2022-23Q2_PC0589
Sandwell Metropolitan Borough Council,http://www.sandwell.gov.uk/info/200202/performance_and_spending/3233/government_procurement_cards,26-Jul-2022,Childrens Services,Amazon Prime,Childrens Services,-7.99,DIRECT MARKETING-CONTINUITY/SUBSCRIPTION MERCHANTS,2022-23Q2_PC0590
Sandwell Metropolitan Borough Council,http://www.sandwell.gov.uk/info/200202/performance_and_spending/3233/government_procurement_cards,26-Jul-2022,Childrens Services,TESCO STORES 2770,Childrens Services,142.78,"GROCERY STORES, SUPERMARKETS",2022-23Q2_PC0591
Sandwell Metropolitan Borough Council,http://www.sandwell.gov.uk/info/200202/performance_and_spending/3233/government_procurement_cards,26-Jul-2022,Childrens Services,WM MORRISONS STORE,Childrens Services,11.40,"GROCERY STORES, SUPERMARKETS",2022-23Q2_PC0592
Sandwell Metropolitan Borough Council,http://www.sandwell.gov.uk/info/200202/performance_and_spending/3233/government_procurement_cards,26-Jul-2022,Childrens Services,TESCO STORES 6481,Childrens Services,94.57,"GROCERY STORES, SUPERMARKETS",2022-23Q2_PC0593
Sandwell Metropolitan Borough Council,http://www.sandwell.gov.uk/info/200202/performance_and_spending/3233/government_procurement_cards,26-Jul-2022,Regeneration & Growth,SAS EVENT MGMT,Regeneration And The Economy,337.51,PROFESSIONAL SERVICES-NOT ELSEWHERE CLASSIFIED,2022-23Q2_PC0594
Sandwell Metropolitan Borough Council,http://www.sandwell.gov.uk/info/200202/performance_and_spending/3233/government_procurement_cards,26-Jul-2022,Total ASCHWB,AMZNMktplace,Total Adult Social Care,16.98,MISCELLANEOUS AND SPECIALTY RETAIL STORES,2022-23Q2_PC0595
Sandwell Metropolitan Borough Council,http://www.sandwell.gov.uk/info/200202/performance_and_spending/3233/government_procurement_cards,26-Jul-2022,Total ASCHWB,Amazon.co.uk LF09B5DL5,Total Adult Social Care,18.17,DIRECT MARKETING-OTHER DIRECT MARKETERS/NOT ELSEW.,2022-23Q2_PC0596
Sandwell Metropolitan Borough Council,http://www.sandwell.gov.uk/info/200202/performance_and_spending/3233/government_procurement_cards,26-Jul-2022,Total ASCHWB,AMZNMktplace,Total Adult Social Care,24.98,MISCELLANEOUS AND SPECIALTY RETAIL STORES,2022-23Q2_PC0597
Sandwell Metropolitan Borough Council,http://www.sandwell.gov.uk/info/200202/performance_and_spending/3233/government_procurement_cards,26-Jul-2022,Total ASCHWB,AMZNMktplace,Total Adult Social Care,27.99,MISCELLANEOUS AND SPECIALTY RETAIL STORES,2022-23Q2_PC0598
Sandwell Metropolitan Borough Council,http://www.sandwell.gov.uk/info/200202/performance_and_spending/3233/government_procurement_cards,26-Jul-2022,Total ASCHWB,Amazon.co.uk 9K6FO2VR5,Total Adult Social Care,17.19,DIRECT MARKETING-OTHER DIRECT MARKETERS/NOT ELSEW.,2022-23Q2_PC0599
Sandwell Metropolitan Borough Council,http://www.sandwell.gov.uk/info/200202/performance_and_spending/3233/government_procurement_cards,26-Jul-2022,Total ASCHWB,AMZNMktplace,Total Adult Social Care,20.48,MISCELLANEOUS AND SPECIALTY RETAIL STORES,2022-23Q2_PC0600
Sandwell Metropolitan Borough Council,http://www.sandwell.gov.uk/info/200202/performance_and_spending/3233/government_procurement_cards,26-Jul-2022,Total ASCHWB,Amazon.co.uk DY81K9UQ5,Total Adult Social Care,21.98,DIRECT MARKETING-OTHER DIRECT MARKETERS/NOT ELSEW.,2022-23Q2_PC0601
Sandwell Metropolitan Borough Council,http://www.sandwell.gov.uk/info/200202/performance_and_spending/3233/government_procurement_cards,26-Jul-2022,Total ASCHWB,AMZNMktplace,Total Adult Social Care,21.99,MISCELLANEOUS AND SPECIALTY RETAIL STORES,2022-23Q2_PC0602
Sandwell Metropolitan Borough Council,http://www.sandwell.gov.uk/info/200202/performance_and_spending/3233/government_procurement_cards,26-Jul-2022,Total ASCHWB,AMZNMktplace,Total Adult Social Care,12.98,MISCELLANEOUS AND SPECIALTY RETAIL STORES,2022-23Q2_PC0603
Sandwell Metropolitan Borough Council,http://www.sandwell.gov.uk/info/200202/performance_and_spending/3233/government_procurement_cards,26-Jul-2022,Total Borough Economy,RAMADA OLDBURY,Total Adult Social Care,85.00,"LODGING-HOTELS,MOTELS,RESORTS-NOT CLASSIFIED",2022-23Q2_PC0604
Sandwell Metropolitan Borough Council,http://www.sandwell.gov.uk/info/200202/performance_and_spending/3233/government_procurement_cards,27-Jul-2022,Childrens Services,WHITEHOUSE CATERING,Childrens Services,240.00,COMPUTER SOFTWARE STORES,2022-23Q2_PC0605
Sandwell Metropolitan Borough Council,http://www.sandwell.gov.uk/info/200202/performance_and_spending/3233/government_procurement_cards,27-Jul-2022,Childrens Services,UBER  EATS,Childrens Services,104.77,"EATING PLACES, RESTAURANTS",2022-23Q2_PC0606
Sandwell Metropolitan Borough Council,http://www.sandwell.gov.uk/info/200202/performance_and_spending/3233/government_procurement_cards,27-Jul-2022,Childrens Services,ANAJEN,Childrens Services,180.00,FAST FOOD RESTAURANTS,2022-23Q2_PC0607
Sandwell Metropolitan Borough Council,http://www.sandwell.gov.uk/info/200202/performance_and_spending/3233/government_procurement_cards,27-Jul-2022,Childrens Services,NSPCC,Childrens Services,90.00,SCHOOLS & EDUCATIONAL SVC-NOT ELSEWHERE CLASSIFIED,2022-23Q2_PC0608
Sandwell Metropolitan Borough Council,http://www.sandwell.gov.uk/info/200202/performance_and_spending/3233/government_procurement_cards,27-Jul-2022,Childrens Services,BEEBYS BUBBLES,Childrens Services,108.00,"CLEANING, GARMENT, AND LAUNDRY SERVICES",2022-23Q2_PC0609
Sandwell Metropolitan Borough Council,http://www.sandwell.gov.uk/info/200202/performance_and_spending/3233/government_procurement_cards,27-Jul-2022,Childrens Services,AMZNMktplace,Childrens Services,35.01,MISCELLANEOUS AND SPECIALTY RETAIL STORES,2022-23Q2_PC0610
Sandwell Metropolitan Borough Council,http://www.sandwell.gov.uk/info/200202/performance_and_spending/3233/government_procurement_cards,27-Jul-2022,Childrens Services,ASDA SUPERSTORE,Childrens Services,10.94,"GROCERY STORES, SUPERMARKETS",2022-23Q2_PC0611
Sandwell Metropolitan Borough Council,http://www.sandwell.gov.uk/info/200202/performance_and_spending/3233/government_procurement_cards,27-Jul-2022,Childrens Services,STAFFORDSHIRE FRUITS,Childrens Services,38.73,MISCELLANEOUS AND SPECIALTY RETAIL STORES,2022-23Q2_PC0612
Sandwell Metropolitan Borough Council,http://www.sandwell.gov.uk/info/200202/performance_and_spending/3233/government_procurement_cards,27-Jul-2022,Childrens Services,WHITEHOUSE CATERING,Childrens Services,250.00,COMPUTER SOFTWARE STORES,2022-23Q2_PC0613
Sandwell Metropolitan Borough Council,http://www.sandwell.gov.uk/info/200202/performance_and_spending/3233/government_procurement_cards,27-Jul-2022,Childrens Services,WHITEHOUSE CATERING,Childrens Services,65.00,COMPUTER SOFTWARE STORES,2022-23Q2_PC0614
Sandwell Metropolitan Borough Council,http://www.sandwell.gov.uk/info/200202/performance_and_spending/3233/government_procurement_cards,27-Jul-2022,Housing & Assets Total,AMZNMktplace,Corporate Management,59.99,MISCELLANEOUS AND SPECIALTY RETAIL STORES,2022-23Q2_PC0615
Sandwell Metropolitan Borough Council,http://www.sandwell.gov.uk/info/200202/performance_and_spending/3233/government_procurement_cards,27-Jul-2022,Total Public Health,AMZNMktplace,Public Health,164.97,MISCELLANEOUS AND SPECIALTY RETAIL STORES,2022-23Q2_PC0616
Sandwell Metropolitan Borough Council,http://www.sandwell.gov.uk/info/200202/performance_and_spending/3233/government_procurement_cards,27-Jul-2022,Total Public Health,AMZNMKTPLACE AMAZON.CO,Public Health,219.96,MISCELLANEOUS AND SPECIALTY RETAIL STORES,2022-23Q2_PC0617
Sandwell Metropolitan Borough Council,http://www.sandwell.gov.uk/info/200202/performance_and_spending/3233/government_procurement_cards,27-Jul-2022,Regeneration & Growth,AMZNMktplace,Regeneration And The Economy,44.95,MISCELLANEOUS AND SPECIALTY RETAIL STORES,2022-23Q2_PC0618
Sandwell Metropolitan Borough Council,http://www.sandwell.gov.uk/info/200202/performance_and_spending/3233/government_procurement_cards,27-Jul-2022,Total ASCHWB,AMZNMKTPLACE AMAZON.CO,Total Adult Social Care,284.99,MISCELLANEOUS AND SPECIALTY RETAIL STORES,2022-23Q2_PC0619
Sandwell Metropolitan Borough Council,http://www.sandwell.gov.uk/info/200202/performance_and_spending/3233/government_procurement_cards,27-Jul-2022,Total ASCHWB,AMZNMKTPLACE AMAZON.CO,Total Adult Social Care,24.97,MISCELLANEOUS AND SPECIALTY RETAIL STORES,2022-23Q2_PC0620
Sandwell Metropolitan Borough Council,http://www.sandwell.gov.uk/info/200202/performance_and_spending/3233/government_procurement_cards,27-Jul-2022,Total ASCHWB,AMZNMKTPLACE AMAZON.CO,Total Adult Social Care,21.99,MISCELLANEOUS AND SPECIALTY RETAIL STORES,2022-23Q2_PC0621
Sandwell Metropolitan Borough Council,http://www.sandwell.gov.uk/info/200202/performance_and_spending/3233/government_procurement_cards,27-Jul-2022,Total ASCHWB,AMZNMKTPLACE AMAZON.CO,Total Adult Social Care,24.60,MISCELLANEOUS AND SPECIALTY RETAIL STORES,2022-23Q2_PC0622
Sandwell Metropolitan Borough Council,http://www.sandwell.gov.uk/info/200202/performance_and_spending/3233/government_procurement_cards,27-Jul-2022,Total ASCHWB,AMZ UK-HORUSDY,Total Adult Social Care,-4.99,MISCELLANEOUS AND SPECIALTY RETAIL STORES,2022-23Q2_PC0623
Sandwell Metropolitan Borough Council,http://www.sandwell.gov.uk/info/200202/performance_and_spending/3233/government_procurement_cards,27-Jul-2022,Total ASCHWB,AMZ Amazon.co.uk,Total Adult Social Care,-4.99,DIRECT MARKETING-OTHER DIRECT MARKETERS/NOT ELSEW.,2022-23Q2_PC0624
Sandwell Metropolitan Borough Council,http://www.sandwell.gov.uk/info/200202/performance_and_spending/3233/government_procurement_cards,27-Jul-2022,Total ASCHWB,AMZNMKTPLACE AMAZON.CO,Total Adult Social Care,-4.99,MISCELLANEOUS AND SPECIALTY RETAIL STORES,2022-23Q2_PC0625
Sandwell Metropolitan Borough Council,http://www.sandwell.gov.uk/info/200202/performance_and_spending/3233/government_procurement_cards,27-Jul-2022,Total ASCHWB,AMZ Amazon.co.uk,Total Adult Social Care,-4.99,DIRECT MARKETING-OTHER DIRECT MARKETERS/NOT ELSEW.,2022-23Q2_PC0626
Sandwell Metropolitan Borough Council,http://www.sandwell.gov.uk/info/200202/performance_and_spending/3233/government_procurement_cards,27-Jul-2022,Total ASCHWB,AMZ Presch,Total Adult Social Care,-4.99,MISCELLANEOUS AND SPECIALTY RETAIL STORES,2022-23Q2_PC0627
Sandwell Metropolitan Borough Council,http://www.sandwell.gov.uk/info/200202/performance_and_spending/3233/government_procurement_cards,27-Jul-2022,Total ASCHWB,AMZ Amazon.co.uk,Total Adult Social Care,-4.99,DIRECT MARKETING-OTHER DIRECT MARKETERS/NOT ELSEW.,2022-23Q2_PC0628
Sandwell Metropolitan Borough Council,http://www.sandwell.gov.uk/info/200202/performance_and_spending/3233/government_procurement_cards,27-Jul-2022,Total ASCHWB,AMZ GreatStarTools,Total Adult Social Care,-4.99,MISCELLANEOUS AND SPECIALTY RETAIL STORES,2022-23Q2_PC0629
Sandwell Metropolitan Borough Council,http://www.sandwell.gov.uk/info/200202/performance_and_spending/3233/government_procurement_cards,27-Jul-2022,Total Borough Economy,AMZNMktplace,Total Adult Social Care,5.99,MISCELLANEOUS AND SPECIALTY RETAIL STORES,2022-23Q2_PC0630
Sandwell Metropolitan Borough Council,http://www.sandwell.gov.uk/info/200202/performance_and_spending/3233/government_procurement_cards,27-Jul-2022,Total Borough Economy,AMZNMktplace,Total Adult Social Care,8.99,MISCELLANEOUS AND SPECIALTY RETAIL STORES,2022-23Q2_PC0631
Sandwell Metropolitan Borough Council,http://www.sandwell.gov.uk/info/200202/performance_and_spending/3233/government_procurement_cards,27-Jul-2022,Total Borough Economy,ALDI 9 772,Total Adult Social Care,5.50,"GROCERY STORES, SUPERMARKETS",2022-23Q2_PC0632
Sandwell Metropolitan Borough Council,http://www.sandwell.gov.uk/info/200202/performance_and_spending/3233/government_procurement_cards,27-Jul-2022,Total Borough Economy,W M MORRISONS.COM,Total Adult Social Care,41.05,"GROCERY STORES, SUPERMARKETS",2022-23Q2_PC0633
Sandwell Metropolitan Borough Council,http://www.sandwell.gov.uk/info/200202/performance_and_spending/3233/government_procurement_cards,27-Jul-2022,Total Borough Economy,W M MORRISONS.COM,Total Adult Social Care,51.05,"GROCERY STORES, SUPERMARKETS",2022-23Q2_PC0634
Sandwell Metropolitan Borough Council,http://www.sandwell.gov.uk/info/200202/performance_and_spending/3233/government_procurement_cards,27-Jul-2022,Total Borough Economy,Amazon Prime HM5S33C65,Total Adult Social Care,7.99,DIRECT MARKETING-CONTINUITY/SUBSCRIPTION MERCHANTS,2022-23Q2_PC0635
Sandwell Metropolitan Borough Council,http://www.sandwell.gov.uk/info/200202/performance_and_spending/3233/government_procurement_cards,27-Jul-2022,Total Borough Economy,W M MORRISONS.COM,Total Adult Social Care,47.55,"GROCERY STORES, SUPERMARKETS",2022-23Q2_PC0636
Sandwell Metropolitan Borough Council,http://www.sandwell.gov.uk/info/200202/performance_and_spending/3233/government_procurement_cards,27-Jul-2022,Total Borough Economy,AMZNMktplace,Total Adult Social Care,24.99,MISCELLANEOUS AND SPECIALTY RETAIL STORES,2022-23Q2_PC0637
Sandwell Metropolitan Borough Council,http://www.sandwell.gov.uk/info/200202/performance_and_spending/3233/government_procurement_cards,27-Jul-2022,Total Borough Economy,AMZNMktplace,Total Adult Social Care,215.19,MISCELLANEOUS AND SPECIALTY RETAIL STORES,2022-23Q2_PC0638
Sandwell Metropolitan Borough Council,http://www.sandwell.gov.uk/info/200202/performance_and_spending/3233/government_procurement_cards,27-Jul-2022,Total Housing Revenue Account,Arco Limited (AHPP),Total Housing Revenue Account,47.64,INDUSTRIAL SUPPLIES NOT ELSEWHERE CLASSIFIED,2022-23Q2_PC0639
Sandwell Metropolitan Borough Council,http://www.sandwell.gov.uk/info/200202/performance_and_spending/3233/government_procurement_cards,27-Jul-2022,Total Housing Revenue Account,SITEBOX LIMITED,Total Housing Revenue Account,"2,249.94",INDUSTRIAL SUPPLIES NOT ELSEWHERE CLASSIFIED,2022-23Q2_PC0640
Sandwell Metropolitan Borough Council,http://www.sandwell.gov.uk/info/200202/performance_and_spending/3233/government_procurement_cards,28-Jul-2022,FINANCE (Inc SIU),Amazon Prime,Assistant Chief Executive (Excl SIU),-7.99,DIRECT MARKETING-CONTINUITY/SUBSCRIPTION MERCHANTS,2022-23Q2_PC0641
Sandwell Metropolitan Borough Council,http://www.sandwell.gov.uk/info/200202/performance_and_spending/3233/government_procurement_cards,28-Jul-2022,Director of Law & Governance,SAINSBURYS S/MKTS,Assistant Chief Executive (Excl SIU),11.75,"GROCERY STORES, SUPERMARKETS",2022-23Q2_PC0642
Sandwell Metropolitan Borough Council,http://www.sandwell.gov.uk/info/200202/performance_and_spending/3233/government_procurement_cards,28-Jul-2022,Childrens Services,WWW.OFFICETEAMCONNECT.,Childrens Services,142.60,STATIONERY/OFFICE SUPPLIES/PRINTING & WRITING PAP.,2022-23Q2_PC0643
Sandwell Metropolitan Borough Council,http://www.sandwell.gov.uk/info/200202/performance_and_spending/3233/government_procurement_cards,28-Jul-2022,Childrens Services,WWW.OFFICETEAMCONNECT.,Childrens Services,25.87,STATIONERY/OFFICE SUPPLIES/PRINTING & WRITING PAP.,2022-23Q2_PC0644
Sandwell Metropolitan Borough Council,http://www.sandwell.gov.uk/info/200202/performance_and_spending/3233/government_procurement_cards,28-Jul-2022,Childrens Services,ASDA STORE,Childrens Services,95.22,"GROCERY STORES, SUPERMARKETS",2022-23Q2_PC0645
Sandwell Metropolitan Borough Council,http://www.sandwell.gov.uk/info/200202/performance_and_spending/3233/government_procurement_cards,28-Jul-2022,Childrens Services,POUNDLAND LTD 1576,Childrens Services,2.00,DISCOUNT STORES,2022-23Q2_PC0646
Sandwell Metropolitan Borough Council,http://www.sandwell.gov.uk/info/200202/performance_and_spending/3233/government_procurement_cards,28-Jul-2022,Childrens Services,TESCO STORES 2770,Childrens Services,47.63,"GROCERY STORES, SUPERMARKETS",2022-23Q2_PC0647
Sandwell Metropolitan Borough Council,http://www.sandwell.gov.uk/info/200202/performance_and_spending/3233/government_procurement_cards,28-Jul-2022,Childrens Services,WM MORRISONS STORE,Childrens Services,25.03,"GROCERY STORES, SUPERMARKETS",2022-23Q2_PC0648
Sandwell Metropolitan Borough Council,http://www.sandwell.gov.uk/info/200202/performance_and_spending/3233/government_procurement_cards,28-Jul-2022,Childrens Services,STAFFORDSHIRE FRUITS,Childrens Services,7.50,MISCELLANEOUS AND SPECIALTY RETAIL STORES,2022-23Q2_PC0649
Sandwell Metropolitan Borough Council,http://www.sandwell.gov.uk/info/200202/performance_and_spending/3233/government_procurement_cards,28-Jul-2022,Childrens Services,WHITEHOUSE FOODS,Childrens Services,40.00,"FREEZER, LOCKER MEAT PROVISIONERS",2022-23Q2_PC0650
Sandwell Metropolitan Borough Council,http://www.sandwell.gov.uk/info/200202/performance_and_spending/3233/government_procurement_cards,28-Jul-2022,Corporate Management,AMZNMktplace,Corporate Management,24.98,MISCELLANEOUS AND SPECIALTY RETAIL STORES,2022-23Q2_PC0651
Sandwell Metropolitan Borough Council,http://www.sandwell.gov.uk/info/200202/performance_and_spending/3233/government_procurement_cards,28-Jul-2022,Corporate Management,Amazon.co.uk 002KU3G95,Corporate Management,34.63,DIRECT MARKETING-OTHER DIRECT MARKETERS/NOT ELSEW.,2022-23Q2_PC0652
Sandwell Metropolitan Borough Council,http://www.sandwell.gov.uk/info/200202/performance_and_spending/3233/government_procurement_cards,28-Jul-2022,Corporate Management,Amazon.co.uk ZZ8UI2JB5,Corporate Management,34.63,DIRECT MARKETING-OTHER DIRECT MARKETERS/NOT ELSEW.,2022-23Q2_PC0653
Sandwell Metropolitan Borough Council,http://www.sandwell.gov.uk/info/200202/performance_and_spending/3233/government_procurement_cards,28-Jul-2022,Regeneration & Growth,AMZNMktplace,Regeneration And The Economy,23.90,MISCELLANEOUS AND SPECIALTY RETAIL STORES,2022-23Q2_PC0654
Sandwell Metropolitan Borough Council,http://www.sandwell.gov.uk/info/200202/performance_and_spending/3233/government_procurement_cards,28-Jul-2022,Regeneration & Growth,AMZNMktplace,Regeneration And The Economy,13.98,MISCELLANEOUS AND SPECIALTY RETAIL STORES,2022-23Q2_PC0655
Sandwell Metropolitan Borough Council,http://www.sandwell.gov.uk/info/200202/performance_and_spending/3233/government_procurement_cards,28-Jul-2022,Regeneration & Growth,WWW.SOUTHCOASTFLAGPOLE,Regeneration And The Economy,85.85,MISCELLANEOUS AND SPECIALTY RETAIL STORES,2022-23Q2_PC0656
Sandwell Metropolitan Borough Council,http://www.sandwell.gov.uk/info/200202/performance_and_spending/3233/government_procurement_cards,28-Jul-2022,Total ASCHWB,AMZNMktplace,Total Adult Social Care,29.99,MISCELLANEOUS AND SPECIALTY RETAIL STORES,2022-23Q2_PC0657
Sandwell Metropolitan Borough Council,http://www.sandwell.gov.uk/info/200202/performance_and_spending/3233/government_procurement_cards,28-Jul-2022,Total ASCHWB,AMZNMKTPLACE AMAZON.CO,Total Adult Social Care,6.98,MISCELLANEOUS AND SPECIALTY RETAIL STORES,2022-23Q2_PC0658
Sandwell Metropolitan Borough Council,http://www.sandwell.gov.uk/info/200202/performance_and_spending/3233/government_procurement_cards,28-Jul-2022,Total ASCHWB,Amazon.co.uk PG47V6A35,Total Adult Social Care,233.99,DIRECT MARKETING-OTHER DIRECT MARKETERS/NOT ELSEW.,2022-23Q2_PC0659
Sandwell Metropolitan Borough Council,http://www.sandwell.gov.uk/info/200202/performance_and_spending/3233/government_procurement_cards,28-Jul-2022,Total ASCHWB,WWW.OFFICETEAMCONNECT.,Total Adult Social Care,226.18,STATIONERY/OFFICE SUPPLIES/PRINTING & WRITING PAP.,2022-23Q2_PC0660
Sandwell Metropolitan Borough Council,http://www.sandwell.gov.uk/info/200202/performance_and_spending/3233/government_procurement_cards,28-Jul-2022,Total Borough Economy,ARGOS LTD,Total Adult Social Care,84.99,DISCOUNT STORES,2022-23Q2_PC0661
Sandwell Metropolitan Borough Council,http://www.sandwell.gov.uk/info/200202/performance_and_spending/3233/government_procurement_cards,28-Jul-2022,Total Borough Economy,FUTURE GARMENTS LTD,Total Adult Social Care,878.40,MEN'S/WOMEN'S/CHILDREN'S UNIFORMS/COMMERCIAL CLOTH,2022-23Q2_PC0662
Sandwell Metropolitan Borough Council,http://www.sandwell.gov.uk/info/200202/performance_and_spending/3233/government_procurement_cards,28-Jul-2022,Total Borough Economy,ARGOS LTD,Total Adult Social Care,20.00,DISCOUNT STORES,2022-23Q2_PC0663
Sandwell Metropolitan Borough Council,http://www.sandwell.gov.uk/info/200202/performance_and_spending/3233/government_procurement_cards,28-Jul-2022,Total Borough Economy,WWW.SCREWFIX.COM,Total Adult Social Care,93.60,"BUILDING MATERIALS, LUMBER STORES",2022-23Q2_PC0664
Sandwell Metropolitan Borough Council,http://www.sandwell.gov.uk/info/200202/performance_and_spending/3233/government_procurement_cards,28-Jul-2022,Total Borough Economy,PROFESSIONAL PLAN,Total Adult Social Care,122.41,COMPUTER SOFTWARE STORES,2022-23Q2_PC0665
Sandwell Metropolitan Borough Council,http://www.sandwell.gov.uk/info/200202/performance_and_spending/3233/government_procurement_cards,28-Jul-2022,Total Borough Economy,W M MORRISONS.COM,Total Adult Social Care,48.35,"GROCERY STORES, SUPERMARKETS",2022-23Q2_PC0666
Sandwell Metropolitan Borough Council,http://www.sandwell.gov.uk/info/200202/performance_and_spending/3233/government_procurement_cards,28-Jul-2022,Total Borough Economy,W M MORRISONS.COM,Total Adult Social Care,91.70,"GROCERY STORES, SUPERMARKETS",2022-23Q2_PC0667
Sandwell Metropolitan Borough Council,http://www.sandwell.gov.uk/info/200202/performance_and_spending/3233/government_procurement_cards,28-Jul-2022,Total Borough Economy,AMZNMKTPLACE AMAZON.CO,Total Adult Social Care,10.99,MISCELLANEOUS AND SPECIALTY RETAIL STORES,2022-23Q2_PC0668
Sandwell Metropolitan Borough Council,http://www.sandwell.gov.uk/info/200202/performance_and_spending/3233/government_procurement_cards,28-Jul-2022,Total Borough Economy,WWW.OFFICETEAMCONNECT.,Total Adult Social Care,17.22,STATIONERY/OFFICE SUPPLIES/PRINTING & WRITING PAP.,2022-23Q2_PC0669
Sandwell Metropolitan Borough Council,http://www.sandwell.gov.uk/info/200202/performance_and_spending/3233/government_procurement_cards,28-Jul-2022,Total Borough Economy,WWW.OFFICETEAMCONNECT.,Total Adult Social Care,63.46,STATIONERY/OFFICE SUPPLIES/PRINTING & WRITING PAP.,2022-23Q2_PC0670
Sandwell Metropolitan Borough Council,http://www.sandwell.gov.uk/info/200202/performance_and_spending/3233/government_procurement_cards,28-Jul-2022,Total Borough Economy,WWW.PAXTON.CO.UK,Total Adult Social Care,91.20,BUSINESS SERVICES-NOT ELSEWHERE CLASSIFIED,2022-23Q2_PC0671
Sandwell Metropolitan Borough Council,http://www.sandwell.gov.uk/info/200202/performance_and_spending/3233/government_procurement_cards,28-Jul-2022,Total Borough Economy,TIMPSON LTD,Total Adult Social Care,12.00,MISCELLANEOUS AND SPECIALTY RETAIL STORES,2022-23Q2_PC0672
Sandwell Metropolitan Borough Council,http://www.sandwell.gov.uk/info/200202/performance_and_spending/3233/government_procurement_cards,29-Jul-2022,Director of Law & Governance,BCC CLEAN AIR ZONE,Assistant Chief Executive (Excl SIU),8.00,GOVERNMENT SERVICES-NOT ELSEWHERE CLASSIFIED,2022-23Q2_PC0673
Sandwell Metropolitan Borough Council,http://www.sandwell.gov.uk/info/200202/performance_and_spending/3233/government_procurement_cards,29-Jul-2022,Childrens Services,IKEA LTD 142 BIRMINGHA,Childrens Services,16.50,"EQUIP, FURNITURE, HOME FURNSHNGS STRS (EXCPT APPL)",2022-23Q2_PC0674
Sandwell Metropolitan Borough Council,http://www.sandwell.gov.uk/info/200202/performance_and_spending/3233/government_procurement_cards,29-Jul-2022,Childrens Services,WM MORRISONS STORE,Childrens Services,39.70,"GROCERY STORES, SUPERMARKETS",2022-23Q2_PC0675
Sandwell Metropolitan Borough Council,http://www.sandwell.gov.uk/info/200202/performance_and_spending/3233/government_procurement_cards,29-Jul-2022,Corporate Management,LondonNWCOM,Corporate Management,9.40,PASSENGER RAILWAYS,2022-23Q2_PC0676
Sandwell Metropolitan Borough Council,http://www.sandwell.gov.uk/info/200202/performance_and_spending/3233/government_procurement_cards,29-Jul-2022,Housing & Assets Total,AMZNMktplace,Corporate Management,27.99,MISCELLANEOUS AND SPECIALTY RETAIL STORES,2022-23Q2_PC0677
Sandwell Metropolitan Borough Council,http://www.sandwell.gov.uk/info/200202/performance_and_spending/3233/government_procurement_cards,29-Jul-2022,Housing & Assets Total,AMZNMktplace,Corporate Management,27.99,MISCELLANEOUS AND SPECIALTY RETAIL STORES,2022-23Q2_PC0678
Sandwell Metropolitan Borough Council,http://www.sandwell.gov.uk/info/200202/performance_and_spending/3233/government_procurement_cards,29-Jul-2022,Housing & Assets Total,AMZNMktplace,Corporate Management,4.59,MISCELLANEOUS AND SPECIALTY RETAIL STORES,2022-23Q2_PC0679
Sandwell Metropolitan Borough Council,http://www.sandwell.gov.uk/info/200202/performance_and_spending/3233/government_procurement_cards,29-Jul-2022,Total Public Health,The Fish & Chip Shop,Public Health,8.25,FAST FOOD RESTAURANTS,2022-23Q2_PC0680
Sandwell Metropolitan Borough Council,http://www.sandwell.gov.uk/info/200202/performance_and_spending/3233/government_procurement_cards,29-Jul-2022,Regeneration & Growth,WWW.DESIGNOFFICESUPPLI,Regeneration And The Economy,201.60,"OFFICE, SCHOOL SUPPLY, AND STATIONERY STORES",2022-23Q2_PC0681
Sandwell Metropolitan Borough Council,http://www.sandwell.gov.uk/info/200202/performance_and_spending/3233/government_procurement_cards,29-Jul-2022,Regeneration & Growth,WEST MIDLANDS TRAV,Regeneration And The Economy,90.85,BUS LINES,2022-23Q2_PC0682
Sandwell Metropolitan Borough Council,http://www.sandwell.gov.uk/info/200202/performance_and_spending/3233/government_procurement_cards,29-Jul-2022,Regeneration & Growth,Amazon.co.uk SH1L31JB5,Regeneration And The Economy,159.00,DIRECT MARKETING-OTHER DIRECT MARKETERS/NOT ELSEW.,2022-23Q2_PC0683
Sandwell Metropolitan Borough Council,http://www.sandwell.gov.uk/info/200202/performance_and_spending/3233/government_procurement_cards,29-Jul-2022,Regeneration & Growth,AMZN Mktp UK T22228OK5,Regeneration And The Economy,146.47,BOOK STORES,2022-23Q2_PC0684
Sandwell Metropolitan Borough Council,http://www.sandwell.gov.uk/info/200202/performance_and_spending/3233/government_procurement_cards,29-Jul-2022,Total ASCHWB,HOMEBASE LTD 085,Total Adult Social Care,102.00,HOME SUPPLY WAREHOUSE STORES,2022-23Q2_PC0685
Sandwell Metropolitan Borough Council,http://www.sandwell.gov.uk/info/200202/performance_and_spending/3233/government_procurement_cards,29-Jul-2022,Total ASCHWB,AMZNMktplace,Total Adult Social Care,36.18,MISCELLANEOUS AND SPECIALTY RETAIL STORES,2022-23Q2_PC0686
Sandwell Metropolitan Borough Council,http://www.sandwell.gov.uk/info/200202/performance_and_spending/3233/government_procurement_cards,29-Jul-2022,FINANCE (Inc SIU),WWW.OFFICETEAMCONNECT.,Total Adult Social Care,25.87,STATIONERY/OFFICE SUPPLIES/PRINTING & WRITING PAP.,2022-23Q2_PC0687
Sandwell Metropolitan Borough Council,http://www.sandwell.gov.uk/info/200202/performance_and_spending/3233/government_procurement_cards,29-Jul-2022,Total Borough Economy,AMZNMktplace,Total Adult Social Care,10.99,MISCELLANEOUS AND SPECIALTY RETAIL STORES,2022-23Q2_PC0688
Sandwell Metropolitan Borough Council,http://www.sandwell.gov.uk/info/200202/performance_and_spending/3233/government_procurement_cards,29-Jul-2022,Total Borough Economy,AMZNMktplace,Total Adult Social Care,28.82,MISCELLANEOUS AND SPECIALTY RETAIL STORES,2022-23Q2_PC0689
Sandwell Metropolitan Borough Council,http://www.sandwell.gov.uk/info/200202/performance_and_spending/3233/government_procurement_cards,29-Jul-2022,Total Borough Economy,HIGHSPEEDTRAINING.CO.U,Total Adult Social Care,120.00,"SCHOOLS, BUSINESS AND SECRETARIAL",2022-23Q2_PC0690
Sandwell Metropolitan Borough Council,http://www.sandwell.gov.uk/info/200202/performance_and_spending/3233/government_procurement_cards,29-Jul-2022,Total Borough Economy,Dunelm SoftFurnishings,Total Adult Social Care,47.95,"EQUIP, FURNITURE, HOME FURNSHNGS STRS (EXCPT APPL)",2022-23Q2_PC0691
Sandwell Metropolitan Borough Council,http://www.sandwell.gov.uk/info/200202/performance_and_spending/3233/government_procurement_cards,29-Jul-2022,Total Borough Economy,W M MORRISONS.COM,Total Adult Social Care,47.65,"GROCERY STORES, SUPERMARKETS",2022-23Q2_PC0692
Sandwell Metropolitan Borough Council,http://www.sandwell.gov.uk/info/200202/performance_and_spending/3233/government_procurement_cards,29-Jul-2022,Total Borough Economy,W M MORRISONS.COM,Total Adult Social Care,48.25,"GROCERY STORES, SUPERMARKETS",2022-23Q2_PC0693
Sandwell Metropolitan Borough Council,http://www.sandwell.gov.uk/info/200202/performance_and_spending/3233/government_procurement_cards,29-Jul-2022,Total Borough Economy,AMZNMKTPLACE AMAZON.CO,Total Adult Social Care,9.72,MISCELLANEOUS AND SPECIALTY RETAIL STORES,2022-23Q2_PC0694
Sandwell Metropolitan Borough Council,http://www.sandwell.gov.uk/info/200202/performance_and_spending/3233/government_procurement_cards,29-Jul-2022,Total Borough Economy,W M MORRISONS.COM,Total Adult Social Care,48.05,"GROCERY STORES, SUPERMARKETS",2022-23Q2_PC0695
Sandwell Metropolitan Borough Council,http://www.sandwell.gov.uk/info/200202/performance_and_spending/3233/government_procurement_cards,29-Jul-2022,Total Borough Economy,AMZNMktplace,Total Adult Social Care,99.65,MISCELLANEOUS AND SPECIALTY RETAIL STORES,2022-23Q2_PC0696
Sandwell Metropolitan Borough Council,http://www.sandwell.gov.uk/info/200202/performance_and_spending/3233/government_procurement_cards,29-Jul-2022,Total Borough Economy,POST OFFICE COUNTER,Total Adult Social Care,16.32,POSTAL SERVICES-GOVERNMENT ONLY,2022-23Q2_PC0697
Sandwell Metropolitan Borough Council,http://www.sandwell.gov.uk/info/200202/performance_and_spending/3233/government_procurement_cards,29-Jul-2022,Total Housing Revenue Account,MH STAR UK LTD,Total Housing Revenue Account,110.39,"EQUIP, FURNITURE, HOME FURNSHNGS STRS (EXCPT APPL)",2022-23Q2_PC0698
Sandwell Metropolitan Borough Council,http://www.sandwell.gov.uk/info/200202/performance_and_spending/3233/government_procurement_cards,01-Aug-2022,Director of Law & Governance,WWW.OFFICETEAMCONNECT.,Assistant Chief Executive (Excl SIU),68.76,STATIONERY/OFFICE SUPPLIES/PRINTING & WRITING PAP.,2022-23Q2_PC0699
Sandwell Metropolitan Borough Council,http://www.sandwell.gov.uk/info/200202/performance_and_spending/3233/government_procurement_cards,01-Aug-2022,Total Business Strategy & Change,AMZNMKTPLACE AMAZON.CO,Assistant Chief Executive (Excl SIU),31.32,MISCELLANEOUS AND SPECIALTY RETAIL STORES,2022-23Q2_PC0700
Sandwell Metropolitan Borough Council,http://www.sandwell.gov.uk/info/200202/performance_and_spending/3233/government_procurement_cards,01-Aug-2022,Childrens Services,POUNDLAND LTD 1729,Childrens Services,21.50,DISCOUNT STORES,2022-23Q2_PC0701
Sandwell Metropolitan Borough Council,http://www.sandwell.gov.uk/info/200202/performance_and_spending/3233/government_procurement_cards,01-Aug-2022,Childrens Services,EB  RESOURCE HUB TRAIN,Childrens Services,-25.00,BUSINESS SERVICES-NOT ELSEWHERE CLASSIFIED,2022-23Q2_PC0702
Sandwell Metropolitan Borough Council,http://www.sandwell.gov.uk/info/200202/performance_and_spending/3233/government_procurement_cards,01-Aug-2022,Childrens Services,FACEBK 5ZFNYDXV92,Childrens Services,27.33,ADVERTISING SERVICES,2022-23Q2_PC0703
Sandwell Metropolitan Borough Council,http://www.sandwell.gov.uk/info/200202/performance_and_spending/3233/government_procurement_cards,01-Aug-2022,Childrens Services,WWW.TREDZ.CO.UK,Childrens Services,31.92,BICYCLE SHOPS-SALES AND SERVICE,2022-23Q2_PC0704
Sandwell Metropolitan Borough Council,http://www.sandwell.gov.uk/info/200202/performance_and_spending/3233/government_procurement_cards,01-Aug-2022,Childrens Services,WWW.SCREWFIX.COM,Childrens Services,24.99,"BUILDING MATERIALS, LUMBER STORES",2022-23Q2_PC0705
Sandwell Metropolitan Borough Council,http://www.sandwell.gov.uk/info/200202/performance_and_spending/3233/government_procurement_cards,01-Aug-2022,Childrens Services,WM MORRISONS STORE,Childrens Services,7.59,"GROCERY STORES, SUPERMARKETS",2022-23Q2_PC0706
Sandwell Metropolitan Borough Council,http://www.sandwell.gov.uk/info/200202/performance_and_spending/3233/government_procurement_cards,01-Aug-2022,Housing & Assets Total,Amazon.co.uk WH42Y0XH5,Corporate Management,35.00,DIRECT MARKETING-OTHER DIRECT MARKETERS/NOT ELSEW.,2022-23Q2_PC0707
Sandwell Metropolitan Borough Council,http://www.sandwell.gov.uk/info/200202/performance_and_spending/3233/government_procurement_cards,01-Aug-2022,Housing & Assets Total,ARGOS LTD,Corporate Management,32.94,DISCOUNT STORES,2022-23Q2_PC0708
Sandwell Metropolitan Borough Council,http://www.sandwell.gov.uk/info/200202/performance_and_spending/3233/government_procurement_cards,01-Aug-2022,Total Public Health,AMZNMktplace,Public Health,4.59,MISCELLANEOUS AND SPECIALTY RETAIL STORES,2022-23Q2_PC0709
Sandwell Metropolitan Borough Council,http://www.sandwell.gov.uk/info/200202/performance_and_spending/3233/government_procurement_cards,01-Aug-2022,Total Public Health,SAINSBURYS S/MKTS,Public Health,18.90,"GROCERY STORES, SUPERMARKETS",2022-23Q2_PC0710
Sandwell Metropolitan Borough Council,http://www.sandwell.gov.uk/info/200202/performance_and_spending/3233/government_procurement_cards,01-Aug-2022,Total Public Health,Domino s Pizza,Public Health,96.94,"EATING PLACES, RESTAURANTS",2022-23Q2_PC0711
Sandwell Metropolitan Borough Council,http://www.sandwell.gov.uk/info/200202/performance_and_spending/3233/government_procurement_cards,01-Aug-2022,Regeneration & Growth,AMZNMKTPLACE AMAZON.CO,Regeneration And The Economy,39.50,MISCELLANEOUS AND SPECIALTY RETAIL STORES,2022-23Q2_PC0712
Sandwell Metropolitan Borough Council,http://www.sandwell.gov.uk/info/200202/performance_and_spending/3233/government_procurement_cards,01-Aug-2022,Regeneration & Growth,WESTERN POWER DISTRIBU,Regeneration And The Economy,"1,654.07","UTLTS-ELCTRC, GAS, HEATING OIL, SANITARY, WATER",2022-23Q2_PC0713
Sandwell Metropolitan Borough Council,http://www.sandwell.gov.uk/info/200202/performance_and_spending/3233/government_procurement_cards,01-Aug-2022,Regeneration & Growth,WESTERN POWER DISTRIBU,Regeneration And The Economy,"1,962.92","UTLTS-ELCTRC, GAS, HEATING OIL, SANITARY, WATER",2022-23Q2_PC0714
Sandwell Metropolitan Borough Council,http://www.sandwell.gov.uk/info/200202/performance_and_spending/3233/government_procurement_cards,01-Aug-2022,Total Borough Economy,HOME BARGAINS,Total Adult Social Care,38.94,HARDWARE STORES,2022-23Q2_PC0715
Sandwell Metropolitan Borough Council,http://www.sandwell.gov.uk/info/200202/performance_and_spending/3233/government_procurement_cards,01-Aug-2022,Total ASCHWB,ICELAND FOODS,Total Adult Social Care,57.98,"GROCERY STORES, SUPERMARKETS",2022-23Q2_PC0716
Sandwell Metropolitan Borough Council,http://www.sandwell.gov.uk/info/200202/performance_and_spending/3233/government_procurement_cards,01-Aug-2022,Total ASCHWB,ICELAND FOODS,Total Adult Social Care,58.00,"GROCERY STORES, SUPERMARKETS",2022-23Q2_PC0717
Sandwell Metropolitan Borough Council,http://www.sandwell.gov.uk/info/200202/performance_and_spending/3233/government_procurement_cards,01-Aug-2022,Total ASCHWB,ICELAND FOODS,Total Adult Social Care,-5.00,"GROCERY STORES, SUPERMARKETS",2022-23Q2_PC0718
Sandwell Metropolitan Borough Council,http://www.sandwell.gov.uk/info/200202/performance_and_spending/3233/government_procurement_cards,01-Aug-2022,Total Borough Economy,IAN SMITH GROUP LTD,Total Adult Social Care,50.15,STATIONERY/OFFICE SUPPLIES/PRINTING & WRITING PAP.,2022-23Q2_PC0719
Sandwell Metropolitan Borough Council,http://www.sandwell.gov.uk/info/200202/performance_and_spending/3233/government_procurement_cards,01-Aug-2022,Total Borough Economy,ARGOS LTD,Total Adult Social Care,20.00,DISCOUNT STORES,2022-23Q2_PC0720
Sandwell Metropolitan Borough Council,http://www.sandwell.gov.uk/info/200202/performance_and_spending/3233/government_procurement_cards,01-Aug-2022,Total Borough Economy,SAINSBURYS S/MKTS,Total Adult Social Care,155.70,"GROCERY STORES, SUPERMARKETS",2022-23Q2_PC0721
Sandwell Metropolitan Borough Council,http://www.sandwell.gov.uk/info/200202/performance_and_spending/3233/government_procurement_cards,01-Aug-2022,Total Borough Economy,Amazon.co.uk LS1CR2H05,Total Adult Social Care,19.20,DIRECT MARKETING-OTHER DIRECT MARKETERS/NOT ELSEW.,2022-23Q2_PC0722
Sandwell Metropolitan Borough Council,http://www.sandwell.gov.uk/info/200202/performance_and_spending/3233/government_procurement_cards,01-Aug-2022,Total Borough Economy,WWW.CORNISHLIMECOMPAN,Total Adult Social Care,113.58,"BUILDING MATERIALS, LUMBER STORES",2022-23Q2_PC0723
Sandwell Metropolitan Borough Council,http://www.sandwell.gov.uk/info/200202/performance_and_spending/3233/government_procurement_cards,01-Aug-2022,Total Borough Economy,W M MORRISONS.COM,Total Adult Social Care,48.95,"GROCERY STORES, SUPERMARKETS",2022-23Q2_PC0724
Sandwell Metropolitan Borough Council,http://www.sandwell.gov.uk/info/200202/performance_and_spending/3233/government_procurement_cards,01-Aug-2022,Total Borough Economy,W M MORRISONS.COM,Total Adult Social Care,49.55,"GROCERY STORES, SUPERMARKETS",2022-23Q2_PC0725
Sandwell Metropolitan Borough Council,http://www.sandwell.gov.uk/info/200202/performance_and_spending/3233/government_procurement_cards,01-Aug-2022,Total Borough Economy,AMZNMktplace,Total Adult Social Care,209.61,MISCELLANEOUS AND SPECIALTY RETAIL STORES,2022-23Q2_PC0726
Sandwell Metropolitan Borough Council,http://www.sandwell.gov.uk/info/200202/performance_and_spending/3233/government_procurement_cards,01-Aug-2022,Total Borough Economy,AMZNMktplace,Total Adult Social Care,7.99,MISCELLANEOUS AND SPECIALTY RETAIL STORES,2022-23Q2_PC0727
Sandwell Metropolitan Borough Council,http://www.sandwell.gov.uk/info/200202/performance_and_spending/3233/government_procurement_cards,01-Aug-2022,Total Borough Economy,AMZNMKTPLACE AMAZON.CO,Total Adult Social Care,18.99,MISCELLANEOUS AND SPECIALTY RETAIL STORES,2022-23Q2_PC0728
Sandwell Metropolitan Borough Council,http://www.sandwell.gov.uk/info/200202/performance_and_spending/3233/government_procurement_cards,01-Aug-2022,Total Housing Revenue Account,AMZNMktplace,Total Housing Revenue Account,34.19,MISCELLANEOUS AND SPECIALTY RETAIL STORES,2022-23Q2_PC0729
Sandwell Metropolitan Borough Council,http://www.sandwell.gov.uk/info/200202/performance_and_spending/3233/government_procurement_cards,01-Aug-2022,Total Housing Revenue Account,AMZNMktplace,Total Housing Revenue Account,55.06,MISCELLANEOUS AND SPECIALTY RETAIL STORES,2022-23Q2_PC0730
Sandwell Metropolitan Borough Council,http://www.sandwell.gov.uk/info/200202/performance_and_spending/3233/government_procurement_cards,02-Aug-2022,Director of Law & Governance,BCC CLEAN AIR ZONE,Assistant Chief Executive (Excl SIU),8.00,GOVERNMENT SERVICES-NOT ELSEWHERE CLASSIFIED,2022-23Q2_PC0731
